Workbook

Sheet summary mapping stats
A1: Summary library mapping statistics
B2: mean | C2: Stdev | D2: min | E2: max
A3: total mapped reads per library | B3: ='mapping-stats by library'!$E40 -> 59,028,018 | C3: ='mapping-stats by library'!$E41 -> 26,139,063 | D3: ='mapping-stats by library'!$E42 -> 8,646,617 | E3: ='mapping-stats by library'!$E43 -> 112,126,910
A4: unique mapped reads per library | B4: ='mapping-stats by library'!$F40 -> 12,144,716 | C4: ='mapping-stats by library'!$F41 -> 9,647,277 | D4: ='mapping-stats by library'!$F42 -> 1,970,378 | E4: ='mapping-stats by library'!$F43 -> 44,633,711
A5: non-unique mapped reads per library | B5: ='mapping-stats by library'!$H40 -> 27,548,125 | C5: ='mapping-stats by library'!$H41 -> 12,582,523 | D5: ='mapping-stats by library'!$H42 -> 4,872,478 | E5: ='mapping-stats by library'!$H43 -> 64,154,276
A6: unique mapped reads (%) | B6: ='mapping-stats by library'!$G40 -> 20.6% | C6: ='mapping-stats by library'!$G41 -> 9.8% | D6: ='mapping-stats by library'!$G42 -> 3.8% | E6: ='mapping-stats by library'!$G43 -> 42.2%
A7: non-unique mapped reads (%) | B7: ='mapping-stats by library'!$I40 -> 47.7% | C7: ='mapping-stats by library'!$I41 -> 9.1% | D7: ='mapping-stats by library'!$I42 -> 26.3% | E7: ='mapping-stats by library'!$I43 -> 67.3%
A9: mapping against other species and ribosomal RNA with 2% of reads (for subset of libraries)
A10: number of reads sampled from total | B10: 1,127,987 | C10: 522,352 | D10: 172,932 | E10: 2,045,966 | G10: 2% reads
B11: 31,561 | C11: 26,481 | D11: 4,897 | E11: 106,425 | G11: NC_RNA | H11: unique_mapping
B12: 420,921 | C12: 305,449 | D12: 91,320 | E12: 1,252,504 | G12: NC_RNA | H12: non_unique-mapping
B13: 945 | C13: 2,305 | D13: 57 | E13: 11,549 | G13: rRNA | H13: unique_mapping
B14: 419,928 | C14: 304,814 | D14: 91,098 | E14: 1,248,618 | G14: rRNA | H14: non_unique-mapping
B15: 4 | C15: 4 | D15: 0 | E15: 14 | G15: e_coli | H15: unique_mapping
B16: 18 | C16: 19 | D16: 2 | E16: 84 | G16: e_coli | H16: non_unique-mapping
B17: 8,448 | C17: 9,327 | D17: 200 | E17: 39,500 | G17: human | H17: unique_mapping
B18: 14,395 | C18: 12,099 | D18: 218 | E18: 40,982 | G18: human | H18: non_unique-mapping
B19: 30,570 | C19: 18,275 | D19: 11,842 | E19: 71,690 | G19: c_elegans | H19: unique_mapping
B20: 11,120 | C20: 9,641 | D20: 1,002 | E20: 32,293 | G20: c_elegans | H20: non_unique-mapping
B21: 2,519 | C21: 2,119 | D21: 179 | E21: 8,159 | G21: mouse | H21: unique_mapping
B22: 28,459 | C22: 21,446 | D22: 5,506 | E22: 95,094 | G22: mouse | H22: non_unique-mapping
B25: 2.8% | C25: 5.1% | D25: 2.8% | E25: 5.2% | G25: NC_RNA | H25: unique_mapping
B26: 37.3% | C26: 58.5% | D26: 52.8% | E26: 61.2% | G26: NC_RNA | H26: non_unique-mapping | J26: on average, 40.1% of mapped reads were non-coding RNA
B27: 0.1% | C27: 0.4% | D27: 0.0% | E27: 0.6% | G27: rRNA | H27: unique_mapping
B28: 37.2% | C28: 58.4% | D28: 52.7% | E28: 61.0% | G28: rRNA | H28: non_unique-mapping | J28: of which, ~ 93% were rRNA
B29: 0.0% | C29: 0.0% | D29: 0.0% | E29: 0.0% | G29: e_coli | H29: unique_mapping
B30: 0.0% | C30: 0.0% | D30: 0.0% | E30: 0.0% | G30: e_coli | H30: non_unique-mapping
B31: 0.7% | C31: 1.8% | D31: 0.1% | E31: 1.9% | G31: human | H31: unique_mapping | J31: generally speaking, we see very little evidence of any contamination
B32: 1.3% | C32: 2.3% | D32: 0.1% | E32: 2.0% | G32: human | H32: non_unique-mapping
B33: 2.7% | C33: 3.5% | D33: 6.8% | E33: 3.5% | G33: c_elegans | H33: unique_mapping
B34: 1.0% | C34: 1.8% | D34: 0.6% | E34: 1.6% | G34: c_elegans | H34: non_unique-mapping
B35: 0.2% | C35: 0.4% | D35: 0.1% | E35: 0.4% | G35: mouse | H35: unique_mapping
B36: 2.5% | C36: 4.1% | D36: 3.2% | E36: 4.6% | G36: mouse | H36: non_unique-mapping

Sheet mapping-stats by library
A1: Summary Mapping statistics per library | E1: Bowtie mapping stats
B2: Closed loop protein | C2: internal reference | D2: library type | E2: total sequenced reads | F2: unique_mapping (reads used) | G2: unique (%) | H2: non unique mapping | I2: non_unique (%) | J2: library name
B3: 4E | C3: eIF4E-1-Tot | D3: Total | E3: 60,840,822 | F3: 13,221,286 | G3: =F3/E3 -> 21.7% | H3: 30,233,441 | I3: =H3/E3 -> 49.7% | J3: JCSEQ50
B4: 4E | C4: eIF4E-1-IP | D4: IP | E4: 54,979,417 | F4: 19,344,126 | G4: =F4/E4 -> 35.2% | H4: 22,069,385 | I4: =H4/E4 -> 40.1% | J4: JCSEQ45
B5: 4E | C5: eIF4E-2-Tot | D5: Total | E5: 41,542,733 | F5: 8,363,846 | G5: 20.1% | H5: 22,254,301 | I5: 53.6% | J5: JCSEQ34
B6: 4E | C6: eIF4E-2-IP | D6: IP | E6: 34,795,958 | F6: 8,431,214 | G6: 24.2% | H6: 15,970,610 | I6: 45.9% | J6: JCSEQ38
B7: 4E | C7: eIF4E-3-Total | D7: Total | E7: 8,646,617 | F7: 1,970,378 | G7: 22.8% | H7: 4,872,478 | I7: 56.4% | J7: JCSEQ74
B8: 4E | C8: eIF4E-3-IP | D8: IP | E8: 14,244,612 | F8: 4,356,751 | G8: 30.6% | H8: 6,264,536 | I8: 44.0% | J8: JCSEQ75
B9: 4G1 | C9: eIF4G1-1-Tot | D9: Total | E9: 85,923,282 | F9: 22,869,130 | G9: 26.6% | H9: 33,278,544 | I9: 38.7% | J9: JCSEQ58
B10: 4G1 | C10: eIF4G1-1-IP | D10: IP | E10: 67,706,798 | F10: 20,150,722 | G10: 29.8% | H10: 29,427,824 | I10: 43.5% | J10: JCSEQ59
B11: 4G1 | C11: eIF4G1-tot2 | D11: Total | E11: 21,712,408 | F11: 5,789,522 | G11: 26.7% | H11: 12,012,570 | I11: 55.3% | J11: JCSEQ44
B12: 4G1 | C12: eIF4G1-IP-2 | D12: IP | E12: 17,894,246 | F12: 5,800,148 | G12: 32.4% | H12: 8,341,723 | I12: 46.6% | J12: JCSEQ42
B13: 4G1 | C13: eIF4G1-3-Tot | D13: Total | E13: 57,120,020 | F13: 12,816,429 | G13: 22.4% | H13: 30,621,766 | I13: 53.6% | J13: JCSEQ66
B14: 4G1 | C14: eIF4G1-3-IP | D14: IP | E14: 51,077,396 | F14: 15,478,334 | G14: 30.3% | H14: 21,017,271 | I14: 41.1% | J14: JCSEQ67
B15: 4G2 | C15: eIF4G2-1-total | D15: Total | E15: 39,462,192 | F15: 10,041,424 | G15: 25.4% | H15: 24,323,423 | I15: 61.6% | J15: JCSEQ82
B16: 4G2 | C16: eIF4G2-1-IP | D16: IP | E16: 35,099,555 | F16: 9,317,722 | G16: 26.5% | H16: 21,100,710 | I16: 60.1% | J16: JCSEQ83
B17: 4G2 | C17: eIF4G2-Total-2 | D17: Total | E17: 78,883,402 | F17: 4,799,093 | G17: 6.1% | H17: 39,313,170 | I17: 49.8% | J17: JCSEQ90
B18: 4G2 | C18: eIF4G2-IP-2 | D18: IP | E18: 98,329,594 | F18: 15,560,424 | G18: 15.8% | H18: 46,754,671 | I18: 47.5% | J18: JCSEQ91
B19: 4G2 | C19: eIF4G2-Total-3 | D19: Total | E19: 102,298,324 | F19: 8,834,413 | G19: 8.6% | H19: 64,154,276 | I19: 62.7% | J19: JCSEQ98
B20: 4G2 | C20: eIF4G2-IP-3 | D20: IP | E20: 81,579,874 | F20: 34,386,494 | G20: 42.2% | H20: 21,478,739 | I20: 26.3% | J20: JCSEQ99
B21: PAB1 | C21: Pab1-Total-1 | D21: Total | E21: 76,939,316 | F21: 8,585,300 | G21: 11.2% | H21: 42,201,879 | I21: 54.9% | J21: JCSEQ106
B22: PAB1 | C22: Pab1-IP-1 | D22: IP | E22: 96,604,968 | F22: 30,566,099 | G22: 31.6% | H22: 38,162,284 | I22: 39.5% | J22: JCSEQ107
B23: PAB1 | C23: Pab1-Total-2 | D23: Total | E23: 56,105,174 | F23: 4,631,280 | G23: 8.3% | H23: 37,739,257 | I23: 67.3% | J23: JCSEQ114
B24: PAB1 | C24: Pab1-IP-2 | D24: IP | E24: 112,126,910 | F24: 44,633,711 | G24: 39.8% | H24: 33,880,218 | I24: 30.2% | J24: JCSEQ115
B25: PAB1 | C25: Pab1-Total-3 | D25: Total | E25: 82,201,318 | F25: 10,385,833 | G25: 12.6% | H25: 46,151,128 | I25: 56.1% | J25: JCSEQ122
B26: PAB1 | C26: Pab1-IP-3 | D26: IP | E26: 83,883,424 | F26: 20,069,590 | G26: 23.9% | H26: 34,341,715 | I26: 40.9% | J26: JCSEQ123
B27: CAF20 | C27: Caf20-Tot-1 | D27: Total | E27: 52,698,317 | F27: 7,208,929 | G27: 13.7% | H27: 26,063,388 | I27: 49.5% | J27: JCSEQ130
B28: CAF20 | C28: Caf20-IP-1 | D28: IP | E28: 34,481,337 | F28: 4,475,423 | G28: 13.0% | H28: 17,564,530 | I28: 50.9% | J28: JCSEQ131
B29: CAF20 | C29: Caf20-Tot-2 | D29: Total | E29: 73,976,847 | F29: 9,605,121 | G29: 13.0% | H29: 41,814,396 | I29: 56.5% | J29: JCSEQ132
B30: CAF20 | C30: Caf20-IP-2 | D30: IP | E30: 96,561,655 | F30: 26,554,200 | G30: 27.5% | H30: 37,015,620 | I30: 38.3% | J30: JCSEQ133
B31: CAF20 | C31: Caf20-Tot-3 | D31: Total | E31: 43,494,807 | F31: 8,120,850 | G31: 18.7% | H31: 18,462,946 | I31: 42.4% | J31: JCSEQ134
B32: CAF20 | C32: Caf20-IP-3 | D32: IP | E32: 53,871,992 | F32: 5,445,676 | G32: 10.1% | H32: 27,139,108 | I32: 50.4% | J32: JCSEQ135
B33: EAP1 | C33: Eap1-total-1 | D33: Total | E33: 50,245,348 | F33: 6,984,865 | G33: 13.9% | H33: 22,313,088 | I33: 44.4% | J33: LC1A
B34: EAP1 | C34: Eap1-IP-1 | D34: IP | E34: 50,008,391 | F34: 9,845,827 | G34: 19.7% | H34: 17,017,168 | I34: 34.0% | J34: LC1B
B35: EAP1 | C35: Eap1-total-2 | D35: Total | E35: 34,784,350 | F35: 4,884,310 | G35: 14.0% | H35: 15,055,739 | I35: 43.3% | J35: LC2A
B36: EAP1 | C36: Eap1-IP-2 | D36: IP | E36: 46,022,435 | F36: 3,977,477 | G36: 8.6% | H36: 20,287,453 | I36: 44.1% | J36: LC2B
B37: EAP1 | C37: Eap1-total-3 | D37: Total | E37: 64,535,041 | F37: 2,478,738 | G37: 3.8% | H37: 34,678,772 | I37: 53.7% | J37: LC3A
B38: EAP1 | C38: Eap1-IP-3 | D38: IP | E38: 64,329,768 | F38: 7,225,091 | G38: 11.2% | H38: 28,354,382 | I38: 44.1% | J38: LC3B
D40: Average | E40: =AVERAGE(E3:E38) -> 59,028,018 | F40: =AVERAGE(F3:F38) -> 12,144,716 | G40: 20.6% | H40: 27,548,125 | I40: 47.7%
D41: Standard Dev | E41: =STDEV(E3:E38) -> 26,139,063 | F41: =STDEV(F3:F38) -> 9,647,277 | G41: 9.8% | H41: 12,582,523 | I41: 9.1%
D42: Min | E42: =MIN(E3:E38) -> 8,646,617 | F42: =MIN(F3:F38) -> 1,970,378 | G42: 3.8% | H42: 4,872,478 | I42: 26.3%
D43: Max | E43: =MAX(E3:E38) -> 112,126,910 | F43: =MAX(F3:F38) -> 44,633,711 | G43: 42.2% | H43: 64,154,276 | I43: 67.3%

Sheet mapping QC for subset
D1: eIF4G1-1 Tot | E1: 4G1-1 IP | F1: eIF4G1-3 Tot | G1: eIF4G1-3 IP | H1: eIF4E-3 Total | I1: eIF4E-3 IP | J1: eIF4E-2 Tot | K1: eIF4E-2 IP | L1: eIF4E-1 IP | M1: eIF4E-1 Tot | N1: eIF4G1-IP2-4 | O1: eIF4G1-tot2 | P1: eIF4G2-Total-2 | Q1: eIF4G2-IP-2 | R1: eIF4G2-Total-3 | S1: eIF4G2-IP-3 | T1: Pab1-Total-3 | U1: Pab1-IP-3 | V1: eap1-total-1 | W1: eap1-IP-1 | X1: eap1-total-2 | Y1: eap1-IP-2 | Z1: eap1-total-3 | AA1: eap1-IP-3
B2: Sac Cer | C2: total_mapped_reads | D2: 85923282 | E2: 67706798 | F2: 57120020 | G2: 51077396 | H2: 8646617 | I2: 14244612 | J2: 41542733 | K2: 34795958 | L2: 54979417 | M2: 60840822 | N2: 17894246 | O2: 21712408 | P2: 78883402 | Q2: 98329594 | R2: 102298324 | S2: 81579874 | T2: 82201318 | U2: 83883424 | V2: 50245348 | W2: 50008391 | X2: 34784350 | Y2: 46022435 | Z2: 64535041 | AA2: 64329768
C3: unique_mapping | D3: 22869130 (26.62%) | E3: 20150722 (29.76%) | F3: 12816429 (22.44%) | G3: 15478334 (30.30%) | H3: 1970378 (22.79%) | I3: 4356751 (30.59%) | J3: 8363846 (20.13%) | K3: 8431214 (24.23%) | L3: 19344126 (35.18%) | M3: 13221286 (21.73%) | N3: 5800148 (32.41%) | O3: 5789522 (26.66%) | P3: 4799093 (6.08%) | Q3: 15560424 (15.82%) | R3: 8834413 (8.64%) | S3: 34386494 (42.15%) | T3: 10385833 (12.63%) | U3: 20069590 (23.93%) | V3: 6984865 (13.90%) | W3: 9845827 (19.69%) | X3: 4884310 (14.04%) | Y3: 3977477 (8.64%) | Z3: 2478738 (3.84%) | AA3: 7225091 (11.23%)
C4: non_unique-mapping | D4: 33278544 (38.73%) | E4: 29427824 (43.46%) | F4: 30621766 (53.61%) | G4: 21017271 (41.15%) | H4: 4872478 (56.35%) | I4: 6264536 (43.98%) | J4: 22254301 (53.57%) | K4: 15970610 (45.90%) | L4: 22069385 (40.14%) | M4: 30233441 (49.69%) | N4: 8341723 (46.62%) | O4: 12012570 (55.33%) | P4: 39313170 (49.84%) | Q4: 46754671 (47.55%) | R4: 64154276 (62.71%) | S4: 21478739 (26.33%) | T4: 46151128 (56.14%) | U4: 34341715 (40.94%) | V4: 22313088 (44.41%) | W4: 17017168 (34.03%) | X4: 15055739 (43.28%) | Y4: 20287453 (44.08%) | Z4: 34678772 (53.74%) | AA4: 28354382 (44.08%)
A5: ###
A6: ### | B6: mapping against other species and non-coding/ribsosomal RNA with 2% of reads. This was performed for a subset of the libraries as a QC step in the early phases of the project. As can be seen, contamination and mis-mapping is generally very low, though there is a significant mapping to ribosomal RNA
A7: ###
B8: 2% | D8: 1718465 | E8: 1354135 | F8: 1142400 | G8: 1021547 | H8: 172932 | I8: 284892 | J8: 830854 | K8: 695919 | L8: 1099588 | M8: 1216816 | N8: 357884 | O8: 434248 | P8: 1577668 | Q8: 1966591 | R8: 2045966 | S8: 1631597 | T8: 1644026 | U8: 1677668 | V8: 1004906 | W8: 1000167 | X8: 695687 | Y8: 920448 | Z8: 1290700 | AA8: 1286595
B9: NC_RNA | C9: unique_mapping | D9: 53379 (3.11%) | E9: 36800 (2.72%) | F9: 52352 (4.58%) | G9: 41830 (4.09%) | H9: 8027 (4.64%) | I9: 18997 (6.67%) | J9: 22722 (2.73%) | K9: 31775 (4.57%) | L9: 106425 (9.68%) | M9: 66230 (5.44%) | N9: 18135 (5.07%) | O9: 15088 (3.47%) | P9: 18049 (1.14%) | Q9: 24391 (1.24%) | R9: 31444 (1.54%) | S9: 43773 (2.68%) | T9: 17648 (1.07%) | U9: 91322 (5.44%) | V9: 14020 (1.40%) | W9: 11630 (1.16%) | X9: 10636 (1.53%) | Y9: 4897 (0.53%) | Z9: 6196 (0.48%) | AA9: 11694 (0.91%)
B10: NC_RNA | C10: non_unique-mapping | D10: 582590 (33.90%) | E10: 539753 (39.86%) | F10: 564144 (49.38%) | G10: 382656 (37.46%) | H10: 91320 (52.81%) | I10: 117787 (41.34%) | J10: 411808 (49.56%) | K10: 301424 (43.31%) | L10: 407605 (37.07%) | M10: 560945 (46.10%) | N10: 151595 (42.36%) | O10: 213867 (49.25%) | P10: 767390 (48.64%) | Q10: 901278 (45.83%) | R10: 1252504 (61.22%) | S10: 362986 (22.25%) | T10: 895663 (54.48%) | U10: 630859 (37.60%) | V10: 157485 (15.67%) | W10: 116709 (11.67%) | X10: 108253 (15.56%) | Y10: 142261 (15.46%) | Z10: 241017 (18.67%) | AA10: 200196 (15.56%)
B11: rRNA | C11: unique_mapping | D11: 1102 (0.06%) | E11: 266 (0.02%) | F11: 1226 (0.11%) | G11: 202 (0.02%) | H11: 179 (0.10%) | I11: 57 (0.02%) | J11: 350 (0.04%) | K11: 111 (0.02%) | L11: 228 (0.02%) | M11: 1962 (0.16%) | N11: 82 (0.02%) | O11: 241 (0.06%) | P11: 294 (0.02%) | Q11: 341 (0.02%) | R11: 954 (0.05%) | S11: 782 (0.05%) | T11: 909 (0.06%) | U11: 11549 (0.69%) | V11: 552 (0.05%) | W11: 323 (0.03%) | X11: 422 (0.06%) | Y11: 116 (0.01%) | Z11: 250 (0.02%) | AA11: 171 (0.01%)
B12: rRNA | C12: non_unique-mapping | D12: 581650 (33.85%) | E12: 539296 (39.83%) | F12: 563421 (49.32%) | G12: 382331 (37.43%) | H12: 91098 (52.68%) | I12: 117538 (41.26%) | J12: 411123 (49.48%) | K12: 301176 (43.28%) | L12: 404377 (36.78%) | M12: 557822 (45.84%) | N12: 151322 (42.28%) | O12: 213425 (49.15%) | P12: 765514 (48.52%) | Q12: 900525 (45.79%) | R12: 1248618 (61.03%) | S12: 361446 (22.15%) | T12: 895188 (54.45%) | U12: 628992 (37.49%) | V12: 156955 (15.62%) | W12: 116461 (11.64%) | X12: 107667 (15.48%) | Y12: 141970 (15.42%) | Z12: 240377 (18.62%) | AA12: 199988 (15.54%)
B13: e_coli | C13: unique_mapping | D13: 7 (0.00%) | E13: 6 (0.00%) | F13: 2 (0.00%) | G13: 4 (0.00%) | H13: 0 (0.00%) | I13: 1 (0.00%) | J13: 14 (0.00%) | K13: 4 (0.00%) | L13: 5 (0.00%) | M13: 11 (0.00%) | N13: 0 (0.00%) | O13: 0 (0.00%) | P13: 7 (0.00%) | Q13: 8 (0.00%) | R13: 3 (0.00%) | S13: 8 (0.00%) | T13: 6 (0.00%) | U13: 2 (0.00%) | V13: 0 (0.00%) | W13: 1 (0.00%) | X13: 1 (0.00%) | Y13: 0 (0.00%) | Z13: 1 (0.00%) | AA13: 3 (0.00%)
B14: e_coli | C14: non_unique-mapping | D14: 26 (0.00%) | E14: 12 (0.00%) | F14: 23 (0.00%) | G14: 21 (0.00%) | H14: 2 (0.00%) | I14: 4 (0.00%) | J14: 10 (0.00%) | K14: 24 (0.00%) | L14: 84 (0.01%) | M14: 45 (0.00%) | N14: 4 (0.00%) | O14: 3 (0.00%) | P14: 2 (0.00%) | Q14: 6 (0.00%) | R14: 6 (0.00%) | S14: 12 (0.00%) | T14: 9 (0.00%) | U14: 7 (0.00%) | V14: 17 (0.00%) | W14: 16 (0.00%) | X14: 8 (0.00%) | Y14: 8 (0.00%) | Z14: 20 (0.00%) | AA14: 55 (0.00%)
B15: human | C15: unique_mapping | D15: 9108 (0.53%) | E15: 8432 (0.62%) | F15: 10544 (0.92%) | G15: 7147 (0.70%) | H15: 1819 (1.05%) | I15: 2276 (0.80%) | J15: 7283 (0.88%) | K15: 5192 (0.75%) | L15: 6176 (0.56%) | M15: 13263 (1.09%) | N15: 3298 (0.92%) | O15: 3664 (0.84%) | P15: 20555 (1.30%) | Q15: 19626 (1.00%) | R15: 39500 (1.93%) | S15: 6826 (0.42%) | T15: 20624 (1.25%) | U15: 15156 (0.90%) | V15: 525 (0.05%) | W15: 296 (0.03%) | X15: 479 (0.07%) | Y15: 200 (0.02%) | Z15: 410 (0.03%) | AA15: 355 (0.03%)
B16: human | C16: non_unique-mapping | D16: 23414 (1.36%) | E16: 21908 (1.62%) | F16: 26528 (2.32%) | G16: 17202 (1.68%) | H16: 2712 (1.57%) | I16: 3847 (1.35%) | J16: 13922 (1.68%) | K16: 10882 (1.56%) | L16: 16496 (1.50%) | M16: 19877 (1.63%) | N16: 8467 (2.37%) | O16: 9265 (2.13%) | P16: 34968 (2.22%) | Q16: 26922 (1.37%) | R16: 40982 (2.00%) | S16: 13527 (0.83%) | T16: 28960 (1.76%) | U16: 22396 (1.33%) | V16: 371 (0.04%) | W16: 232 (0.02%) | X16: 218 (0.03%) | Y16: 424 (0.05%) | Z16: 1305 (0.10%) | AA16: 652 (0.05%)
B17: c_elegans | C17: unique_mapping | D17: n/a | E17: n/a | F17: n/a | G17: n/a | H17: n/a | I17: n/a | J17: 19614 (2.36%) | K17: 14979 (2.15%) | L17: 22188 (2.02%) | M17: 31836 (2.62%) | N17: 11842 (3.31%) | O17: 13592 (3.13%) | P17: 54434 (3.45%) | Q17: 40092 (2.04%) | R17: 71690 (3.50%) | S17: 17811 (1.09%) | T17: 39725 (2.42%) | U17: 29042 (1.73%) | V17: n/a | W17: n/a | X17: n/a | Y17: n/a | Z17: n/a | AA17: n/a
B18: c_elegans | C18: non_unique-mapping | D18: n/a | E18: n/a | F18: n/a | G18: n/a | H18: n/a | I18: n/a | J18: 8156 (0.98%) | K18: 5298 (0.76%) | L18: 3590 (0.33%) | M18: 7763 (0.64%) | N18: 1002 (0.28%) | O18: 3441 (0.79%) | P18: 9152 (0.58%) | Q18: 20454 (1.04%) | R18: 32293 (1.58%) | S18: 4936 (0.30%) | T18: 24089 (1.47%) | U18: 13270 (0.79%) | V18: n/a | W18: n/a | X18: n/a | Y18: n/a | Z18: n/a | AA18: n/a
B19: mouse | C19: unique_mapping | D19: 3238 (0.19%) | E19: 3083 (0.23%) | F19: 3763 (0.33%) | G19: 2410 (0.24%) | H19: 736 (0.43%) | I19: 526 (0.18%) | J19: 2582 (0.31%) | K19: 1841 (0.26%) | L19: 2062 (0.19%) | M19: 4216 (0.35%) | N19: 858 (0.24%) | O19: 1489 (0.34%) | P19: 4674 (0.30%) | Q19: 5405 (0.27%) | R19: 8159 (0.40%) | S19: 2325 (0.14%) | T19: 5175 (0.31%) | U19: 5344 (0.32%) | V19: 401 (0.04%) | W19: 473 (0.05%) | X19: 179 (0.03%) | Y19: 263 (0.03%) | Z19: 415 (0.03%) | AA19: 842 (0.07%)
B20: mouse | C20: non_unique-mapping | D20: 37272 (2.17%) | E20: 34688 (2.56%) | F20: 39032 (3.42%) | G20: 25459 (2.49%) | H20: 5506 (3.18%) | I20: 7262 (2.55%) | J20: 24971 (3.01%) | K20: 18773 (2.70%) | L20: 25614 (2.33%) | M20: 36579 (3.01%) | N20: 13567 (3.79%) | O20: 14777 (3.40%) | P20: 64270 (4.07%) | Q20: 52498 (2.67%) | R20: 95094 (4.65%) | S20: 22517 (1.38%) | T20: 53646 (3.26%) | U20: 39049 (2.33%) | V20: 13019 (1.30%) | W20: 8207 (0.82%) | X20: 8519 (1.22%) | Y20: 13767 (1.50%) | Z20: 18914 (1.47%) | AA20: 10004 (0.78%)
A21: ###
B22: CL-protein | D22: 4G1 | E22: 4G1-IP | F22: 4G1 | G22: 4G1-IP | H22: 4E | I22: 4E-IP | J22: 4E | K22: 4E-IP | L22: 4E-IP | M22: 4E | N22: 4G1-IP | O22: 4G1 | P22: 4G2 | Q22: 4G2-IP | R22: 4G2 | S22: 4G2-IP | T22: PAB1 | U22: PAB1-IP | V22: EAP1 | W22: EAP1-IP | X22: EAP1 | Y22: EAP1-IP | Z22: EAP1 | AA22: EAP1-IP
A23: ###
A24: ###

Sheet counts-by-gene
A1: ID | B1: eIF4E-1 Tot | C1: eIF4E-2 Tot | D1: eIF4E-3 Total | E1: eIF4E-1 IP | F1: eIF4E-2 IP | G1: eIF4E-3 IP | H1: Pab1-Total-1 | I1: Pab1-Total-2 | J1: Pab1-Total-3 | K1: Pab1-IP-1 | L1: Pab1-IP-2 | M1: Pab1-IP-3 | N1: 4G2-Total-1 | O1: 4G2-Total-2 | P1: 4G2-Total-3 | Q1: 4G2-IP-1 | R1: 4G2-IP-2 | S1: 4G2-IP-3 | T1: eIF4G1-1 Tot | U1: eIF4G1-tot2 | V1: eIF4G1-3 Tot | W1: 4G1-1 IP | X1: 4G-IP2 | Y1: eIF4G1-3 IP | Z1: Caf20 Tot 1 | AA1: Caf20 Tot 3 | AB1: Caf20 Tot 2 | AC1: Caf20 IP 3 | AD1: Caf20 IP 2 | AE1: Caf20 IP 1 | AF1: eap1_total(1) | AG1: eap1_total(3) | AH1: eap1_total(2) | AI1: eap1_IP(1) | AJ1: eap1_IP(2) | AK1: eap1_IP(3)
A2: R0010W | B2: 0 | C2: 0 | D2: 0 | E2: 0 | F2: 0 | G2: 0 | H2: 54 | I2: 71 | J2: 48 | K2: 114 | L2: 271 | M2: 262 | N2: 150 | O2: 88 | P2: 144 | Q2: 343 | R2: 399 | S2: 1294 | T2: 124 | U2: 32 | V2: 77 | W2: 329 | X2: 87 | Y2: 183 | Z2: 178 | AA2: 123 | AB2: 175 | AC2: 160 | AD2: 951 | AE2: 115 | AF2: 164 | AG2: 34 | AH2: 74 | AI2: 416 | AJ2: 210 | AK2: 273
A3: R0020C | B3: 1 | C3: 0 | D3: 0 | E3: 5 | F3: 0 | G3: 0 | H3: 782 | I3: 818 | J3: 672 | K3: 1227 | L3: 3148 | M3: 3440 | N3: 826 | O3: 382 | P3: 844 | Q3: 1951 | R3: 4482 | S3: 11611 | T3: 2495 | U3: 452 | V3: 1347 | W3: 4096 | X3: 1370 | Y3: 3529 | Z3: 924 | AA3: 1667 | AB3: 1523 | AC3: 2042 | AD3: 9635 | AE3: 1772 | AF3: 1223 | AG3: 346 | AH3: 948 | AI3: 5281 | AJ3: 1996 | AK3: 3053
A4: R0030W | B4: 0 | C4: 0 | D4: 0 | E4: 1 | F4: 0 | G4: 0 | H4: 451 | I4: 475 | J4: 437 | K4: 1136 | L4: 2016 | M4: 2796 | N4: 390 | O4: 279 | P4: 443 | Q4: 1423 | R4: 2825 | S4: 6637 | T4: 1381 | U4: 204 | V4: 624 | W4: 3211 | X4: 555 | Y4: 1899 | Z4: 589 | AA4: 717 | AB4: 996 | AC4: 653 | AD4: 2825 | AE4: 486 | AF4: 490 | AG4: 149 | AH4: 330 | AI4: 1050 | AJ4: 355 | AK4: 479
A5: R0040C | B5: 30 | C5: 0 | D5: 0 | E5: 7 | F5: 0 | G5: 0 | H5: 1464 | I5: 1604 | J5: 1343 | K5: 3155 | L5: 5827 | M5: 7671 | N5: 1215 | O5: 822 | P5: 1581 | Q5: 4721 | R5: 8320 | S5: 19122 | T5: 6246 | U5: 874 | V5: 2458 | W5: 10923 | X5: 2229 | Y5: 10845 | Z5: 1800 | AA5: 2334 | AB5: 2728 | AC5: 1728 | AD5: 7735 | AE5: 1481 | AF5: 1993 | AG5: 695 | AH5: 1260 | AI5: 5885 | AJ5: 2918 | AK5: 4727
A6: YAL001C | B6: 361 | C6: 169 | D6: 44 | E6: 483 | F6: 220 | G6: 102 | H6: 254 | I6: 282 | J6: 220 | K6: 272 | L6: 732 | M6: 570 | N6: 130 | O6: 131 | P6: 277 | Q6: 307 | R6: 727 | S6: 1405 | T6: 474 | U6: 86 | V6: 269 | W6: 665 | X6: 216 | Y6: 698 | Z6: 142 | AA6: 193 | AB6: 341 | AC6: 196 | AD6: 861 | AE6: 211 | AF6: 277 | AG6: 134 | AH6: 275 | AI6: 1064 | AJ6: 509 | AK6: 804
A7: YAL002W | B7: 347 | C7: 174 | D7: 55 | E7: 842 | F7: 369 | G7: 204 | H7: 210 | I7: 244 | J7: 254 | K7: 269 | L7: 877 | M7: 868 | N7: 188 | O7: 106 | P7: 317 | Q7: 501 | R7: 966 | S7: 2850 | T7: 710 | U7: 123 | V7: 277 | W7: 1450 | X7: 390 | Y7: 1013 | Z7: 116 | AA7: 172 | AB7: 194 | AC7: 164 | AD7: 560 | AE7: 145 | AF7: 198 | AG7: 71 | AH7: 151 | AI7: 517 | AJ7: 174 | AK7: 301
A8: YAL003W | B8: 6033 | C8: 5155 | D8: 1364 | E8: 5878 | F8: 2940 | G8: 1321 | H8: 4597 | I8: 3746 | J8: 3385 | K8: 4910 | L8: 11981 | M8: 14499 | N8: 8037 | O8: 3643 | P8: 5820 | Q8: 4159 | R8: 7540 | S8: 19984 | T8: 11613 | U8: 3561 | V8: 6399 | W8: 5919 | X8: 1873 | Y8: 4898 | Z8: 4109 | AA8: 5812 | AB8: 5889 | AC8: 1980 | AD8: 9413 | AE8: 1526 | AF8: 4874 | AG8: 1809 | AH8: 3705 | AI8: 3240 | AJ8: 1662 | AK8: 3304
A9: YAL004W | B9: 0 | C9: 0 | D9: 0 | E9: 0 | F9: 0 | G9: 0 | H9: 0 | I9: 0 | J9: 0 | K9: 0 | L9: 0 | M9: 0 | N9: 0 | O9: 0 | P9: 0 | Q9: 4 | R9: 0 | S9: 1 | T9: 0 | U9: 0 | V9: 0 | W9: 0 | X9: 0 | Y9: 0 | Z9: 0 | AA9: 0 | AB9: 0 | AC9: 0 | AD9: 0 | AE9: 0 | AF9: 0 | AG9: 0 | AH9: 0 | AI9: 0 | AJ9: 0 | AK9: 0
A10: YAL005C | B10: 23651 | C10: 11097 | D10: 2539 | E10: 28016 | F10: 9006 | G10: 4526 | H10: 9380 | I10: 5161 | J10: 6551 | K10: 9513 | L10: 12477 | M10: 21721 | N10: 20398 | O10: 13690 | P10: 22245 | Q10: 12458 | R10: 27012 | S10: 49182 | T10: 42609 | U10: 11399 | V10: 17247 | W10: 23696 | X10: 6814 | Y10: 18237 | Z10: 6668 | AA10: 6916 | AB10: 9485 | AC10: 2476 | AD10: 13733 | AE10: 2336 | AF10: 16221 | AG10: 3817 | AH10: 8998 | AI10: 12484 | AJ10: 4886 | AK10: 9324
A11: YAL007C | B11: 488 | C11: 538 | D11: 114 | E11: 1094 | F11: 688 | G11: 311 | H11: 384 | I11: 399 | J11: 410 | K11: 531 | L11: 1275 | M11: 1485 | N11: 393 | O11: 271 | P11: 570 | Q11: 440 | R11: 1080 | S11: 2196 | T11: 1043 | U11: 253 | V11: 558 | W11: 798 | X11: 346 | Y11: 1015 | Z11: 435 | AA11: 447 | AB11: 654 | AC11: 264 | AD11: 1306 | AE11: 287 | AF11: 360 | AG11: 101 | AH11: 188 | AI11: 297 | AJ11: 81 | AK11: 192
A12: YAL008W | B12: 268 | C12: 130 | D12: 33 | E12: 732 | F12: 200 | G12: 100 | H12: 73 | I12: 84 | J12: 98 | K12: 80 | L12: 260 | M12: 376 | N12: 195 | O12: 94 | P12: 161 | Q12: 207 | R12: 413 | S12: 1129 | T12: 358 | U12: 37 | V12: 183 | W12: 346 | X12: 141 | Y12: 181 | Z12: 70 | AA12: 92 | AB12: 96 | AC12: 57 | AD12: 241 | AE12: 59 | AF12: 165 | AG12: 53 | AH12: 93 | AI12: 127 | AJ12: 38 | AK12: 133
A13: YAL009W | B13: 75 | C13: 58 | D13: 2 | E13: 408 | F13: 183 | G13: 88 | H13: 40 | I13: 42 | J13: 49 | K13: 130 | L13: 124 | M13: 199 | N13: 36 | O13: 46 | P13: 40 | Q13: 245 | R13: 363 | S13: 466 | T13: 315 | U13: 27 | V13: 91 | W13: 500 | X13: 213 | Y13: 448 | Z13: 47 | AA13: 27 | AB13: 86 | AC13: 56 | AD13: 285 | AE13: 57 | AF13: 31 | AG13: 11 | AH13: 18 | AI13: 70 | AJ13: 41 | AK13: 55
A14: YAL010C | B14: 144 | C14: 88 | D14: 25 | E14: 247 | F14: 132 | G14: 76 | H14: 81 | I14: 102 | J14: 72 | K14: 87 | L14: 367 | M14: 391 | N14: 63 | O14: 57 | P14: 167 | Q14: 139 | R14: 341 | S14: 1064 | T14: 265 | U14: 29 | V14: 196 | W14: 300 | X14: 86 | Y14: 188 | Z14: 30 | AA14: 66 | AB14: 75 | AC14: 89 | AD14: 458 | AE14: 96 | AF14: 84 | AG14: 25 | AH14: 54 | AI14: 386 | AJ14: 98 | AK14: 192
A15: YAL011W | B15: 113 | C15: 28 | D15: 13 | E15: 165 | F15: 52 | G15: 26 | H15: 41 | I15: 44 | J15: 50 | K15: 90 | L15: 221 | M15: 153 | N15: 42 | O15: 35 | P15: 70 | Q15: 84 | R15: 182 | S15: 552 | T15: 98 | U15: 18 | V15: 105 | W15: 242 | X15: 88 | Y15: 265 | Z15: 27 | AA15: 52 | AB15: 54 | AC15: 69 | AD15: 386 | AE15: 68 | AF15: 49 | AG15: 13 | AH15: 20 | AI15: 222 | AJ15: 145 | AK15: 205
A16: YAL012W | B16: 4384 | C16: 4664 | D16: 1122 | E16: 5286 | F16: 3242 | G16: 1232 | H16: 3995 | I16: 3240 | J16: 3064 | K16: 6292 | L16: 11403 | M16: 16998 | N16: 6130 | O16: 2353 | P16: 3301 | Q16: 3485 | R16: 6499 | S16: 9859 | T16: 18258 | U16: 5094 | V16: 6542 | W16: 8841 | X16: 2700 | Y16: 4867 | Z16: 1666 | AA16: 2941 | AB16: 3076 | AC16: 1189 | AD16: 5878 | AE16: 718 | AF16: 2183 | AG16: 647 | AH16: 978 | AI16: 1935 | AJ16: 934 | AK16: 1801
A17: YAL013W | B17: 385 | C17: 220 | D17: 48 | E17: 654 | F17: 410 | G17: 138 | H17: 209 | I17: 204 | J17: 163 | K17: 403 | L17: 606 | M17: 970 | N17: 277 | O17: 155 | P17: 257 | Q17: 847 | R17: 2011 | S17: 5072 | T17: 1355 | U17: 205 | V17: 374 | W17: 1909 | X17: 469 | Y17: 1237 | Z17: 105 | AA17: 174 | AB17: 129 | AC17: 177 | AD17: 656 | AE17: 120 | AF17: 221 | AG17: 52 | AH17: 104 | AI17: 590 | AJ17: 199 | AK17: 264
A18: YAL014C | B18: 642 | C18: 375 | D18: 113 | E18: 3061 | F18: 1213 | G18: 661 | H18: 299 | I18: 255 | J18: 268 | K18: 515 | L18: 1002 | M18: 1395 | N18: 605 | O18: 214 | P18: 403 | Q18: 1659 | R18: 3188 | S18: 7823 | T18: 1719 | U18: 299 | V18: 761 | W18: 3597 | X18: 653 | Y18: 2603 | Z18: 144 | AA18: 317 | AB18: 260 | AC18: 210 | AD18: 851 | AE18: 136 | AF18: 264 | AG18: 85 | AH18: 161 | AI18: 675 | AJ18: 213 | AK18: 586
A19: YAL015C | B19: 380 | C19: 164 | D19: 49 | E19: 1172 | F19: 419 | G19: 184 | H19: 110 | I19: 107 | J19: 110 | K19: 330 | L19: 427 | M19: 467 | N19: 241 | O19: 172 | P19: 346 | Q19: 1031 | R19: 1724 | S19: 4391 | T19: 751 | U19: 102 | V19: 261 | W19: 1679 | X19: 259 | Y19: 1142 | Z19: 86 | AA19: 137 | AB19: 127 | AC19: 101 | AD19: 537 | AE19: 92 | AF19: 147 | AG19: 68 | AH19: 73 | AI19: 448 | AJ19: 192 | AK19: 348
A20: YAL016C-A | B20: 0 | C20: 0 | D20: 0 | E20: 0 | F20: 1 | G20: 0 | H20: 0 | I20: 3 | J20: 0 | K20: 0 | L20: 7 | M20: 0 | N20: 0 | O20: 4 | P20: 0 | Q20: 1 | R20: 3 | S20: 8 | T20: 0 | U20: 1 | V20: 0 | W20: 3 | X20: 6 | Y20: 1 | Z20: 0 | AA20: 2 | AB20: 3 | AC20: 0 | AD20: 0 | AE20: 0 | AF20: 0 | AG20: 0 | AH20: 0 | AI20: 0 | AJ20: 0 | AK20: 0
A21: YAL016C-B | B21: 0 | C21: 0 | D21: 0 | E21: 0 | F21: 0 | G21: 0 | H21: 0 | I21: 0 | J21: 0 | K21: 0 | L21: 0 | M21: 0 | N21: 0 | O21: 0 | P21: 0 | Q21: 0 | R21: 2 | S21: 6 | T21: 0 | U21: 0 | V21: 0 | W21: 0 | X21: 0 | Y21: 0 | Z21: 0 | AA21: 0 | AB21: 0 | AC21: 0 | AD21: 0 | AE21: 0 | AF21: 0 | AG21: 0 | AH21: 0 | AI21: 0 | AJ21: 0 | AK21: 0
A22: YAL016W | B22: 2359 | C22: 1810 | D22: 243 | E22: 1808 | F22: 1142 | G22: 581 | H22: 1472 | I22: 1632 | J22: 1526 | K22: 2433 | L22: 5014 | M22: 6693 | N22: 1321 | O22: 571 | P22: 1631 | Q22: 1400 | R22: 2608 | S22: 5446 | T22: 3961 | U22: 771 | V22: 2186 | W22: 3427 | X22: 773 | Y22: 2276 | Z22: 1116 | AA22: 1256 | AB22: 1750 | AC22: 914 | AD22: 4958 | AE22: 887 | AF22: 1812 | AG22: 456 | AH22: 1209 | AI22: 2959 | AJ22: 1063 | AK22: 1538
A23: YAL017W | B23: 1431 | C23: 806 | D23: 232 | E23: 1929 | F23: 788 | G23: 420 | H23: 587 | I23: 569 | J23: 537 | K23: 826 | L23: 1785 | M23: 1734 | N23: 606 | O23: 524 | P23: 1142 | Q23: 1414 | R23: 2919 | S23: 8750 | T23: 2747 | U23: 455 | V23: 1134 | W23: 4233 | X23: 658 | Y23: 2617 | Z23: 377 | AA23: 597 | AB23: 634 | AC23: 625 | AD23: 3215 | AE23: 567 | AF23: 726 | AG23: 278 | AH23: 520 | AI23: 4012 | AJ23: 1640 | AK23: 2576
A24: YAL018C | B24: 0 | C24: 0 | D24: 0 | E24: 0 | F24: 1 | G24: 1 | H24: 0 | I24: 9 | J24: 0 | K24: 0 | L24: 0 | M24: 0 | N24: 0 | O24: 1 | P24: 2 | Q24: 2 | R24: 11 | S24: 14 | T24: 0 | U24: 0 | V24: 0 | W24: 0 | X24: 0 | Y24: 0 | Z24: 0 | AA24: 0 | AB24: 0 | AC24: 0 | AD24: 0 | AE24: 0 | AF24: 0 | AG24: 0 | AH24: 0 | AI24: 0 | AJ24: 0 | AK24: 0
A25: YAL019W | B25: 462 | C25: 351 | D25: 58 | E25: 890 | F25: 388 | G25: 197 | H25: 412 | I25: 531 | J25: 328 | K25: 372 | L25: 1524 | M25: 1113 | N25: 371 | O25: 151 | P25: 383 | Q25: 459 | R25: 872 | S25: 2765 | T25: 949 | U25: 231 | V25: 305 | W25: 1105 | X25: 561 | Y25: 1069 | Z25: 265 | AA25: 370 | AB25: 271 | AC25: 279 | AD25: 1266 | AE25: 287 | AF25: 333 | AG25: 107 | AH25: 238 | AI25: 1160 | AJ25: 584 | AK25: 881
A26: YAL019W-A | B26: 0 | C26: 0 | D26: 0 | E26: 7 | F26: 4 | G26: 0 | H26: 2 | I26: 0 | J26: 0 | K26: 0 | L26: 0 | M26: 7 | N26: 0 | O26: 1 | P26: 3 | Q26: 6 | R26: 18 | S26: 40 | T26: 0 | U26: 1 | V26: 0 | W26: 11 | X26: 9 | Y26: 0 | Z26: 0 | AA26: 0 | AB26: 0 | AC26: 1 | AD26: 8 | AE26: 3 | AF26: 0 | AG26: 2 | AH26: 0 | AI26: 6 | AJ26: 3 | AK26: 25
A27: YAL020C | B27: 670 | C27: 275 | D27: 42 | E27: 2476 | F27: 751 | G27: 264 | H27: 115 | I27: 86 | J27: 89 | K27: 491 | L27: 441 | M27: 770 | N27: 335 | O27: 161 | P27: 215 | Q27: 974 | R27: 1460 | S27: 3283 | T27: 1536 | U27: 222 | V27: 435 | W27: 2291 | X27: 1199 | Y27: 3253 | Z27: 173 | AA27: 256 | AB27: 134 | AC27: 212 | AD27: 657 | AE27: 121 | AF27: 142 | AG27: 69 | AH27: 108 | AI27: 761 | AJ27: 351 | AK27: 517
A28: YAL021C | B28: 1814 | C28: 1287 | D28: 248 | E28: 3969 | F28: 1617 | G28: 806 | H28: 605 | I28: 640 | J28: 582 | K28: 660 | L28: 1516 | M28: 1870 | N28: 1752 | O28: 917 | P28: 1289 | Q28: 2178 | R28: 3957 | S28: 8101 | T28: 4672 | U28: 919 | V28: 1240 | W28: 5525 | X28: 1236 | Y28: 1999 | Z28: 427 | AA28: 617 | AB28: 736 | AC28: 614 | AD28: 2932 | AE28: 551 | AF28: 1091 | AG28: 338 | AH28: 708 | AI28: 4994 | AJ28: 1856 | AK28: 2922
A29: YAL022C | B29: 1977 | C29: 971 | D29: 240 | E29: 4280 | F29: 2174 | G29: 1025 | H29: 465 | I29: 428 | J29: 382 | K29: 1603 | L29: 1704 | M29: 2977 | N29: 1050 | O29: 387 | P29: 603 | Q29: 1898 | R29: 3208 | S29: 6633 | T29: 3813 | U29: 756 | V29: 750 | W29: 5534 | X29: 1672 | Y29: 2655 | Z29: 424 | AA29: 684 | AB29: 754 | AC29: 615 | AD29: 2574 | AE29: 451 | AF29: 397 | AG29: 129 | AH29: 220 | AI29: 1339 | AJ29: 539 | AK29: 769
A30: YAL023C | B30: 11936 | C30: 10196 | D30: 2343 | E30: 13390 | F30: 7167 | G30: 3494 | H30: 3657 | I30: 3301 | J30: 2966 | K30: 8564 | L30: 10748 | M30: 18518 | N30: 14564 | O30: 4137 | P30: 7908 | Q30: 11158 | R30: 17416 | S30: 41414 | T30: 31618 | U30: 8022 | V30: 10021 | W30: 31937 | X30: 9542 | Y30: 19351 | Z30: 3532 | AA30: 4243 | AB30: 5458 | AC30: 1683 | AD30: 8314 | AE30: 1309 | AF30: 1798 | AG30: 506 | AH30: 1193 | AI30: 3775 | AJ30: 1079 | AK30: 1931
A31: YAL024C | B31: 100 | C31: 96 | D31: 16 | E31: 183 | F31: 79 | G31: 39 | H31: 119 | I31: 133 | J31: 104 | K31: 124 | L31: 359 | M31: 248 | N31: 47 | O31: 19 | P31: 89 | Q31: 152 | R31: 279 | S31: 506 | T31: 220 | U31: 55 | V31: 214 | W31: 316 | X31: 140 | Y31: 244 | Z31: 37 | AA31: 77 | AB31: 94 | AC31: 84 | AD31: 430 | AE31: 95 | AF31: 65 | AG31: 24 | AH31: 62 | AI31: 517 | AJ31: 220 | AK31: 327
A32: YAL025C | B32: 63 | C32: 41 | D32: 26 | E32: 311 | F32: 107 | G32: 44 | H32: 86 | I32: 98 | J32: 65 | K32: 111 | L32: 307 | M32: 210 | N32: 78 | O32: 22 | P32: 60 | Q32: 84 | R32: 269 | S32: 457 | T32: 208 | U32: 52 | V32: 219 | W32: 165 | X32: 162 | Y32: 279 | Z32: 31 | AA32: 90 | AB32: 79 | AC32: 84 | AD32: 616 | AE32: 151 | AF32: 74 | AG32: 17 | AH32: 82 | AI32: 191 | AJ32: 121 | AK32: 172
A33: YAL026C | B33: 814 | C33: 607 | D33: 109 | E33: 1084 | F33: 498 | G33: 247 | H33: 568 | I33: 705 | J33: 576 | K33: 651 | L33: 1991 | M33: 1684 | N33: 488 | O33: 226 | P33: 573 | Q33: 599 | R33: 1087 | S33: 2696 | T33: 1579 | U33: 325 | V33: 827 | W33: 1763 | X33: 574 | Y33: 1672 | Z33: 395 | AA33: 611 | AB33: 515 | AC33: 357 | AD33: 1720 | AE33: 333 | AF33: 312 | AG33: 88 | AH33: 163 | AI33: 529 | AJ33: 174 | AK33: 457
A34: YAL026C-A | B34: 7 | C34: 1 | D34: 3 | E34: 0 | F34: 0 | G34: 2 | H34: 6 | I34: 7 | J34: 1 | K34: 2 | L34: 40 | M34: 38 | N34: 0 | O34: 0 | P34: 1 | Q34: 9 | R34: 20 | S34: 33 | T34: 8 | U34: 0 | V34: 0 | W34: 25 | X34: 6 | Y34: 0 | Z34: 2 | AA34: 3 | AB34: 19 | AC34: 16 | AD34: 8 | AE34: 3 | AF34: 8 | AG34: 2 | AH34: 0 | AI34: 3 | AJ34: 3 | AK34: 0
A35: YAL027W | B35: 68 | C35: 58 | D35: 16 | E35: 359 | F35: 176 | G35: 91 | H35: 52 | I35: 78 | J35: 38 | K35: 140 | L35: 189 | M35: 250 | N35: 87 | O35: 53 | P35: 109 | Q35: 213 | R35: 549 | S35: 1268 | T35: 202 | U35: 27 | V35: 93 | W35: 352 | X35: 107 | Y35: 265 | Z35: 44 | AA35: 51 | AB35: 78 | AC35: 87 | AD35: 341 | AE35: 50 | AF35: 27 | AG35: 3 | AH35: 31 | AI35: 237 | AJ35: 114 | AK35: 118
A36: YAL028W | B36: 37 | C36: 48 | D36: 23 | E36: 569 | F36: 150 | G36: 78 | H36: 56 | I36: 46 | J36: 46 | K36: 135 | L36: 351 | M36: 348 | N36: 38 | O36: 43 | P36: 41 | Q36: 226 | R36: 566 | S36: 1155 | T36: 334 | U36: 23 | V36: 104 | W36: 630 | X36: 192 | Y36: 400 | Z36: 29 | AA36: 81 | AB36: 27 | AC36: 53 | AD36: 255 | AE36: 45 | AF36: 34 | AG36: 17 | AH36: 22 | AI36: 130 | AJ36: 41 | AK36: 70
A37: YAL029C | B37: 887 | C37: 433 | D37: 86 | E37: 1302 | F37: 609 | G37: 260 | H37: 521 | I37: 695 | J37: 516 | K37: 727 | L37: 2102 | M37: 1744 | N37: 344 | O37: 268 | P37: 496 | Q37: 820 | R37: 1619 | S37: 3651 | T37: 1042 | U37: 270 | V37: 671 | W37: 2334 | X37: 756 | Y37: 2054 | Z37: 445 | AA37: 526 | AB37: 701 | AC37: 479 | AD37: 1996 | AE37: 541 | AF37: 530 | AG37: 204 | AH37: 326 | AI37: 2110 | AJ37: 1097 | AK37: 1395
A38: YAL030W | B38: 210 | C38: 107 | D38: 58 | E38: 1025 | F38: 385 | G38: 206 | H38: 90 | I38: 85 | J38: 85 | K38: 176 | L38: 327 | M38: 543 | N38: 193 | O38: 102 | P38: 248 | Q38: 482 | R38: 987 | S38: 1918 | T38: 608 | U38: 96 | V38: 240 | W38: 771 | X38: 251 | Y38: 588 | Z38: 63 | AA38: 105 | AB38: 169 | AC38: 94 | AD38: 368 | AE38: 59 | AF38: 120 | AG38: 41 | AH38: 96 | AI38: 152 | AJ38: 49 | AK38: 104
A39: YAL031C | B39: 259 | C39: 236 | D39: 39 | E39: 631 | F39: 216 | G39: 148 | H39: 162 | I39: 222 | J39: 167 | K39: 286 | L39: 602 | M39: 766 | N39: 142 | O39: 84 | P39: 281 | Q39: 400 | R39: 853 | S39: 2203 | T39: 778 | U39: 135 | V39: 289 | W39: 1074 | X39: 241 | Y39: 637 | Z39: 122 | AA39: 238 | AB39: 173 | AC39: 286 | AD39: 1342 | AE39: 208 | AF39: 197 | AG39: 30 | AH39: 108 | AI39: 1059 | AJ39: 303 | AK39: 481
A40: YAL031W-A | B40: 0 | C40: 2 | D40: 0 | E40: 0 | F40: 0 | G40: 1 | H40: 0 | I40: 0 | J40: 0 | K40: 0 | L40: 0 | M40: 0 | N40: 0 | O40: 0 | P40: 3 | Q40: 5 | R40: 1 | S40: 15 | T40: 6 | U40: 0 | V40: 0 | W40: 6 | X40: 3 | Y40: 2 | Z40: 0 | AA40: 0 | AB40: 0 | AC40: 0 | AD40: 0 | AE40: 0 | AF40: 0 | AG40: 0 | AH40: 3 | AI40: 3 | AJ40: 0 | AK40: 0
A41: YAL032C | B41: 297 | C41: 180 | D41: 45 | E41: 507 | F41: 162 | G41: 68 | H41: 138 | I41: 113 | J41: 139 | K41: 232 | L41: 461 | M41: 439 | N41: 316 | O41: 83 | P41: 169 | Q41: 344 | R41: 676 | S41: 1790 | T41: 560 | U41: 126 | V41: 290 | W41: 577 | X41: 152 | Y41: 403 | Z41: 133 | AA41: 272 | AB41: 218 | AC41: 281 | AD41: 1440 | AE41: 197 | AF41: 209 | AG41: 58 | AH41: 175 | AI41: 1439 | AJ41: 499 | AK41: 923
A42: YAL033W | B42: 373 | C42: 135 | D42: 39 | E42: 1226 | F42: 542 | G42: 215 | H42: 148 | I42: 130 | J42: 88 | K42: 435 | L42: 876 | M42: 1339 | N42: 250 | O42: 79 | P42: 163 | Q42: 491 | R42: 914 | S42: 3021 | T42: 656 | U42: 106 | V42: 408 | W42: 768 | X42: 278 | Y42: 815 | Z42: 92 | AA42: 160 | AB42: 204 | AC42: 84 | AD42: 528 | AE42: 88 | AF42: 167 | AG42: 79 | AH42: 128 | AI42: 367 | AJ42: 180 | AK42: 340
A43: YAL034C | B43: 181 | C43: 68 | D43: 33 | E43: 685 | F43: 257 | G43: 144 | H43: 86 | I43: 85 | J43: 89 | K43: 194 | L43: 549 | M43: 444 | N43: 171 | O43: 72 | P43: 214 | Q43: 643 | R43: 1758 | S43: 3427 | T43: 769 | U43: 120 | V43: 235 | W43: 1831 | X43: 215 | Y43: 731 | Z43: 56 | AA43: 89 | AB43: 95 | AC43: 81 | AD43: 365 | AE43: 78 | AF43: 125 | AG43: 42 | AH43: 78 | AI43: 458 | AJ43: 113 | AK43: 234
A44: YAL034C-B | B44: 0 | C44: 0 | D44: 0 | E44: 0 | F44: 0 | G44: 0 | H44: 0 | I44: 3 | J44: 0 | K44: 0 | L44: 0 | M44: 1 | N44: 1 | O44: 0 | P44: 1 | Q44: 1 | R44: 4 | S44: 6 | T44: 15 | U44: 0 | V44: 0 | W44: 1 | X44: 0 | Y44: 3 | Z44: 0 | AA44: 0 | AB44: 0 | AC44: 0 | AD44: 7 | AE44: 0 | AF44: 0 | AG44: 0 | AH44: 2 | AI44: 0 | AJ44: 0 | AK44: 0
A45: YAL034W-A | B45: 27 | C45: 16 | D45: 3 | E45: 56 | F45: 31 | G45: 12 | H45: 39 | I45: 30 | J45: 20 | K45: 51 | L45: 102 | M45: 89 | N45: 6 | O45: 6 | P45: 25 | Q45: 50 | R45: 79 | S45: 154 | T45: 64 | U45: 9 | V45: 16 | W45: 47 | X45: 11 | Y45: 78 | Z45: 4 | AA45: 16 | AB45: 18 | AC45: 15 | AD45: 147 | AE45: 18 | AF45: 23 | AG45: 3 | AH45: 30 | AI45: 48 | AJ45: 50 | AK45: 55
A46: YAL035W | B46: 1988 | C46: 1877 | D46: 323 | E46: 1884 | F46: 1064 | G46: 492 | H46: 1639 | I46: 1718 | J46: 1496 | K46: 1064 | L46: 3781 | M46: 3670 | N46: 1424 | O46: 715 | P46: 1788 | Q46: 1748 | R46: 3032 | S46: 6976 | T46: 4216 | U46: 1075 | V46: 2700 | W46: 3822 | X46: 1371 | Y46: 3253 | Z46: 1066 | AA46: 1209 | AB46: 1241 | AC46: 960 | AD46: 5361 | AE46: 1081 | AF46: 1399 | AG46: 479 | AH46: 1092 | AI46: 5183 | AJ46: 2378 | AK46: 3955
A47: YAL036C | B47: 872 | C47: 673 | D47: 101 | E47: 873 | F47: 601 | G47: 292 | H47: 595 | I47: 733 | J47: 600 | K47: 778 | L47: 2465 | M47: 2554 | N47: 871 | O47: 456 | P47: 901 | Q47: 978 | R47: 1397 | S47: 3042 | T47: 1947 | U47: 758 | V47: 1881 | W47: 2104 | X47: 700 | Y47: 2229 | Z47: 568 | AA47: 520 | AB47: 689 | AC47: 420 | AD47: 1872 | AE47: 410 | AF47: 637 | AG47: 291 | AH47: 500 | AI47: 945 | AJ47: 458 | AK47: 605
A48: YAL037C-A | B48: 0 | C48: 0 | D48: 0 | E48: 3 | F48: 1 | G48: 2 | H48: 2 | I48: 0 | J48: 0 | K48: 0 | L48: 0 | M48: 3 | N48: 0 | O48: 0 | P48: 0 | Q48: 1 | R48: 5 | S48: 12 | T48: 0 | U48: 0 | V48: 0 | W48: 4 | X48: 0 | Y48: 5 | Z48: 0 | AA48: 2 | AB48: 0 | AC48: 0 | AD48: 0 | AE48: 0 | AF48: 3 | AG48: 0 | AH48: 0 | AI48: 0 | AJ48: 0 | AK48: 0
A49: YAL037C-B | B49: 0 | C49: 0 | D49: 0 | E49: 1 | F49: 0 | G49: 0 | H49: 0 | I49: 0 | J49: 0 | K49: 0 | L49: 0 | M49: 0 | N49: 0 | O49: 0 | P49: 0 | Q49: 0 | R49: 17 | S49: 0 | T49: 0 | U49: 0 | V49: 0 | W49: 1 | X49: 0 | Y49: 0 | Z49: 0 | AA49: 0 | AB49: 0 | AC49: 0 | AD49: 0 | AE49: 0 | AF49: 0 | AG49: 0 | AH49: 0 | AI49: 0 | AJ49: 0 | AK49: 0
A50: YAL037W | B50: 22 | C50: 7 | D50: 3 | E50: 64 | F50: 33 | G50: 19 | H50: 16 | I50: 6 | J50: 6 | K50: 77 | L50: 96 | M50: 87 | N50: 27 | O50: 7 | P50: 34 | Q50: 68 | R50: 111 | S50: 448 | T50: 15 | U50: 3 | V50: 36 | W50: 61 | X50: 32 | Y50: 143 | Z50: 27 | AA50: 23 | AB50: 72 | AC50: 45 | AD50: 190 | AE50: 17 | AF50: 23 | AG50: 3 | AH50: 28 | AI50: 93 | AJ50: 15 | AK50: 34
A51: YAL038W | B51: 125350 | C51: 120095 | D51: 32565 | E51: 96117 | F51: 59668 | G51: 24810 | H51: 80942 | I51: 74756 | J51: 64007 | K51: 103557 | L51: 212335 | M51: 293930 | N51: 166123 | O51: 75971 | P51: 109729 | Q51: 83597 | R51: 162641 | S51: 283916 | T51: 467434 | U51: 144630 | V51: 227514 | W51: 207375 | X51: 57786 | Y51: 117195 | Z51: 59760 | AA51: 69420 | AB51: 81830 | AC51: 20176 | AD51: 96228 | AE51: 18511 | AF51: 100248 | AG51: 30962 | AH51: 60546 | AI51: 32395 | AJ51: 14888 | AK51: 32103
A52: YAL039C | B52: 1095 | C52: 748 | D52: 158 | E52: 2973 | F52: 1049 | G52: 482 | H52: 434 | I52: 367 | J52: 323 | K52: 836 | L52: 1186 | M52: 2312 | N52: 963 | O52: 285 | P52: 563 | Q52: 1265 | R52: 1821 | S52: 4294 | T52: 2891 | U52: 644 | V52: 794 | W52: 2917 | X52: 1125 | Y52: 2234 | Z52: 192 | AA52: 299 | AB52: 282 | AC52: 270 | AD52: 1116 | AE52: 234 | AF52: 336 | AG52: 83 | AH52: 285 | AI52: 1139 | AJ52: 512 | AK52: 755
A53: YAL040C | B53: 80 | C53: 127 | D53: 36 | E53: 852 | F53: 567 | G53: 290 | H53: 143 | I53: 233 | J53: 177 | K53: 316 | L53: 936 | M53: 804 | N53: 114 | O53: 103 | P53: 144 | Q53: 829 | R53: 1866 | S53: 2827 | T53: 1472 | U53: 134 | V53: 310 | W53: 4475 | X53: 739 | Y53: 1509 | Z53: 73 | AA53: 182 | AB53: 115 | AC53: 143 | AD53: 591 | AE53: 107 | AF53: 143 | AG53: 41 | AH53: 82 | AI53: 599 | AJ53: 185 | AK53: 292
A54: YAL041W | B54: 348 | C54: 141 | D54: 47 | E54: 550 | F54: 309 | G54: 147 | H54: 218 | I54: 349 | J54: 206 | K54: 282 | L54: 988 | M54: 845 | N54: 157 | O54: 84 | P54: 207 | Q54: 334 | R54: 758 | S54: 1551 | T54: 604 | U54: 134 | V54: 356 | W54: 959 | X54: 328 | Y54: 508 | Z54: 143 | AA54: 249 | AB54: 316 | AC54: 300 | AD54: 1742 | AE54: 257 | AF54: 250 | AG54: 97 | AH54: 157 | AI54: 1253 | AJ54: 464 | AK54: 753
A55: YAL042C-A | B55: 7 | C55: 2 | D55: 0 | E55: 1 | F55: 3 | G55: 0 | H55: 0 | I55: 0 | J55: 1 | K55: 0 | L55: 0 | M55: 2 | N55: 0 | O55: 1 | P55: 6 | Q55: 9 | R55: 48 | S55: 67 | T55: 2 | U55: 0 | V55: 0 | W55: 14 | X55: 0 | Y55: 7 | Z55: 3 | AA55: 0 | AB55: 0 | AC55: 2 | AD55: 0 | AE55: 0 | AF55: 0 | AG55: 0 | AH55: 0 | AI55: 0 | AJ55: 1 | AK55: 5
A56: YAL042W | B56: 4503 | C56: 2853 | D56: 395 | E56: 12414 | F56: 4907 | G56: 2120 | H56: 1355 | I56: 1162 | J56: 1268 | K56: 3794 | L56: 4974 | M56: 7962 | N56: 4157 | O56: 1561 | P56: 1952 | Q56: 5528 | R56: 7888 | S56: 17778 | T56: 7729 | U56: 2433 | V56: 3618 | W56: 11197 | X56: 5866 | Y56: 8083 | Z56: 956 | AA56: 1185 | AB56: 1266 | AC56: 845 | AD56: 3458 | AE56: 739 | AF56: 696 | AG56: 295 | AH56: 461 | AI56: 1622 | AJ56: 939 | AK56: 1176
A57: YAL043C | B57: 787 | C57: 684 | D57: 176 | E57: 1711 | F57: 744 | G57: 330 | H57: 514 | I57: 523 | J57: 401 | K57: 1007 | L57: 1640 | M57: 2460 | N57: 899 | O57: 353 | P57: 539 | Q57: 1202 | R57: 1962 | S57: 4856 | T57: 3257 | U57: 751 | V57: 988 | W57: 3886 | X57: 958 | Y57: 2147 | Z57: 312 | AA57: 417 | AB57: 463 | AC57: 497 | AD57: 1936 | AE57: 365 | AF57: 614 | AG57: 176 | AH57: 298 | AI57: 2592 | AJ57: 949 | AK57: 1648
A58: YAL044C | B58: 4246 | C58: 1621 | D58: 503 | E58: 13243 | F58: 2745 | G58: 1373 | H58: 1567 | I58: 943 | J58: 910 | K58: 3157 | L58: 3811 | M58: 6266 | N58: 2713 | O58: 1147 | P58: 2613 | Q58: 3200 | R58: 4502 | S58: 10170 | T58: 5397 | U58: 1584 | V58: 1839 | W58: 4346 | X58: 1567 | Y58: 3603 | Z58: 1318 | AA58: 1725 | AB58: 1725 | AC58: 778 | AD58: 3549 | AE58: 491 | AF58: 1982 | AG58: 570 | AH58: 1195 | AI58: 1801 | AJ58: 794 | AK58: 1665
A59: YAL044W-A | B59: 319 | C59: 76 | D59: 25 | E59: 714 | F59: 450 | G59: 185 | H59: 150 | I59: 81 | J59: 109 | K59: 299 | L59: 448 | M59: 762 | N59: 115 | O59: 97 | P59: 157 | Q59: 345 | R59: 932 | S59: 1822 | T59: 531 | U59: 71 | V59: 199 | W59: 1090 | X59: 195 | Y59: 503 | Z59: 118 | AA59: 131 | AB59: 265 | AC59: 77 | AD59: 333 | AE59: 73 | AF59: 107 | AG59: 55 | AH59: 91 | AI59: 101 | AJ59: 35 | AK59: 50
A60: YAL045C | B60: 0 | C60: 0 | D60: 0 | E60: 0 | F60: 2 | G60: 0 | H60: 0 | I60: 0 | J60: 2 | K60: 2 | L60: 0 | M60: 7 | N60: 0 | O60: 0 | P60: 0 | Q60: 8 | R60: 0 | S60: 28 | T60: 0 | U60: 0 | V60: 0 | W60: 4 | X60: 0 | Y60: 19 | Z60: 0 | AA60: 0 | AB60: 0 | AC60: 1 | AD60: 0 | AE60: 0 | AF60: 0 | AG60: 0 | AH60: 1 | AI60: 1 | AJ60: 1 | AK60: 1
A61: YAL046C | B61: 537 | C61: 164 | D61: 67 | E61: 2944 | F61: 901 | G61: 398 | H61: 168 | I61: 107 | J61: 98 | K61: 273 | L61: 456 | M61: 701 | N61: 429 | O61: 156 | P61: 331 | Q61: 1408 | R61: 1471 | S61: 3192 | T61: 933 | U61: 178 | V61: 233 | W61: 1470 | X61: 551 | Y61: 1209 | Z61: 223 | AA61: 321 | AB61: 304 | AC61: 156 | AD61: 748 | AE61: 87 | AF61: 204 | AG61: 55 | AH61: 168 | AI61: 336 | AJ61: 159 | AK61: 275
A62: YAL047C | B62: 26 | C62: 23 | D62: 13 | E62: 186 | F62: 57 | G62: 23 | H62: 35 | I62: 66 | J62: 43 | K62: 57 | L62: 266 | M62: 179 | N62: 46 | O62: 11 | P62: 31 | Q62: 64 | R62: 152 | S62: 252 | T62: 68 | U62: 14 | V62: 44 | W62: 126 | X62: 81 | Y62: 116 | Z62: 29 | AA62: 63 | AB62: 16 | AC62: 75 | AD62: 269 | AE62: 54 | AF62: 43 | AG62: 8 | AH62: 29 | AI62: 142 | AJ62: 90 | AK62: 180
A63: YAL047W-A | B63: 0 | C63: 1 | D63: 0 | E63: 5 | F63: 6 | G63: 4 | H63: 1 | I63: 1 | J63: 0 | K63: 7 | L63: 4 | M63: 4 | N63: 1 | O63: 1 | P63: 2 | Q63: 25 | R63: 41 | S63: 66 | T63: 1 | U63: 0 | V63: 0 | W63: 30 | X63: 0 | Y63: 7 | Z63: 0 | AA63: 2 | AB63: 0 | AC63: 0 | AD63: 0 | AE63: 1 | AF63: 0 | AG63: 0 | AH63: 0 | AI63: 4 | AJ63: 2 | AK63: 4
A64: YAL048C | B64: 280 | C64: 217 | D64: 49 | E64: 712 | F64: 300 | G64: 131 | H64: 170 | I64: 164 | J64: 140 | K64: 253 | L64: 554 | M64: 750 | N64: 131 | O64: 103 | P64: 216 | Q64: 368 | R64: 659 | S64: 1852 | T64: 811 | U64: 141 | V64: 277 | W64: 1229 | X64: 287 | Y64: 740 | Z64: 58 | AA64: 148 | AB64: 99 | AC64: 142 | AD64: 625 | AE64: 128 | AF64: 218 | AG64: 44 | AH64: 105 | AI64: 1064 | AJ64: 358 | AK64: 528
A65: YAL049C | B65: 998 | C65: 560 | D65: 104 | E65: 1313 | F65: 534 | G65: 262 | H65: 224 | I65: 236 | J65: 202 | K65: 383 | L65: 682 | M65: 1094 | N65: 1008 | O65: 382 | P65: 1031 | Q65: 753 | R65: 1135 | S65: 4288 | T65: 1647 | U65: 245 | V65: 557 | W65: 1387 | X65: 210 | Y65: 911 | Z65: 327 | AA65: 447 | AB65: 682 | AC65: 256 | AD65: 1297 | AE65: 208 | AF65: 415 | AG65: 161 | AH65: 330 | AI65: 1104 | AJ65: 361 | AK65: 616
A66: YAL051W | B66: 258 | C66: 136 | D66: 28 | E66: 359 | F66: 120 | G66: 79 | H66: 201 | I66: 256 | J66: 215 | K66: 289 | L66: 911 | M66: 825 | N66: 161 | O66: 66 | P66: 184 | Q66: 254 | R66: 485 | S66: 1102 | T66: 374 | U66: 86 | V66: 201 | W66: 686 | X66: 147 | Y66: 472 | Z66: 88 | AA66: 176 | AB66: 172 | AC66: 115 | AD66: 755 | AE66: 111 | AF66: 217 | AG66: 65 | AH66: 137 | AI66: 995 | AJ66: 395 | AK66: 656
A67: YAL053W | B67: 2061 | C67: 2052 | D67: 432 | E67: 3965 | F67: 1975 | G67: 863 | H67: 757 | I67: 755 | J67: 765 | K67: 1480 | L67: 2712 | M67: 3330 | N67: 1472 | O67: 530 | P67: 1104 | Q67: 1408 | R67: 2602 | S67: 6918 | T67: 4279 | U67: 892 | V67: 1746 | W67: 4986 | X67: 1292 | Y67: 2776 | Z67: 619 | AA67: 969 | AB67: 848 | AC67: 563 | AD67: 2309 | AE67: 408 | AF67: 432 | AG67: 105 | AH67: 287 | AI67: 990 | AJ67: 225 | AK67: 447
A68: YAL054C | B68: 347 | C68: 106 | D68: 28 | E68: 1443 | F68: 730 | G68: 411 | H68: 60 | I68: 66 | J68: 32 | K68: 151 | L68: 269 | M68: 396 | N68: 108 | O68: 46 | P68: 57 | Q68: 788 | R68: 1115 | S68: 2297 | T68: 1142 | U68: 92 | V68: 105 | W68: 2852 | X68: 578 | Y68: 1709 | Z68: 77 | AA68: 93 | AB68: 73 | AC68: 56 | AD68: 205 | AE68: 40 | AF68: 75 | AG68: 13 | AH68: 45 | AI68: 187 | AJ68: 72 | AK68: 173
A69: YAL055W | B69: 45 | C69: 25 | D69: 18 | E69: 272 | F69: 91 | G69: 35 | H69: 23 | I69: 21 | J69: 34 | K69: 64 | L69: 110 | M69: 159 | N69: 35 | O69: 29 | P69: 59 | Q69: 147 | R69: 400 | S69: 781 | T69: 95 | U69: 16 | V69: 55 | W69: 269 | X69: 91 | Y69: 238 | Z69: 13 | AA69: 33 | AB69: 28 | AC69: 27 | AD69: 138 | AE69: 25 | AF69: 55 | AG69: 18 | AH69: 40 | AI69: 86 | AJ69: 28 | AK69: 103
A70: YAL056C-A | B70: 0 | C70: 1 | D70: 0 | E70: 3 | F70: 3 | G70: 3 | H70: 0 | I70: 0 | J70: 0 | K70: 0 | L70: 0 | M70: 0 | N70: 10 | O70: 4 | P70: 2 | Q70: 2 | R70: 23 | S70: 20 | T70: 16 | U70: 0 | V70: 0 | W70: 3 | X70: 2 | Y70: 0 | Z70: 0 | AA70: 0 | AB70: 1 | AC70: 0 | AD70: 11 | AE70: 1 | AF70: 0 | AG70: 5 | AH70: 0 | AI70: 5 | AJ70: 0 | AK70: 4
A71: YAL056W | B71: 612 | C71: 345 | D71: 65 | E71: 1484 | F71: 659 | G71: 345 | H71: 279 | I71: 356 | J71: 267 | K71: 586 | L71: 1078 | M71: 1043 | N71: 336 | O71: 224 | P71: 460 | Q71: 769 | R71: 1416 | S71: 4806 | T71: 1347 | U71: 160 | V71: 458 | W71: 2554 | X71: 558 | Y71: 2064 | Z71: 204 | AA71: 312 | AB71: 343 | AC71: 340 | AD71: 1387 | AE71: 374 | AF71: 348 | AG71: 125 | AH71: 267 | AI71: 1289 | AJ71: 435 | AK71: 756
A72: YAL058W | B72: 770 | C72: 454 | D72: 96 | E72: 1474 | F72: 695 | G72: 318 | H72: 284 | I72: 251 | J72: 231 | K72: 700 | L72: 1121 | M72: 1487 | N72: 513 | O72: 212 | P72: 464 | Q72: 1022 | R72: 1480 | S72: 4449 | T72: 1518 | U72: 314 | V72: 885 | W72: 2455 | X72: 535 | Y72: 1950 | Z72: 207 | AA72: 403 | AB72: 431 | AC72: 216 | AD72: 1088 | AE72: 178 | AF72: 125 | AG72: 28 | AH72: 82 | AI72: 558 | AJ72: 184 | AK72: 259
A73: YAL059C-A | B73: 0 | C73: 0 | D73: 0 | E73: 4 | F73: 0 | G73: 2 | H73: 0 | I73: 0 | J73: 2 | K73: 0 | L73: 0 | M73: 0 | N73: 9 | O73: 2 | P73: 2 | Q73: 4 | R73: 12 | S73: 17 | T73: 0 | U73: 0 | V73: 0 | W73: 6 | X73: 3 | Y73: 6 | Z73: 0 | AA73: 2 | AB73: 0 | AC73: 2 | AD73: 0 | AE73: 0 | AF73: 0 | AG73: 0 | AH73: 0 | AI73: 0 | AJ73: 1 | AK73: 0
A74: YAL059W | B74: 109 | C74: 124 | D74: 17 | E74: 558 | F74: 415 | G74: 209 | H74: 124 | I74: 171 | J74: 143 | K74: 190 | L74: 535 | M74: 578 | N74: 144 | O74: 106 | P74: 288 | Q74: 632 | R74: 752 | S74: 2028 | T74: 446 | U74: 73 | V74: 464 | W74: 844 | X74: 170 | Y74: 1118 | Z74: 243 | AA74: 262 | AB74: 277 | AC74: 234 | AD74: 1054 | AE74: 300 | AF74: 149 | AG74: 77 | AH74: 116 | AI74: 516 | AJ74: 274 | AK74: 475
A75: YAL060W | B75: 5439 | C75: 3096 | D75: 604 | E75: 6839 | F75: 2877 | G75: 1273 | H75: 2458 | I75: 2039 | J75: 1905 | K75: 5777 | L75: 7500 | M75: 11834 | N75: 3693 | O75: 2034 | P75: 3242 | Q75: 4361 | R75: 7015 | S75: 16365 | T75: 10616 | U75: 1956 | V75: 3438 | W75: 13165 | X75: 2298 | Y75: 9997 | Z75: 1060 | AA75: 1405 | AB75: 1869 | AC75: 700 | AD75: 3253 | AE75: 527 | AF75: 1812 | AG75: 575 | AH75: 1438 | AI75: 3274 | AJ75: 1194 | AK75: 1879
A76: YAL061W | B76: 1778 | C76: 709 | D76: 203 | E76: 8384 | F76: 1700 | G76: 826 | H76: 285 | I76: 142 | J76: 139 | K76: 479 | L76: 525 | M76: 972 | N76: 875 | O76: 646 | P76: 890 | Q76: 2197 | R76: 6019 | S76: 11402 | T76: 8148 | U76: 1125 | V76: 3726 | W76: 15643 | X76: 3797 | Y76: 16553 | Z76: 555 | AA76: 416 | AB76: 433 | AC76: 431 | AD76: 2795 | AE76: 598 | AF76: 710 | AG76: 245 | AH76: 263 | AI76: 3199 | AJ76: 690 | AK76: 1132
A77: YAL062W | B77: 233 | C77: 86 | D77: 12 | E77: 1127 | F77: 410 | G77: 146 | H77: 126 | I77: 115 | J77: 121 | K77: 355 | L77: 549 | M77: 815 | N77: 298 | O77: 117 | P77: 212 | Q77: 726 | R77: 1614 | S77: 3168 | T77: 494 | U77: 70 | V77: 242 | W77: 1784 | X77: 417 | Y77: 1252 | Z77: 56 | AA77: 99 | AB77: 73 | AC77: 35 | AD77: 240 | AE77: 34 | AF77: 33 | AG77: 21 | AH77: 39 | AI77: 160 | AJ77: 52 | AK77: 77
A78: YAL063C | B78: 15 | C78: 13 | D78: 3 | E78: 115 | F78: 46 | G78: 21 | H78: 0 | I78: 0 | J78: 3 | K78: 0 | L78: 19 | M78: 3 | N78: 0 | O78: 0 | P78: 0 | Q78: 12 | R78: 22 | S78: 86 | T78: 20 | U78: 4 | V78: 16 | W78: 130 | X78: 12 | Y78: 131 | Z78: 0 | AA78: 2 | AB78: 0 | AC78: 3 | AD78: 28 | AE78: 0 | AF78: 4 | AG78: 0 | AH78: 4 | AI78: 8 | AJ78: 2 | AK78: 0
A79: YAL063C-A | B79: 0 | C79: 0 | D79: 0 | E79: 7 | F79: 2 | G79: 0 | H79: 5 | I79: 9 | J79: 3 | K79: 29 | L79: 18 | M79: 24 | N79: 0 | O79: 1 | P79: 1 | Q79: 4 | R79: 11 | S79: 21 | T79: 0 | U79: 0 | V79: 0 | W79: 4 | X79: 0 | Y79: 0 | Z79: 0 | AA79: 0 | AB79: 5 | AC79: 0 | AD79: 3 | AE79: 0 | AF79: 0 | AG79: 0 | AH79: 0 | AI79: 1 | AJ79: 1 | AK79: 1
A80: YAL064C-A | B80: 0 | C80: 0 | D80: 0 | E80: 0 | F80: 0 | G80: 0 | H80: 0 | I80: 3 | J80: 1 | K80: 0 | L80: 2 | M80: 2 | N80: 0 | O80: 0 | P80: 0 | Q80: 0 | R80: 4 | S80: 11 | T80: 1 | U80: 0 | V80: 0 | W80: 0 | X80: 0 | Y80: 5 | Z80: 0 | AA80: 0 | AB80: 0 | AC80: 4 | AD80: 0 | AE80: 0 | AF80: 0 | AG80: 0 | AH80: 0 | AI80: 2 | AJ80: 0 | AK80: 0
A81: YAL064W | B81: 0 | C81: 0 | D81: 0 | E81: 15 | F81: 4 | G81: 1 | H81: 1 | I81: 1 | J81: 1 | K81: 1 | L81: 6 | M81: 1 | N81: 0 | O81: 0 | P81: 5 | Q81: 9 | R81: 0 | S81: 2 | T81: 0 | U81: 1 | V81: 0 | W81: 2 | X81: 0 | Y81: 11 | Z81: 0 | AA81: 0 | AB81: 0 | AC81: 0 | AD81: 0 | AE81: 0 | AF81: 0 | AG81: 0 | AH81: 0 | AI81: 0 | AJ81: 0 | AK81: 0
A82: YAL064W-B | B82: 4 | C82: 12 | D82: 0 | E82: 22 | F82: 19 | G82: 8 | H82: 1 | I82: 3 | J82: 0 | K82: 0 | L82: 4 | M82: 38 | N82: 3 | O82: 2 | P82: 7 | Q82: 3 | R82: 30 | S82: 67 | T82: 22 | U82: 5 | V82: 13 | W82: 36 | X82: 8 | Y82: 50 | Z82: 0 | AA82: 12 | AB82: 4 | AC82: 1 | AD82: 44 | AE82: 3 | AF82: 6 | AG82: 0 | AH82: 0 | AI82: 5 | AJ82: 3 | AK82: 8
A83: YAL065C | B83: 0 | C83: 0 | D83: 0 | E83: 1 | F83: 0 | G83: 0 | H83: 0 | I83: 0 | J83: 0 | K83: 0 | L83: 0 | M83: 11 | N83: 0 | O83: 0 | P83: 4 | Q83: 0 | R83: 0 | S83: 0 | T83: 5 | U83: 0 | V83: 0 | W83: 1 | X83: 0 | Y83: 0 | Z83: 0 | AA83: 0 | AB83: 0 | AC83: 1 | AD83: 0 | AE83: 0 | AF83: 0 | AG83: 0 | AH83: 0 | AI83: 0 | AJ83: 0 | AK83: 0
A84: YAL066W | B84: 0 | C84: 0 | D84: 0 | E84: 0 | F84: 0 | G84: 0 | H84: 0 | I84: 0 | J84: 0 | K84: 0 | L84: 0 | M84: 0 | N84: 0 | O84: 0 | P84: 0 | Q84: 0 | R84: 0 | S84: 3 | T84: 0 | U84: 0 | V84: 0 | W84: 4 | X84: 0 | Y84: 5 | Z84: 0 | AA84: 2 | AB84: 0 | AC84: 0 | AD84: 0 | AE84: 0 | AF84: 0 | AG84: 0 | AH84: 0 | AI84: 0 | AJ84: 0 | AK84: 0
A85: YAL067C | B85: 15 | C85: 3 | D85: 1 | E85: 0 | F85: 10 | G85: 1 | H85: 8 | I85: 21 | J85: 21 | K85: 52 | L85: 36 | M85: 43 | N85: 2 | O85: 12 | P85: 14 | Q85: 3 | R85: 33 | S85: 71 | T85: 3 | U85: 1 | V85: 27 | W85: 20 | X85: 15 | Y85: 12 | Z85: 5 | AA85: 37 | AB85: 65 | AC85: 29 | AD85: 72 | AE85: 11 | AF85: 2 | AG85: 0 | AH85: 2 | AI85: 8 | AJ85: 2 | AK85: 0
A86: YAL067W-A | B86: 0 | C86: 0 | D86: 0 | E86: 0 | F86: 0 | G86: 0 | H86: 0 | I86: 0 | J86: 0 | K86: 0 | L86: 0 | M86: 0 | N86: 0 | O86: 0 | P86: 0 | Q86: 0 | R86: 0 | S86: 0 | T86: 0 | U86: 0 | V86: 0 | W86: 0 | X86: 0 | Y86: 0 | Z86: 0 | AA86: 0 | AB86: 0 | AC86: 0 | AD86: 0 | AE86: 0 | AF86: 0 | AG86: 0 | AH86: 0 | AI86: 0 | AJ86: 0 | AK86: 0
A87: YAL068C | B87: 0 | C87: 0 | D87: 0 | E87: 0 | F87: 0 | G87: 0 | H87: 0 | I87: 0 | J87: 0 | K87: 0 | L87: 0 | M87: 0 | N87: 0 | O87: 0 | P87: 0 | Q87: 0 | R87: 0 | S87: 0 | T87: 0 | U87: 0 | V87: 0 | W87: 0 | X87: 0 | Y87: 0 | Z87: 0 | AA87: 0 | AB87: 0 | AC87: 0 | AD87: 0 | AE87: 0 | AF87: 0 | AG87: 0 | AH87: 0 | AI87: 0 | AJ87: 0 | AK87: 0
A88: YAL068W-A | B88: 0 | C88: 0 | D88: 0 | E88: 0 | F88: 0 | G88: 0 | H88: 0 | I88: 0 | J88: 0 | K88: 0 | L88: 0 | M88: 0 | N88: 0 | O88: 0 | P88: 0 | Q88: 0 | R88: 0 | S88: 0 | T88: 0 | U88: 0 | V88: 0 | W88: 0 | X88: 0 | Y88: 0 | Z88: 0 | AA88: 0 | AB88: 0 | AC88: 0 | AD88: 0 | AE88: 0 | AF88: 0 | AG88: 0 | AH88: 0 | AI88: 0 | AJ88: 0 | AK88: 0
A89: YAL069W | B89: 0 | C89: 0 | D89: 0 | E89: 0 | F89: 0 | G89: 0 | H89: 0 | I89: 0 | J89: 0 | K89: 0 | L89: 0 | M89: 0 | N89: 0 | O89: 0 | P89: 0 | Q89: 0 | R89: 0 | S89: 0 | T89: 0 | U89: 0 | V89: 0 | W89: 0 | X89: 0 | Y89: 0 | Z89: 0 | AA89: 0 | AB89: 0 | AC89: 0 | AD89: 0 | AE89: 0 | AF89: 0 | AG89: 0 | AH89: 0 | AI89: 0 | AJ89: 0 | AK89: 0
A90: YAR002C-A | B90: 2157 | C90: 1354 | D90: 358 | E90: 3325 | F90: 1884 | G90: 888 | H90: 1252 | I90: 920 | J90: 875 | K90: 3021 | L90: 4201 | M90: 6504 | N90: 1915 | O90: 909 | P90: 1500 | Q90: 2426 | R90: 2846 | S90: 6220 | T90: 4434 | U90: 1017 | V90: 2108 | W90: 3711 | X90: 876 | Y90: 2779 | Z90: 1402 | AA90: 1544 | AB90: 2128 | AC90: 859 | AD90: 4815 | AE90: 684 | AF90: 830 | AG90: 372 | AH90: 551 | AI90: 907 | AJ90: 392 | AK90: 889
A91: YAR002W | B91: 422 | C91: 198 | D91: 55 | E91: 355 | F91: 172 | G91: 76 | H91: 252 | I91: 324 | J91: 293 | K91: 359 | L91: 1201 | M91: 1094 | N91: 158 | O91: 87 | P91: 329 | Q91: 279 | R91: 394 | S91: 1314 | T91: 542 | U91: 166 | V91: 438 | W91: 381 | X91: 173 | Y91: 439 | Z91: 174 | AA91: 261 | AB91: 264 | AC91: 316 | AD91: 1219 | AE91: 296 | AF91: 308 | AG91: 60 | AH91: 223 | AI91: 920 | AJ91: 312 | AK91: 630
A92: YAR003W | B92: 259 | C92: 177 | D92: 33 | E92: 701 | F92: 385 | G92: 168 | H92: 140 | I92: 162 | J92: 193 | K92: 606 | L92: 707 | M92: 902 | N92: 214 | O92: 91 | P92: 240 | Q92: 534 | R92: 761 | S92: 2415 | T92: 554 | U92: 94 | V92: 225 | W92: 957 | X92: 184 | Y92: 1055 | Z92: 241 | AA92: 275 | AB92: 323 | AC92: 245 | AD92: 1115 | AE92: 174 | AF92: 174 | AG92: 65 | AH92: 132 | AI92: 784 | AJ92: 296 | AK92: 447
A93: YAR007C | B93: 898 | C93: 393 | D93: 84 | E93: 603 | F93: 306 | G93: 142 | H93: 539 | I93: 536 | J93: 563 | K93: 704 | L93: 1539 | M93: 1904 | N93: 419 | O93: 263 | P93: 704 | Q93: 596 | R93: 910 | S93: 2346 | T93: 1133 | U93: 233 | V93: 546 | W93: 815 | X93: 139 | Y93: 543 | Z93: 271 | AA93: 384 | AB93: 460 | AC93: 482 | AD93: 2664 | AE93: 377 | AF93: 761 | AG93: 213 | AH93: 538 | AI93: 2632 | AJ93: 972 | AK93: 1232
A94: YAR008W | B94: 47 | C94: 35 | D94: 7 | E94: 157 | F94: 125 | G94: 50 | H94: 68 | I94: 104 | J94: 61 | K94: 163 | L94: 207 | M94: 275 | N94: 66 | O94: 51 | P94: 75 | Q94: 193 | R94: 308 | S94: 1009 | T94: 133 | U94: 22 | V94: 68 | W94: 210 | X94: 49 | Y94: 157 | Z94: 38 | AA94: 69 | AB94: 89 | AC94: 87 | AD94: 290 | AE94: 61 | AF94: 42 | AG94: 28 | AH94: 129 | AI94: 176 | AJ94: 85 | AK94: 109
A95: YAR009C | B95: 0 | C95: 0 | D95: 0 | E95: 0 | F95: 0 | G95: 0 | H95: 0 | I95: 0 | J95: 0 | K95: 0 | L95: 0 | M95: 0 | N95: 0 | O95: 0 | P95: 0 | Q95: 0 | R95: 0 | S95: 0 | T95: 0 | U95: 0 | V95: 0 | W95: 0 | X95: 0 | Y95: 0 | Z95: 0 | AA95: 0 | AB95: 0 | AC95: 0 | AD95: 0 | AE95: 0 | AF95: 0 | AG95: 0 | AH95: 0 | AI95: 0 | AJ95: 0 | AK95: 0
A96: YAR010C | B96: 0 | C96: 0 | D96: 0 | E96: 0 | F96: 0 | G96: 0 | H96: 0 | I96: 0 | J96: 0 | K96: 0 | L96: 0 | M96: 0 | N96: 0 | O96: 0 | P96: 0 | Q96: 0 | R96: 0 | S96: 0 | T96: 0 | U96: 0 | V96: 0 | W96: 0 | X96: 0 | Y96: 0 | Z96: 0 | AA96: 0 | AB96: 0 | AC96: 0 | AD96: 0 | AE96: 0 | AF96: 0 | AG96: 0 | AH96: 0 | AI96: 0 | AJ96: 0 | AK96: 0
A97: YAR014C | B97: 424 | C97: 255 | D97: 70 | E97: 1206 | F97: 376 | G97: 181 | H97: 233 | I97: 311 | J97: 244 | K97: 351 | L97: 931 | M97: 1108 | N97: 237 | O97: 162 | P97: 281 | Q97: 574 | R97: 697 | S97: 2553 | T97: 754 | U97: 125 | V97: 408 | W97: 1148 | X97: 413 | Y97: 1077 | Z97: 194 | AA97: 323 | AB97: 266 | AC97: 239 | AD97: 1497 | AE97: 265 | AF97: 237 | AG97: 79 | AH97: 173 | AI97: 1049 | AJ97: 474 | AK97: 832
A98: YAR015W | B98: 2644 | C98: 2256 | D98: 452 | E98: 2319 | F98: 1226 | G98: 589 | H98: 1503 | I98: 1250 | J98: 1053 | K98: 2448 | L98: 5917 | M98: 7905 | N98: 2106 | O98: 481 | P98: 1209 | Q98: 1159 | R98: 1229 | S98: 3863 | T98: 4696 | U98: 1119 | V98: 2153 | W98: 2208 | X98: 480 | Y98: 1711 | Z98: 1734 | AA98: 2795 | AB98: 2906 | AC98: 1523 | AD98: 8102 | AE98: 1113 | AF98: 1872 | AG98: 637 | AH98: 1196 | AI98: 3469 | AJ98: 1662 | AK98: 2718
A99: YAR018C | B99: 165 | C99: 64 | D99: 32 | E99: 336 | F99: 123 | G99: 90 | H99: 116 | I99: 131 | J99: 88 | K99: 298 | L99: 486 | M99: 638 | N99: 134 | O99: 52 | P99: 104 | Q99: 209 | R99: 279 | S99: 1060 | T99: 451 | U99: 48 | V99: 124 | W99: 317 | X99: 136 | Y99: 406 | Z99: 49 | AA99: 85 | AB99: 91 | AC99: 83 | AD99: 383 | AE99: 79 | AF99: 64 | AG99: 31 | AH99: 42 | AI99: 354 | AJ99: 171 | AK99: 441
A100: YAR019C | B100: 237 | C100: 189 | D100: 51 | E100: 866 | F100: 367 | G100: 153 | H100: 174 | I100: 171 | J100: 127 | K100: 231 | L100: 547 | M100: 548 | N100: 169 | O100: 113 | P100: 177 | Q100: 555 | R100: 1111 | S100: 2286 | T100: 751 | U100: 112 | V100: 280 | W100: 1225 | X100: 318 | Y100: 689 | Z100: 53 | AA100: 130 | AB100: 123 | AC100: 177 | AD100: 796 | AE100: 123 | AF100: 148 | AG100: 36 | AH100: 74 | AI100: 880 | AJ100: 251 | AK100: 415
A101: YAR019W-A | B101: 0 | C101: 5 | D101: 0 | E101: 10 | F101: 1 | G101: 3 | H101: 3 | I101: 0 | J101: 0 | K101: 0 | L101: 6 | M101: 11 | N101: 0 | O101: 0 | P101: 0 | Q101: 4 | R101: 10 | S101: 6 | T101: 0 | U101: 0 | V101: 0 | W101: 7 | X101: 1 | Y101: 2 | Z101: 1 | AA101: 1 | AB101: 0 | AC101: 0 | AD101: 0 | AE101: 0 | AF101: 0 | AG101: 0 | AH101: 0 | AI101: 2 | AJ101: 0 | AK101: 0
A102: YAR020C | B102: 0 | C102: 0 | D102: 1 | E102: 10 | F102: 4 | G102: 1 | H102: 11 | I102: 2 | J102: 10 | K102: 5 | L102: 6 | M102: 13 | N102: 6 | O102: 0 | P102: 0 | Q102: 12 | R102: 18 | S102: 113 | T102: 16 | U102: 2 | V102: 0 | W102: 19 | X102: 1 | Y102: 15 | Z102: 3 | AA102: 6 | AB102: 0 | AC102: 0 | AD102: 1 | AE102: 1 | AF102: 2 | AG102: 2 | AH102: 3 | AI102: 11 | AJ102: 1 | AK102: 11
A103: YAR023C | B103: 266 | C103: 41 | D103: 6 | E103: 757 | F103: 161 | G103: 105 | H103: 25 | I103: 41 | J103: 32 | K103: 57 | L103: 124 | M103: 212 | N103: 48 | O103: 20 | P103: 76 | Q103: 211 | R103: 386 | S103: 1056 | T103: 136 | U103: 26 | V103: 54 | W103: 445 | X103: 90 | Y103: 395 | Z103: 26 | AA103: 41 | AB103: 40 | AC103: 43 | AD103: 134 | AE103: 22 | AF103: 59 | AG103: 4 | AH103: 29 | AI103: 127 | AJ103: 44 | AK103: 63
A104: YAR027W | B104: 918 | C104: 385 | D104: 111 | E104: 1934 | F104: 653 | G104: 382 | H104: 345 | I104: 344 | J104: 349 | K104: 1017 | L104: 1292 | M104: 2217 | N104: 379 | O104: 241 | P104: 555 | Q104: 779 | R104: 1480 | S104: 3764 | T104: 1204 | U104: 233 | V104: 605 | W104: 1581 | X104: 273 | Y104: 1585 | Z104: 438 | AA104: 540 | AB104: 646 | AC104: 413 | AD104: 1878 | AE104: 316 | AF104: 275 | AG104: 60 | AH104: 153 | AI104: 624 | AJ104: 192 | AK104: 273
A105: YAR028W | B105: 580 | C105: 275 | D105: 45 | E105: 1351 | F105: 690 | G105: 344 | H105: 197 | I105: 218 | J105: 132 | K105: 334 | L105: 677 | M105: 952 | N105: 189 | O105: 136 | P105: 283 | Q105: 438 | R105: 948 | S105: 2157 | T105: 541 | U105: 150 | V105: 525 | W105: 936 | X105: 355 | Y105: 997 | Z105: 311 | AA105: 349 | AB105: 383 | AC105: 454 | AD105: 1675 | AE105: 341 | AF105: 163 | AG105: 84 | AH105: 104 | AI105: 440 | AJ105: 102 | AK105: 160
A106: YAR029W | B106: 12 | C106: 5 | D106: 0 | E106: 21 | F106: 5 | G106: 1 | H106: 8 | I106: 15 | J106: 16 | K106: 9 | L106: 53 | M106: 40 | N106: 12 | O106: 3 | P106: 2 | Q106: 3 | R106: 43 | S106: 125 | T106: 16 | U106: 1 | V106: 8 | W106: 21 | X106: 8 | Y106: 25 | Z106: 18 | AA106: 0 | AB106: 6 | AC106: 10 | AD106: 53 | AE106: 8 | AF106: 6 | AG106: 4 | AH106: 4 | AI106: 37 | AJ106: 19 | AK106: 10
A107: YAR030C | B107: 4 | C107: 7 | D107: 0 | E107: 13 | F107: 3 | G107: 3 | H107: 4 | I107: 2 | J107: 3 | K107: 6 | L107: 21 | M107: 14 | N107: 3 | O107: 2 | P107: 5 | Q107: 19 | R107: 49 | S107: 81 | T107: 0 | U107: 0 | V107: 0 | W107: 21 | X107: 0 | Y107: 14 | Z107: 0 | AA107: 3 | AB107: 0 | AC107: 0 | AD107: 11 | AE107: 0 | AF107: 1 | AG107: 6 | AH107: 4 | AI107: 11 | AJ107: 2 | AK107: 0
A108: YAR031W | B108: 33 | C108: 17 | D108: 8 | E108: 247 | F108: 125 | G108: 62 | H108: 64 | I108: 109 | J108: 72 | K108: 72 | L108: 223 | M108: 309 | N108: 15 | O108: 7 | P108: 15 | Q108: 95 | R108: 162 | S108: 266 | T108: 91 | U108: 16 | V108: 39 | W108: 178 | X108: 56 | Y108: 130 | Z108: 88 | AA108: 67 | AB108: 72 | AC108: 49 | AD108: 252 | AE108: 34 | AF108: 37 | AG108: 15 | AH108: 23 | AI108: 49 | AJ108: 11 | AK108: 25
A109: YAR033W | B109: 36 | C109: 44 | D109: 9 | E109: 216 | F109: 133 | G109: 49 | H109: 22 | I109: 34 | J109: 25 | K109: 94 | L109: 136 | M109: 184 | N109: 41 | O109: 18 | P109: 52 | Q109: 121 | R109: 68 | S109: 216 | T109: 73 | U109: 8 | V109: 44 | W109: 136 | X109: 54 | Y109: 188 | Z109: 52 | AA109: 52 | AB109: 42 | AC109: 42 | AD109: 167 | AE109: 42 | AF109: 30 | AG109: 11 | AH109: 8 | AI109: 51 | AJ109: 12 | AK109: 9
A110: YAR035C-A | B110: 0 | C110: 0 | D110: 0 | E110: 0 | F110: 0 | G110: 0 | H110: 0 | I110: 0 | J110: 0 | K110: 0 | L110: 0 | M110: 5 | N110: 0 | O110: 1 | P110: 0 | Q110: 0 | R110: 0 | S110: 6 | T110: 1 | U110: 0 | V110: 0 | W110: 1 | X110: 0 | Y110: 0 | Z110: 0 | AA110: 0 | AB110: 0 | AC110: 0 | AD110: 0 | AE110: 0 | AF110: 0 | AG110: 0 | AH110: 0 | AI110: 0 | AJ110: 0 | AK110: 0
A111: YAR035W | B111: 72 | C111: 25 | D111: 18 | E111: 575 | F111: 168 | G111: 88 | H111: 34 | I111: 14 | J111: 19 | K111: 120 | L111: 97 | M111: 281 | N111: 93 | O111: 46 | P111: 47 | Q111: 269 | R111: 555 | S111: 840 | T111: 419 | U111: 47 | V111: 40 | W111: 832 | X111: 298 | Y111: 482 | Z111: 33 | AA111: 37 | AB111: 35 | AC111: 38 | AD111: 139 | AE111: 12 | AF111: 32 | AG111: 5 | AH111: 15 | AI111: 76 | AJ111: 37 | AK111: 83
A112: YAR042W | B112: 516 | C112: 327 | D112: 72 | E112: 978 | F112: 338 | G112: 158 | H112: 384 | I112: 521 | J112: 320 | K112: 487 | L112: 1548 | M112: 1058 | N112: 266 | O112: 180 | P112: 390 | Q112: 692 | R112: 1539 | S112: 4206 | T112: 1014 | U112: 188 | V112: 504 | W112: 1719 | X112: 554 | Y112: 1072 | Z112: 135 | AA112: 233 | AB112: 216 | AC112: 268 | AD112: 1204 | AE112: 256 | AF112: 281 | AG112: 101 | AH112: 169 | AI112: 1339 | AJ112: 652 | AK112: 1070
A113: YAR047C | B113: 0 | C113: 0 | D113: 0 | E113: 10 | F113: 4 | G113: 18 | H113: 10 | I113: 15 | J113: 10 | K113: 30 | L113: 41 | M113: 32 | N113: 0 | O113: 0 | P113: 0 | Q113: 9 | R113: 12 | S113: 63 | T113: 42 | U113: 0 | V113: 0 | W113: 20 | X113: 0 | Y113: 0 | Z113: 8 | AA113: 0 | AB113: 0 | AC113: 0 | AD113: 0 | AE113: 1 | AF113: 2 | AG113: 1 | AH113: 0 | AI113: 4 | AJ113: 0 | AK113: 2
A114: YAR050W | B114: 29 | C114: 11 | D114: 1 | E114: 124 | F114: 24 | G114: 18 | H114: 26 | I114: 15 | J114: 22 | K114: 6 | L114: 88 | M114: 24 | N114: 4 | O114: 8 | P114: 6 | Q114: 23 | R114: 80 | S114: 150 | T114: 27 | U114: 2 | V114: 20 | W114: 95 | X114: 14 | Y114: 50 | Z114: 13 | AA114: 3 | AB114: 3 | AC114: 5 | AD114: 6 | AE114: 1 | AF114: 19 | AG114: 1 | AH114: 6 | AI114: 49 | AJ114: 10 | AK114: 15
A115: YAR053W | B115: 0 | C115: 0 | D115: 0 | E115: 2 | F115: 1 | G115: 1 | H115: 1 | I115: 0 | J115: 2 | K115: 0 | L115: 0 | M115: 2 | N115: 0 | O115: 0 | P115: 0 | Q115: 5 | R115: 1 | S115: 11 | T115: 0 | U115: 0 | V115: 0 | W115: 3 | X115: 0 | Y115: 0 | Z115: 2 | AA115: 0 | AB115: 0 | AC115: 5 | AD115: 2 | AE115: 1 | AF115: 0 | AG115: 0 | AH115: 0 | AI115: 0 | AJ115: 0 | AK115: 0
A116: YAR060C | B116: 0 | C116: 0 | D116: 0 | E116: 0 | F116: 0 | G116: 0 | H116: 0 | I116: 0 | J116: 0 | K116: 0 | L116: 0 | M116: 0 | N116: 0 | O116: 0 | P116: 0 | Q116: 0 | R116: 0 | S116: 0 | T116: 0 | U116: 0 | V116: 0 | W116: 0 | X116: 0 | Y116: 0 | Z116: 0 | AA116: 0 | AB116: 0 | AC116: 0 | AD116: 0 | AE116: 0 | AF116: 0 | AG116: 0 | AH116: 0 | AI116: 0 | AJ116: 0 | AK116: 0
A117: YAR064W | B117: 0 | C117: 0 | D117: 0 | E117: 0 | F117: 0 | G117: 0 | H117: 0 | I117: 0 | J117: 0 | K117: 0 | L117: 0 | M117: 0 | N117: 0 | O117: 0 | P117: 0 | Q117: 0 | R117: 0 | S117: 0 | T117: 0 | U117: 0 | V117: 0 | W117: 1 | X117: 0 | Y117: 0 | Z117: 0 | AA117: 0 | AB117: 0 | AC117: 0 | AD117: 0 | AE117: 0 | AF117: 0 | AG117: 0 | AH117: 0 | AI117: 0 | AJ117: 0 | AK117: 0
A118: YAR066W | B118: 0 | C118: 0 | D118: 0 | E118: 0 | F118: 0 | G118: 0 | H118: 0 | I118: 0 | J118: 0 | K118: 0 | L118: 1 | M118: 0 | N118: 0 | O118: 0 | P118: 0 | Q118: 0 | R118: 0 | S118: 10 | T118: 0 | U118: 0 | V118: 0 | W118: 2 | X118: 0 | Y118: 0 | Z118: 0 | AA118: 0 | AB118: 0 | AC118: 0 | AD118: 0 | AE118: 0 | AF118: 0 | AG118: 0 | AH118: 0 | AI118: 0 | AJ118: 0 | AK118: 0
A119: YAR068W | B119: 0 | C119: 0 | D119: 0 | E119: 0 | F119: 0 | G119: 0 | H119: 0 | I119: 0 | J119: 0 | K119: 0 | L119: 0 | M119: 5 | N119: 0 | O119: 0 | P119: 0 | Q119: 0 | R119: 15 | S119: 0 | T119: 0 | U119: 0 | V119: 0 | W119: 0 | X119: 0 | Y119: 0 | Z119: 0 | AA119: 0 | AB119: 0 | AC119: 0 | AD119: 0 | AE119: 0 | AF119: 0 | AG119: 0 | AH119: 0 | AI119: 0 | AJ119: 0 | AK119: 0
A120: YAR069C | B120: 0 | C120: 0 | D120: 0 | E120: 0 | F120: 0 | G120: 0 | H120: 0 | I120: 0 | J120: 0 | K120: 0 | L120: 0 | M120: 0 | N120: 0 | O120: 0 | P120: 0 | Q120: 0 | R120: 0 | S120: 0 | T120: 0 | U120: 0 | V120: 0 | W120: 0 | X120: 0 | Y120: 0 | Z120: 0 | AA120: 0 | AB120: 0 | AC120: 0 | AD120: 0 | AE120: 0 | AF120: 0 | AG120: 0 | AH120: 0 | AI120: 0 | AJ120: 0 | AK120: 0
A121: YAR070C | B121: 0 | C121: 0 | D121: 0 | E121: 0 | F121: 0 | G121: 0 | H121: 0 | I121: 0 | J121: 0 | K121: 0 | L121: 0 | M121: 0 | N121: 0 | O121: 0 | P121: 0 | Q121: 2 | R121: 0 | S121: 0 | T121: 0 | U121: 0 | V121: 0 | W121: 0 | X121: 0 | Y121: 0 | Z121: 0 | AA121: 0 | AB121: 0 | AC121: 0 | AD121: 0 | AE121: 0 | AF121: 0 | AG121: 0 | AH121: 0 | AI121: 0 | AJ121: 0 | AK121: 0
A122: YAR071W | B122: 10 | C122: 5 | D122: 0 | E122: 29 | F122: 9 | G122: 4 | H122: 3 | I122: 0 | J122: 1 | K122: 9 | L122: 9 | M122: 22 | N122: 6 | O122: 8 | P122: 1 | Q122: 22 | R122: 34 | S122: 50 | T122: 4 | U122: 4 | V122: 8 | W122: 34 | X122: 0 | Y122: 30 | Z122: 4 | AA122: 2 | AB122: 8 | AC122: 1 | AD122: 10 | AE122: 4 | AF122: 8 | AG122: 0 | AH122: 0 | AI122: 7 | AJ122: 10 | AK122: 8
A123: YAR073W | B123: 2 | C123: 1 | D123: 1 | E123: 8 | F123: 2 | G123: 1 | H123: 1 | I123: 1 | J123: 2 | K123: 0 | L123: 0 | M123: 7 | N123: 4 | O123: 4 | P123: 2 | Q123: 10 | R123: 19 | S123: 39 | T123: 10 | U123: 1 | V123: 3 | W123: 22 | X123: 2 | Y123: 26 | Z123: 3 | AA123: 1 | AB123: 3 | AC123: 1 | AD123: 2 | AE123: 1 | AF123: 1 | AG123: 1 | AH123: 3 | AI123: 3 | AJ123: 1 | AK123: 12
A124: YAR075W | B124: 0 | C124: 1 | D124: 0 | E124: 0 | F124: 1 | G124: 2 | H124: 2 | I124: 3 | J124: 0 | K124: 0 | L124: 0 | M124: 1 | N124: 0 | O124: 0 | P124: 3 | Q124: 0 | R124: 0 | S124: 10 | T124: 3 | U124: 0 | V124: 0 | W124: 1 | X124: 0 | Y124: 0 | Z124: 0 | AA124: 0 | AB124: 0 | AC124: 1 | AD124: 0 | AE124: 0 | AF124: 1 | AG124: 1 | AH124: 0 | AI124: 0 | AJ124: 0 | AK124: 0
A125: YBL001C | B125: 1120 | C125: 341 | D125: 161 | E125: 4836 | F125: 1365 | G125: 764 | H125: 322 | I125: 394 | J125: 303 | K125: 1026 | L125: 1393 | M125: 2056 | N125: 716 | O125: 250 | P125: 791 | Q125: 1704 | R125: 2806 | S125: 5003 | T125: 1612 | U125: 331 | V125: 628 | W125: 3412 | X125: 826 | Y125: 1798 | Z125: 441 | AA125: 494 | AB125: 681 | AC125: 192 | AD125: 884 | AE125: 201 | AF125: 537 | AG125: 216 | AH125: 380 | AI125: 368 | AJ125: 144 | AK125: 487
A126: YBL002W | B126: 1642 | C126: 2120 | D126: 429 | E126: 3711 | F126: 2737 | G126: 1380 | H126: 1585 | I126: 1598 | J126: 1402 | K126: 2816 | L126: 6064 | M126: 8135 | N126: 1488 | O126: 640 | P126: 1396 | Q126: 3397 | R126: 6974 | S126: 22567 | T126: 4967 | U126: 1072 | V126: 2310 | W126: 10727 | X126: 1105 | Y126: 5416 | Z126: 1157 | AA126: 1325 | AB126: 1850 | AC126: 907 | AD126: 4461 | AE126: 825 | AF126: 1261 | AG126: 371 | AH126: 957 | AI126: 1984 | AJ126: 599 | AK126: 1125
A127: YBL003C | B127: 3354 | C127: 1835 | D127: 513 | E127: 6203 | F127: 3690 | G127: 1647 | H127: 2581 | I127: 2296 | J127: 1862 | K127: 4154 | L127: 11083 | M127: 12890 | N127: 1988 | O127: 805 | P127: 2011 | Q127: 3379 | R127: 4192 | S127: 8957 | T127: 4182 | U127: 771 | V127: 2777 | W127: 5376 | X127: 1430 | Y127: 3826 | Z127: 2722 | AA127: 3592 | AB127: 3929 | AC127: 2308 | AD127: 12025 | AE127: 1841 | AF127: 4112 | AG127: 948 | AH127: 2787 | AI127: 5492 | AJ127: 1547 | AK127: 3675
A128: YBL004W | B128: 974 | C128: 887 | D128: 143 | E128: 1189 | F128: 836 | G128: 421 | H128: 1093 | I128: 1631 | J128: 1179 | K128: 970 | L128: 4136 | M128: 2834 | N128: 587 | O128: 336 | P128: 695 | Q128: 1119 | R128: 1512 | S128: 4153 | T128: 2323 | U128: 504 | V128: 1464 | W128: 2783 | X128: 1338 | Y128: 3467 | Z128: 1095 | AA128: 1032 | AB128: 1220 | AC128: 916 | AD128: 4536 | AE128: 1165 | AF128: 763 | AG128: 370 | AH128: 650 | AI128: 3601 | AJ128: 1806 | AK128: 2963
A129: YBL005W | B129: 109 | C129: 51 | D129: 25 | E129: 271 | F129: 105 | G129: 54 | H129: 179 | I129: 254 | J129: 224 | K129: 221 | L129: 893 | M129: 923 | N129: 55 | O129: 47 | P129: 139 | Q129: 154 | R129: 346 | S129: 1173 | T129: 618 | U129: 105 | V129: 380 | W129: 671 | X129: 220 | Y129: 520 | Z129: 63 | AA129: 100 | AB129: 85 | AC129: 102 | AD129: 357 | AE129: 101 | AF129: 108 | AG129: 41 | AH129: 84 | AI129: 442 | AJ129: 160 | AK129: 201
A130: YBL005W-A | B130: 0 | C130: 0 | D130: 0 | E130: 0 | F130: 0 | G130: 0 | H130: 0 | I130: 0 | J130: 0 | K130: 0 | L130: 0 | M130: 0 | N130: 0 | O130: 0 | P130: 0 | Q130: 0 | R130: 0 | S130: 0 | T130: 0 | U130: 0 | V130: 0 | W130: 0 | X130: 0 | Y130: 0 | Z130: 0 | AA130: 0 | AB130: 0 | AC130: 0 | AD130: 0 | AE130: 0 | AF130: 0 | AG130: 0 | AH130: 0 | AI130: 0 | AJ130: 0 | AK130: 0
A131: YBL005W-B | B131: 0 | C131: 0 | D131: 0 | E131: 0 | F131: 0 | G131: 0 | H131: 0 | I131: 0 | J131: 0 | K131: 0 | L131: 0 | M131: 0 | N131: 0 | O131: 0 | P131: 0 | Q131: 0 | R131: 0 | S131: 0 | T131: 0 | U131: 0 | V131: 0 | W131: 0 | X131: 0 | Y131: 0 | Z131: 0 | AA131: 0 | AB131: 0 | AC131: 0 | AD131: 0 | AE131: 0 | AF131: 0 | AG131: 0 | AH131: 0 | AI131: 0 | AJ131: 0 | AK131: 0
A132: YBL006C | B132: 1401 | C132: 512 | D132: 112 | E132: 5405 | F132: 2052 | G132: 915 | H132: 582 | I132: 384 | J132: 398 | K132: 1426 | L132: 1474 | M132: 2956 | N132: 728 | O132: 211 | P132: 526 | Q132: 1993 | R132: 3406 | S132: 6577 | T132: 2594 | U132: 465 | V132: 850 | W132: 6327 | X132: 2232 | Y132: 4348 | Z132: 295 | AA132: 527 | AB132: 439 | AC132: 365 | AD132: 1887 | AE132: 298 | AF132: 374 | AG132: 128 | AH132: 312 | AI132: 1245 | AJ132: 521 | AK132: 1005
A133: YBL006W-A | B133: 15 | C133: 2 | D133: 1 | E133: 43 | F133: 14 | G133: 5 | H133: 2 | I133: 0 | J133: 2 | K133: 19 | L133: 4 | M133: 18 | N133: 8 | O133: 6 | P133: 11 | Q133: 47 | R133: 109 | S133: 82 | T133: 11 | U133: 2 | V133: 0 | W133: 100 | X133: 18 | Y133: 74 | Z133: 0 | AA133: 0 | AB133: 0 | AC133: 7 | AD133: 10 | AE133: 0 | AF133: 3 | AG133: 0 | AH133: 3 | AI133: 3 | AJ133: 0 | AK133: 12
A134: YBL007C | B134: 3409 | C134: 1830 | D134: 340 | E134: 3110 | F134: 1203 | G134: 605 | H134: 1755 | I134: 1890 | J134: 1719 | K134: 1619 | L134: 4557 | M134: 4858 | N134: 1714 | O134: 1134 | P134: 2203 | Q134: 1582 | R134: 3808 | S134: 7941 | T134: 5099 | U134: 958 | V134: 1861 | W134: 4717 | X134: 1489 | Y134: 2911 | Z134: 720 | AA134: 1025 | AB134: 918 | AC134: 721 | AD134: 2820 | AE134: 487 | AF134: 1675 | AG134: 550 | AH134: 1023 | AI134: 3190 | AJ134: 1415 | AK134: 2479
A135: YBL008W | B135: 265 | C135: 188 | D135: 40 | E135: 450 | F135: 220 | G135: 111 | H135: 170 | I135: 222 | J135: 165 | K135: 361 | L135: 621 | M135: 959 | N135: 278 | O135: 155 | P135: 292 | Q135: 556 | R135: 740 | S135: 2153 | T135: 450 | U135: 106 | V135: 311 | W135: 731 | X135: 196 | Y135: 680 | Z135: 119 | AA135: 191 | AB135: 217 | AC135: 243 | AD135: 1305 | AE135: 221 | AF135: 200 | AG135: 68 | AH135: 145 | AI135: 1439 | AJ135: 665 | AK135: 960
A136: YBL008W-A | B136: 0 | C136: 0 | D136: 0 | E136: 7 | F136: 2 | G136: 2 | H136: 2 | I136: 4 | J136: 0 | K136: 0 | L136: 5 | M136: 1 | N136: 8 | O136: 2 | P136: 0 | Q136: 9 | R136: 3 | S136: 18 | T136: 14 | U136: 1 | V136: 0 | W136: 8 | X136: 6 | Y136: 3 | Z136: 0 | AA136: 4 | AB136: 7 | AC136: 3 | AD136: 22 | AE136: 6 | AF136: 0 | AG136: 0 | AH136: 1 | AI136: 41 | AJ136: 8 | AK136: 34
A137: YBL009W | B137: 84 | C137: 87 | D137: 13 | E137: 235 | F137: 135 | G137: 85 | H137: 176 | I137: 242 | J137: 209 | K137: 340 | L137: 934 | M137: 875 | N137: 171 | O137: 57 | P137: 189 | Q137: 262 | R137: 317 | S137: 1063 | T137: 355 | U137: 85 | V137: 185 | W137: 390 | X137: 140 | Y137: 255 | Z137: 74 | AA137: 138 | AB137: 152 | AC137: 142 | AD137: 746 | AE137: 136 | AF137: 125 | AG137: 32 | AH137: 64 | AI137: 428 | AJ137: 189 | AK137: 312
A138: YBL010C | B138: 45 | C138: 23 | D138: 6 | E138: 98 | F138: 42 | G138: 29 | H138: 70 | I138: 53 | J138: 49 | K138: 46 | L138: 186 | M138: 273 | N138: 30 | O138: 19 | P138: 36 | Q138: 56 | R138: 81 | S138: 303 | T138: 94 | U138: 20 | V138: 56 | W138: 127 | X138: 53 | Y138: 182 | Z138: 26 | AA138: 48 | AB138: 62 | AC138: 71 | AD138: 361 | AE138: 67 | AF138: 60 | AG138: 23 | AH138: 24 | AI138: 178 | AJ138: 87 | AK138: 107
A139: YBL011W | B139: 1696 | C139: 1180 | D139: 235 | E139: 3691 | F139: 1665 | G139: 737 | H139: 770 | I139: 731 | J139: 727 | K139: 1272 | L139: 2531 | M139: 3398 | N139: 1074 | O139: 874 | P139: 1596 | Q139: 2397 | R139: 4346 | S139: 13586 | T139: 4547 | U139: 694 | V139: 2194 | W139: 6880 | X139: 1817 | Y139: 4705 | Z139: 442 | AA139: 655 | AB139: 511 | AC139: 341 | AD139: 2003 | AE139: 318 | AF139: 441 | AG139: 138 | AH139: 291 | AI139: 1365 | AJ139: 455 | AK139: 731
A140: YBL012C | B140: 0 | C140: 0 | D140: 0 | E140: 1 | F140: 0 | G140: 0 | H140: 0 | I140: 0 | J140: 0 | K140: 0 | L140: 0 | M140: 0 | N140: 0 | O140: 0 | P140: 0 | Q140: 0 | R140: 0 | S140: 7 | T140: 0 | U140: 0 | V140: 0 | W140: 0 | X140: 0 | Y140: 0 | Z140: 0 | AA140: 0 | AB140: 0 | AC140: 0 | AD140: 0 | AE140: 0 | AF140: 0 | AG140: 0 | AH140: 0 | AI140: 0 | AJ140: 0 | AK140: 0
A141: YBL013W | B141: 190 | C141: 78 | D141: 20 | E141: 714 | F141: 211 | G141: 112 | H141: 56 | I141: 54 | J141: 34 | K141: 59 | L141: 165 | M141: 232 | N141: 94 | O141: 58 | P141: 52 | Q141: 195 | R141: 410 | S141: 1100 | T141: 409 | U141: 70 | V141: 133 | W141: 836 | X141: 231 | Y141: 375 | Z141: 28 | AA141: 27 | AB141: 21 | AC141: 58 | AD141: 231 | AE141: 37 | AF141: 70 | AG141: 17 | AH141: 45 | AI141: 310 | AJ141: 106 | AK141: 236
A142: YBL014C | B142: 456 | C142: 121 | D142: 34 | E142: 865 | F142: 272 | G142: 161 | H142: 324 | I142: 290 | J142: 279 | K142: 425 | L142: 984 | M142: 1105 | N142: 207 | O142: 113 | P142: 281 | Q142: 503 | R142: 951 | S142: 2612 | T142: 636 | U142: 91 | V142: 383 | W142: 1257 | X142: 380 | Y142: 1162 | Z142: 159 | AA142: 298 | AB142: 280 | AC142: 205 | AD142: 1100 | AE142: 209 | AF142: 245 | AG142: 124 | AH142: 221 | AI142: 1099 | AJ142: 428 | AK142: 694
A143: YBL015W | B143: 1375 | C143: 998 | D143: 191 | E143: 2134 | F143: 718 | G143: 402 | H143: 310 | I143: 261 | J143: 289 | K143: 744 | L143: 1118 | M143: 1781 | N143: 1070 | O143: 543 | P143: 794 | Q143: 1166 | R143: 2130 | S143: 5102 | T143: 2936 | U143: 544 | V143: 862 | W143: 3443 | X143: 725 | Y143: 2387 | Z143: 212 | AA143: 354 | AB143: 396 | AC143: 197 | AD143: 1082 | AE143: 152 | AF143: 513 | AG143: 132 | AH143: 272 | AI143: 1152 | AJ143: 463 | AK143: 625
A144: YBL016W | B144: 499 | C144: 398 | D144: 105 | E144: 1317 | F144: 484 | G144: 279 | H144: 276 | I144: 248 | J144: 277 | K144: 529 | L144: 1115 | M144: 1456 | N144: 281 | O144: 119 | P144: 356 | Q144: 728 | R144: 1088 | S144: 2473 | T144: 1549 | U144: 293 | V144: 530 | W144: 1543 | X144: 343 | Y144: 1015 | Z144: 231 | AA144: 389 | AB144: 383 | AC144: 340 | AD144: 1601 | AE144: 319 | AF144: 318 | AG144: 101 | AH144: 153 | AI144: 1037 | AJ144: 473 | AK144: 716
A145: YBL017C | B145: 2644 | C145: 1708 | D145: 265 | E145: 2829 | F145: 1401 | G145: 741 | H145: 1356 | I145: 1435 | J145: 1369 | K145: 1253 | L145: 3928 | M145: 3530 | N145: 1294 | O145: 830 | P145: 1813 | Q145: 1828 | R145: 2753 | S145: 7370 | T145: 3825 | U145: 791 | V145: 2186 | W145: 4648 | X145: 1551 | Y145: 3564 | Z145: 1171 | AA145: 1171 | AB145: 1672 | AC145: 1107 | AD145: 4313 | AE145: 822 | AF145: 587 | AG145: 166 | AH145: 410 | AI145: 1316 | AJ145: 426 | AK145: 754
A146: YBL018C | B146: 94 | C146: 50 | D146: 17 | E146: 417 | F146: 232 | G146: 148 | H146: 79 | I146: 89 | J146: 69 | K146: 204 | L146: 452 | M146: 554 | N146: 93 | O146: 50 | P146: 122 | Q146: 402 | R146: 546 | S146: 1003 | T146: 310 | U146: 60 | V146: 145 | W146: 726 | X146: 194 | Y146: 505 | Z146: 157 | AA146: 256 | AB146: 266 | AC146: 145 | AD146: 658 | AE146: 138 | AF146: 100 | AG146: 42 | AH146: 60 | AI146: 269 | AJ146: 98 | AK146: 184
A147: YBL019W | B147: 35 | C147: 31 | D147: 6 | E147: 186 | F147: 80 | G147: 42 | H147: 53 | I147: 71 | J147: 76 | K147: 17 | L147: 189 | M147: 275 | N147: 34 | O147: 34 | P147: 84 | Q147: 103 | R147: 246 | S147: 513 | T147: 189 | U147: 19 | V147: 85 | W147: 297 | X147: 63 | Y147: 326 | Z147: 33 | AA147: 57 | AB147: 46 | AC147: 66 | AD147: 237 | AE147: 70 | AF147: 47 | AG147: 15 | AH147: 41 | AI147: 227 | AJ147: 81 | AK147: 157
A148: YBL020W | B148: 479 | C148: 379 | D148: 73 | E148: 983 | F148: 485 | G148: 266 | H148: 313 | I148: 320 | J148: 216 | K148: 493 | L148: 1177 | M148: 1249 | N148: 501 | O148: 239 | P148: 497 | Q148: 863 | R148: 1475 | S148: 4479 | T148: 1129 | U148: 202 | V148: 588 | W148: 1606 | X148: 449 | Y148: 915 | Z148: 145 | AA148: 339 | AB148: 362 | AC148: 247 | AD148: 884 | AE148: 157 | AF148: 157 | AG148: 83 | AH148: 117 | AI148: 350 | AJ148: 157 | AK148: 213
A149: YBL021C | B149: 154 | C149: 90 | D149: 20 | E149: 577 | F149: 212 | G149: 75 | H149: 92 | I149: 64 | J149: 64 | K149: 204 | L149: 261 | M149: 453 | N149: 100 | O149: 31 | P149: 95 | Q149: 406 | R149: 432 | S149: 1137 | T149: 386 | U149: 88 | V149: 242 | W149: 739 | X149: 240 | Y149: 516 | Z149: 60 | AA149: 88 | AB149: 52 | AC149: 49 | AD149: 326 | AE149: 68 | AF149: 65 | AG149: 16 | AH149: 55 | AI149: 324 | AJ149: 162 | AK149: 250
A150: YBL022C | B150: 2366 | C150: 1329 | D150: 230 | E150: 2971 | F150: 1013 | G150: 524 | H150: 1293 | I150: 1286 | J150: 1128 | K150: 1294 | L150: 4021 | M150: 4152 | N150: 1027 | O150: 653 | P150: 1685 | Q150: 1244 | R150: 2380 | S150: 6630 | T150: 3921 | U150: 693 | V150: 2001 | W150: 3649 | X150: 1141 | Y150: 2924 | Z150: 798 | AA150: 876 | AB150: 1178 | AC150: 631 | AD150: 2947 | AE150: 661 | AF150: 1314 | AG150: 464 | AH150: 1101 | AI150: 3348 | AJ150: 1471 | AK150: 2867
A151: YBL023C | B151: 533 | C151: 378 | D151: 54 | E151: 404 | F151: 297 | G151: 144 | H151: 455 | I151: 384 | J151: 418 | K151: 559 | L151: 983 | M151: 1171 | N151: 326 | O151: 233 | P151: 519 | Q151: 564 | R151: 831 | S151: 2191 | T151: 1169 | U151: 175 | V151: 580 | W151: 1005 | X151: 265 | Y151: 856 | Z151: 275 | AA151: 210 | AB151: 427 | AC151: 276 | AD151: 1443 | AE151: 346 | AF151: 318 | AG151: 181 | AH151: 222 | AI151: 1903 | AJ151: 1004 | AK151: 1536
A152: YBL024W | B152: 1030 | C152: 985 | D152: 155 | E152: 683 | F152: 412 | G152: 177 | H152: 752 | I152: 860 | J152: 681 | K152: 784 | L152: 2645 | M152: 2345 | N152: 765 | O152: 495 | P152: 900 | Q152: 595 | R152: 1139 | S152: 2884 | T152: 2264 | U152: 638 | V152: 1784 | W152: 1294 | X152: 331 | Y152: 1179 | Z152: 768 | AA152: 921 | AB152: 1204 | AC152: 706 | AD152: 3999 | AE152: 962 | AF152: 1105 | AG152: 485 | AH152: 876 | AI152: 4022 | AJ152: 1491 | AK152: 2923
A153: YBL025W | B153: 64 | C153: 18 | D153: 4 | E153: 62 | F153: 10 | G153: 4 | H153: 24 | I153: 8 | J153: 24 | K153: 48 | L153: 52 | M153: 57 | N153: 2 | O153: 14 | P153: 17 | Q153: 33 | R153: 62 | S153: 144 | T153: 17 | U153: 3 | V153: 11 | W153: 59 | X153: 7 | Y153: 77 | Z153: 5 | AA153: 15 | AB153: 15 | AC153: 27 | AD153: 212 | AE153: 15 | AF153: 26 | AG153: 3 | AH153: 22 | AI153: 98 | AJ153: 64 | AK153: 60
A154: YBL026W | B154: 359 | C154: 81 | D154: 56 | E154: 761 | F154: 316 | G154: 250 | H154: 180 | I154: 249 | J154: 181 | K154: 505 | L154: 1050 | M154: 1122 | N154: 131 | O154: 86 | P154: 289 | Q154: 356 | R154: 723 | S154: 1736 | T154: 395 | U154: 44 | V154: 203 | W154: 659 | X154: 227 | Y154: 254 | Z154: 158 | AA154: 261 | AB154: 310 | AC154: 133 | AD154: 636 | AE154: 151 | AF154: 393 | AG154: 207 | AH154: 229 | AI154: 612 | AJ154: 298 | AK154: 435
A155: YBL027W | B155: 7512 | C155: 4208 | D155: 1001 | E155: 10223 | F155: 5550 | G155: 2270 | H155: 5778 | I155: 4561 | J155: 3606 | K155: 6791 | L155: 17484 | M155: 18145 | N155: 4496 | O155: 2121 | P155: 6212 | Q155: 4238 | R155: 6559 | S155: 16935 | T155: 9117 | U155: 3047 | V155: 7706 | W155: 6448 | X155: 2464 | Y155: 6068 | Z155: 4707 | AA155: 7841 | AB155: 6297 | AC155: 3462 | AD155: 14647 | AE155: 2368 | AF155: 6259 | AG155: 1871 | AH155: 4316 | AI155: 3165 | AJ155: 1281 | AK155: 2629
A156: YBL028C | B156: 41 | C156: 29 | D156: 16 | E156: 184 | F156: 94 | G156: 65 | H156: 64 | I156: 71 | J156: 67 | K156: 55 | L156: 215 | M156: 186 | N156: 29 | O156: 13 | P156: 86 | Q156: 110 | R156: 195 | S156: 548 | T156: 130 | U156: 11 | V156: 73 | W156: 145 | X156: 88 | Y156: 160 | Z156: 50 | AA156: 94 | AB156: 62 | AC156: 92 | AD156: 447 | AE156: 112 | AF156: 113 | AG156: 46 | AH156: 67 | AI156: 318 | AJ156: 116 | AK156: 282
A157: YBL029C-A | B157: 85 | C157: 83 | D157: 24 | E157: 591 | F157: 258 | G157: 137 | H157: 50 | I157: 39 | J157: 30 | K157: 46 | L157: 124 | M157: 202 | N157: 99 | O157: 37 | P157: 81 | Q157: 243 | R157: 550 | S157: 1139 | T157: 231 | U157: 26 | V157: 135 | W157: 624 | X157: 119 | Y157: 288 | Z157: 40 | AA157: 79 | AB157: 56 | AC157: 102 | AD157: 389 | AE157: 65 | AF157: 98 | AG157: 17 | AH157: 50 | AI157: 137 | AJ157: 36 | AK157: 63
A158: YBL029W | B158: 5 | C158: 8 | D158: 8 | E158: 281 | F158: 56 | G158: 65 | H158: 43 | I158: 44 | J158: 34 | K158: 47 | L158: 132 | M158: 210 | N158: 33 | O158: 26 | P158: 24 | Q158: 97 | R158: 190 | S158: 451 | T158: 129 | U158: 10 | V158: 30 | W158: 168 | X158: 45 | Y158: 74 | Z158: 7 | AA158: 32 | AB158: 30 | AC158: 14 | AD158: 115 | AE158: 18 | AF158: 28 | AG158: 8 | AH158: 13 | AI158: 239 | AJ158: 158 | AK158: 126
A159: YBL030C | B159: 2427 | C159: 2425 | D159: 1099 | E159: 2599 | F159: 2137 | G159: 927 | H159: 1244 | I159: 1355 | J159: 1350 | K159: 1839 | L159: 4623 | M159: 6041 | N159: 2402 | O159: 1547 | P159: 2212 | Q159: 2378 | R159: 5222 | S159: 8028 | T159: 10279 | U159: 2367 | V159: 4978 | W159: 6958 | X159: 1435 | Y159: 3483 | Z159: 862 | AA159: 1195 | AB159: 1539 | AC159: 464 | AD159: 1908 | AE159: 331 | AF159: 1561 | AG159: 711 | AH159: 1017 | AI159: 991 | AJ159: 467 | AK159: 942
A160: YBL031W | B160: 34 | C160: 18 | D160: 3 | E160: 124 | F160: 57 | G160: 34 | H160: 59 | I160: 69 | J160: 57 | K160: 100 | L160: 205 | M160: 160 | N160: 32 | O160: 5 | P160: 59 | Q160: 67 | R160: 123 | S160: 537 | T160: 83 | U160: 16 | V160: 71 | W160: 129 | X160: 50 | Y160: 86 | Z160: 25 | AA160: 47 | AB160: 70 | AC160: 46 | AD160: 284 | AE160: 37 | AF160: 57 | AG160: 10 | AH160: 46 | AI160: 219 | AJ160: 71 | AK160: 175
A161: YBL032W | B161: 789 | C161: 816 | D161: 207 | E161: 976 | F161: 766 | G161: 289 | H161: 837 | I161: 853 | J161: 769 | K161: 1654 | L161: 2807 | M161: 3756 | N161: 825 | O161: 477 | P161: 1064 | Q161: 1305 | R161: 2715 | S161: 6211 | T161: 2531 | U161: 602 | V161: 1392 | W161: 2855 | X161: 534 | Y161: 1409 | Z161: 485 | AA161: 818 | AB161: 886 | AC161: 290 | AD161: 1542 | AE161: 239 | AF161: 981 | AG161: 284 | AH161: 577 | AI161: 1348 | AJ161: 450 | AK161: 773
A162: YBL033C | B162: 962 | C162: 671 | D162: 147 | E162: 2070 | F162: 601 | G162: 303 | H162: 356 | I162: 291 | J162: 262 | K162: 634 | L162: 1111 | M162: 1617 | N162: 1455 | O162: 435 | P162: 664 | Q162: 1546 | R162: 2220 | S162: 4762 | T162: 2483 | U162: 504 | V162: 748 | W162: 2198 | X162: 791 | Y162: 1388 | Z162: 247 | AA162: 447 | AB162: 391 | AC162: 460 | AD162: 2107 | AE162: 396 | AF162: 496 | AG162: 165 | AH162: 358 | AI162: 2764 | AJ162: 1290 | AK162: 1633
A163: YBL034C | B163: 214 | C163: 78 | D163: 30 | E163: 214 | F163: 94 | G163: 51 | H163: 132 | I163: 117 | J163: 153 | K163: 84 | L163: 452 | M163: 400 | N163: 72 | O163: 51 | P163: 97 | Q163: 146 | R163: 281 | S163: 728 | T163: 206 | U163: 60 | V163: 207 | W163: 329 | X163: 117 | Y163: 321 | Z163: 81 | AA163: 140 | AB163: 126 | AC163: 120 | AD163: 588 | AE163: 153 | AF163: 124 | AG163: 38 | AH163: 93 | AI163: 766 | AJ163: 269 | AK163: 423
A164: YBL035C | B164: 113 | C164: 104 | D164: 25 | E164: 121 | F164: 79 | G164: 46 | H164: 130 | I164: 122 | J164: 97 | K164: 121 | L164: 496 | M164: 427 | N164: 243 | O164: 93 | P164: 163 | Q164: 170 | R164: 280 | S164: 959 | T164: 217 | U164: 66 | V164: 249 | W164: 203 | X164: 42 | Y164: 146 | Z164: 46 | AA164: 109 | AB164: 119 | AC164: 125 | AD164: 644 | AE164: 105 | AF164: 155 | AG164: 42 | AH164: 83 | AI164: 751 | AJ164: 323 | AK164: 488
A165: YBL036C | B165: 378 | C165: 268 | D165: 73 | E165: 998 | F165: 388 | G165: 223 | H165: 251 | I165: 344 | J165: 254 | K165: 458 | L165: 937 | M165: 1012 | N165: 315 | O165: 146 | P165: 376 | Q165: 490 | R165: 1104 | S165: 2643 | T165: 793 | U165: 136 | V165: 394 | W165: 875 | X165: 185 | Y165: 639 | Z165: 175 | AA165: 239 | AB165: 338 | AC165: 135 | AD165: 757 | AE165: 117 | AF165: 258 | AG165: 147 | AH165: 186 | AI165: 434 | AJ165: 181 | AK165: 420
A166: YBL037W | B166: 236 | C166: 196 | D166: 42 | E166: 416 | F166: 164 | G166: 74 | H166: 212 | I166: 278 | J166: 235 | K166: 212 | L166: 846 | M166: 736 | N166: 130 | O166: 84 | P166: 221 | Q166: 247 | R166: 430 | S166: 1112 | T166: 540 | U166: 100 | V166: 228 | W166: 420 | X166: 114 | Y166: 413 | Z166: 96 | AA166: 188 | AB166: 172 | AC166: 234 | AD166: 1547 | AE166: 239 | AF166: 171 | AG166: 83 | AH166: 135 | AI166: 1596 | AJ166: 694 | AK166: 1177
A167: YBL038W | B167: 293 | C167: 157 | D167: 50 | E167: 651 | F167: 185 | G167: 110 | H167: 152 | I167: 117 | J167: 120 | K167: 214 | L167: 438 | M167: 752 | N167: 205 | O167: 66 | P167: 272 | Q167: 327 | R167: 559 | S167: 1702 | T167: 561 | U167: 86 | V167: 286 | W167: 436 | X167: 155 | Y167: 416 | Z167: 205 | AA167: 222 | AB167: 260 | AC167: 218 | AD167: 1132 | AE167: 225 | AF167: 161 | AG167: 52 | AH167: 126 | AI167: 764 | AJ167: 357 | AK167: 751
A168: YBL039C | B168: 2268 | C168: 3549 | D168: 356 | E168: 1657 | F168: 1178 | G168: 573 | H168: 1621 | I168: 1991 | J168: 1408 | K168: 1865 | L168: 5208 | M168: 5037 | N168: 2454 | O168: 1075 | P168: 2829 | Q168: 1694 | R168: 2450 | S168: 5883 | T168: 5068 | U168: 1654 | V168: 4874 | W168: 2736 | X168: 883 | Y168: 2946 | Z168: 2489 | AA168: 2576 | AB168: 2765 | AC168: 1448 | AD168: 8935 | AE168: 1720 | AF168: 1931 | AG168: 854 | AH168: 1563 | AI168: 4275 | AJ168: 2367 | AK168: 3957
A169: YBL039C-A | B169: 0 | C169: 0 | D169: 0 | E169: 0 | F169: 0 | G169: 0 | H169: 0 | I169: 0 | J169: 0 | K169: 0 | L169: 0 | M169: 0 | N169: 0 | O169: 0 | P169: 0 | Q169: 0 | R169: 0 | S169: 0 | T169: 0 | U169: 0 | V169: 0 | W169: 0 | X169: 0 | Y169: 0 | Z169: 0 | AA169: 0 | AB169: 0 | AC169: 0 | AD169: 0 | AE169: 0 | AF169: 0 | AG169: 0 | AH169: 0 | AI169: 0 | AJ169: 0 | AK169: 0
A170: YBL039W-B | B170: 24 | C170: 26 | D170: 1 | E170: 96 | F170: 45 | G170: 21 | H170: 18 | I170: 15 | J170: 24 | K170: 58 | L170: 76 | M170: 118 | N170: 54 | O170: 11 | P170: 68 | Q170: 62 | R170: 137 | S170: 433 | T170: 51 | U170: 0 | V170: 50 | W170: 99 | X170: 39 | Y170: 96 | Z170: 6 | AA170: 31 | AB170: 33 | AC170: 15 | AD170: 50 | AE170: 5 | AF170: 16 | AG170: 4 | AH170: 13 | AI170: 21 | AJ170: 8 | AK170: 0
A171: YBL040C | B171: 801 | C171: 365 | D171: 127 | E171: 1104 | F171: 539 | G171: 298 | H171: 299 | I171: 275 | J171: 317 | K171: 763 | L171: 1072 | M171: 1439 | N171: 416 | O171: 230 | P171: 495 | Q171: 598 | R171: 765 | S171: 1861 | T171: 916 | U171: 253 | V171: 387 | W171: 768 | X171: 268 | Y171: 913 | Z171: 329 | AA171: 401 | AB171: 479 | AC171: 450 | AD171: 1969 | AE171: 385 | AF171: 255 | AG171: 71 | AH171: 166 | AI171: 469 | AJ171: 155 | AK171: 201
A172: YBL041W | B172: 1809 | C172: 929 | D172: 263 | E172: 4513 | F172: 1819 | G172: 804 | H172: 971 | I172: 768 | J172: 886 | K172: 1605 | L172: 3054 | M172: 4265 | N172: 998 | O172: 491 | P172: 1276 | Q172: 1609 | R172: 2710 | S172: 7056 | T172: 2530 | U172: 552 | V172: 1071 | W172: 2985 | X172: 1213 | Y172: 2556 | Z172: 772 | AA172: 1020 | AB172: 1160 | AC172: 882 | AD172: 4099 | AE172: 715 | AF172: 1208 | AG172: 439 | AH172: 825 | AI172: 1627 | AJ172: 761 | AK172: 1111
A173: YBL042C | B173: 2244 | C173: 1675 | D173: 387 | E173: 2106 | F173: 1348 | G173: 602 | H173: 794 | I173: 772 | J173: 749 | K173: 1507 | L173: 2724 | M173: 3918 | N173: 2095 | O173: 606 | P173: 1313 | Q173: 1960 | R173: 2414 | S173: 5857 | T173: 4135 | U173: 1130 | V173: 1898 | W173: 4144 | X173: 1195 | Y173: 2661 | Z173: 761 | AA173: 966 | AB173: 1210 | AC173: 759 | AD173: 3990 | AE173: 713 | AF173: 219 | AG173: 89 | AH173: 214 | AI173: 937 | AJ173: 352 | AK173: 500
A174: YBL043W | B174: 44 | C174: 32 | D174: 6 | E174: 95 | F174: 65 | G174: 46 | H174: 25 | I174: 20 | J174: 11 | K174: 24 | L174: 68 | M174: 114 | N174: 41 | O174: 21 | P174: 50 | Q174: 124 | R174: 303 | S174: 964 | T174: 156 | U174: 44 | V174: 68 | W174: 391 | X174: 60 | Y174: 155 | Z174: 9 | AA174: 6 | AB174: 18 | AC174: 12 | AD174: 136 | AE174: 15 | AF174: 54 | AG174: 11 | AH174: 47 | AI174: 80 | AJ174: 96 | AK174: 70
A175: YBL044W | B175: 2 | C175: 0 | D175: 0 | E175: 33 | F175: 12 | G175: 5 | H175: 0 | I175: 0 | J175: 1 | K175: 0 | L175: 4 | M175: 15 | N175: 1 | O175: 0 | P175: 1 | Q175: 12 | R175: 12 | S175: 22 | T175: 3 | U175: 1 | V175: 1 | W175: 13 | X175: 1 | Y175: 6 | Z175: 11 | AA175: 5 | AB175: 4 | AC175: 0 | AD175: 32 | AE175: 4 | AF175: 3 | AG175: 0 | AH175: 3 | AI175: 2 | AJ175: 3 | AK175: 0
A176: YBL045C | B176: 2175 | C176: 1586 | D176: 278 | E176: 1492 | F176: 985 | G176: 415 | H176: 710 | I176: 570 | J176: 695 | K176: 974 | L176: 2001 | M176: 3225 | N176: 1427 | O176: 695 | P176: 1933 | Q176: 1240 | R176: 2213 | S176: 5219 | T176: 3502 | U176: 828 | V176: 1200 | W176: 2770 | X176: 478 | Y176: 1296 | Z176: 513 | AA176: 708 | AB176: 886 | AC176: 280 | AD176: 1503 | AE176: 271 | AF176: 1252 | AG176: 317 | AH176: 903 | AI176: 1356 | AJ176: 441 | AK176: 754
A177: YBL046W | B177: 33 | C177: 62 | D177: 12 | E177: 197 | F177: 57 | G177: 32 | H177: 54 | I177: 77 | J177: 70 | K177: 93 | L177: 251 | M177: 206 | N177: 21 | O177: 15 | P177: 113 | Q177: 79 | R177: 278 | S177: 629 | T177: 167 | U177: 51 | V177: 156 | W177: 113 | X177: 81 | Y177: 241 | Z177: 49 | AA177: 91 | AB177: 65 | AC177: 78 | AD177: 458 | AE177: 76 | AF177: 45 | AG177: 22 | AH177: 50 | AI177: 179 | AJ177: 90 | AK177: 114
A178: YBL047C | B178: 3366 | C178: 2584 | D178: 547 | E178: 5755 | F178: 1901 | G178: 1053 | H178: 2012 | I178: 2247 | J178: 2274 | K178: 1786 | L178: 5173 | M178: 4565 | N178: 2060 | O178: 1164 | P178: 1964 | Q178: 2232 | R178: 4015 | S178: 8298 | T178: 6579 | U178: 1566 | V178: 2380 | W178: 5556 | X178: 2005 | Y178: 3727 | Z178: 900 | AA178: 1221 | AB178: 1298 | AC178: 830 | AD178: 3891 | AE178: 732 | AF178: 1491 | AG178: 443 | AH178: 982 | AI178: 4831 | AJ178: 2256 | AK178: 3532
A179: YBL048W | B179: 0 | C179: 10 | D179: 1 | E179: 33 | F179: 14 | G179: 7 | H179: 0 | I179: 2 | J179: 4 | K179: 4 | L179: 4 | M179: 11 | N179: 26 | O179: 6 | P179: 12 | Q179: 35 | R179: 153 | S179: 277 | T179: 25 | U179: 4 | V179: 12 | W179: 73 | X179: 7 | Y179: 57 | Z179: 0 | AA179: 1 | AB179: 0 | AC179: 4 | AD179: 28 | AE179: 0 | AF179: 2 | AG179: 0 | AH179: 2 | AI179: 7 | AJ179: 1 | AK179: 2
A180: YBL049W | B180: 33 | C180: 3 | D180: 4 | E180: 194 | F180: 69 | G180: 21 | H180: 16 | I180: 4 | J180: 12 | K180: 22 | L180: 32 | M180: 41 | N180: 51 | O180: 12 | P180: 34 | Q180: 171 | R180: 297 | S180: 1064 | T180: 117 | U180: 9 | V180: 2 | W180: 153 | X180: 44 | Y180: 114 | Z180: 21 | AA180: 21 | AB180: 9 | AC180: 15 | AD180: 39 | AE180: 6 | AF180: 13 | AG180: 2 | AH180: 22 | AI180: 17 | AJ180: 14 | AK180: 26
A181: YBL050W | B181: 981 | C181: 492 | D181: 128 | E181: 1769 | F181: 531 | G181: 251 | H181: 613 | I181: 507 | J181: 571 | K181: 1032 | L181: 1727 | M181: 2713 | N181: 486 | O181: 309 | P181: 771 | Q181: 567 | R181: 1124 | S181: 3165 | T181: 1265 | U181: 263 | V181: 1120 | W181: 1239 | X181: 273 | Y181: 1261 | Z181: 595 | AA181: 792 | AB181: 1048 | AC181: 487 | AD181: 2332 | AE181: 343 | AF181: 765 | AG181: 305 | AH181: 566 | AI181: 960 | AJ181: 380 | AK181: 838
A182: YBL051C | B182: 355 | C182: 281 | D182: 90 | E182: 547 | F182: 268 | G182: 137 | H182: 318 | I182: 329 | J182: 370 | K182: 273 | L182: 1317 | M182: 1105 | N182: 344 | O182: 253 | P182: 439 | Q182: 406 | R182: 1038 | S182: 2227 | T182: 1084 | U182: 313 | V182: 506 | W182: 978 | X182: 519 | Y182: 901 | Z182: 159 | AA182: 178 | AB182: 324 | AC182: 260 | AD182: 1229 | AE182: 206 | AF182: 271 | AG182: 151 | AH182: 198 | AI182: 693 | AJ182: 391 | AK182: 637
A183: YBL052C | B183: 97 | C183: 33 | D183: 7 | E183: 214 | F183: 119 | G183: 81 | H183: 55 | I183: 113 | J183: 76 | K183: 109 | L183: 252 | M183: 304 | N183: 26 | O183: 43 | P183: 50 | Q183: 124 | R183: 341 | S183: 660 | T183: 176 | U183: 18 | V183: 47 | W183: 474 | X183: 108 | Y183: 460 | Z183: 35 | AA183: 63 | AB183: 95 | AC183: 92 | AD183: 258 | AE183: 80 | AF183: 69 | AG183: 17 | AH183: 48 | AI183: 289 | AJ183: 147 | AK183: 177
A184: YBL053W | B184: 0 | C184: 1 | D184: 0 | E184: 0 | F184: 0 | G184: 1 | H184: 0 | I184: 1 | J184: 0 | K184: 4 | L184: 14 | M184: 5 | N184: 0 | O184: 0 | P184: 3 | Q184: 8 | R184: 4 | S184: 17 | T184: 0 | U184: 0 | V184: 5 | W184: 1 | X184: 0 | Y184: 4 | Z184: 2 | AA184: 0 | AB184: 0 | AC184: 1 | AD184: 11 | AE184: 0 | AF184: 2 | AG184: 0 | AH184: 0 | AI184: 0 | AJ184: 0 | AK184: 0
A185: YBL054W | B185: 106 | C185: 110 | D185: 26 | E185: 164 | F185: 103 | G185: 58 | H185: 202 | I185: 240 | J185: 232 | K185: 228 | L185: 1047 | M185: 822 | N185: 191 | O185: 107 | P185: 186 | Q185: 243 | R185: 456 | S185: 1177 | T185: 477 | U185: 162 | V185: 423 | W185: 333 | X185: 159 | Y185: 355 | Z185: 124 | AA185: 109 | AB185: 139 | AC185: 180 | AD185: 749 | AE185: 175 | AF185: 97 | AG185: 34 | AH185: 78 | AI185: 371 | AJ185: 223 | AK185: 478
A186: YBL055C | B186: 426 | C186: 323 | D186: 43 | E186: 929 | F186: 435 | G186: 219 | H186: 344 | I186: 380 | J186: 352 | K186: 893 | L186: 1125 | M186: 1825 | N186: 367 | O186: 201 | P186: 439 | Q186: 643 | R186: 765 | S186: 2250 | T186: 1122 | U186: 208 | V186: 597 | W186: 1215 | X186: 326 | Y186: 1052 | Z186: 406 | AA186: 401 | AB186: 483 | AC186: 382 | AD186: 1806 | AE186: 384 | AF186: 288 | AG186: 116 | AH186: 171 | AI186: 1070 | AJ186: 419 | AK186: 691
A187: YBL056W | B187: 1115 | C187: 599 | D187: 143 | E187: 2068 | F187: 866 | G187: 398 | H187: 789 | I187: 971 | J187: 873 | K187: 1656 | L187: 3484 | M187: 4110 | N187: 460 | O187: 417 | P187: 1036 | Q187: 1250 | R187: 2559 | S187: 7518 | T187: 2323 | U187: 428 | V187: 1941 | W187: 3544 | X187: 905 | Y187: 4011 | Z187: 584 | AA187: 701 | AB187: 1025 | AC187: 532 | AD187: 2500 | AE187: 554 | AF187: 602 | AG187: 266 | AH187: 558 | AI187: 1327 | AJ187: 567 | AK187: 1203
A188: YBL057C | B188: 1019 | C188: 519 | D188: 118 | E188: 2202 | F188: 1179 | G188: 527 | H188: 591 | I188: 528 | J188: 444 | K188: 1519 | L188: 2241 | M188: 3262 | N188: 891 | O188: 454 | P188: 942 | Q188: 1240 | R188: 1517 | S188: 3779 | T188: 1561 | U188: 381 | V188: 742 | W188: 1624 | X188: 290 | Y188: 1583 | Z188: 506 | AA188: 772 | AB188: 779 | AC188: 527 | AD188: 3131 | AE188: 502 | AF188: 358 | AG188: 128 | AH188: 318 | AI188: 426 | AJ188: 258 | AK188: 321
A189: YBL058W | B189: 3636 | C189: 1721 | D189: 269 | E189: 5182 | F189: 1785 | G189: 834 | H189: 1162 | I189: 969 | J189: 997 | K189: 2024 | L189: 3450 | M189: 5339 | N189: 1563 | O189: 752 | P189: 1562 | Q189: 2274 | R189: 3261 | S189: 8916 | T189: 4137 | U189: 896 | V189: 2233 | W189: 4747 | X189: 1475 | Y189: 4375 | Z189: 789 | AA189: 1086 | AB189: 1186 | AC189: 928 | AD189: 4782 | AE189: 795 | AF189: 1477 | AG189: 390 | AH189: 1024 | AI189: 4265 | AJ189: 1589 | AK189: 2928
A190: YBL059C-A | B190: 120 | C190: 38 | D190: 33 | E190: 272 | F190: 123 | G190: 61 | H190: 55 | I190: 61 | J190: 23 | K190: 115 | L190: 178 | M190: 328 | N190: 19 | O190: 28 | P190: 66 | Q190: 117 | R190: 280 | S190: 646 | T190: 192 | U190: 29 | V190: 87 | W190: 374 | X190: 83 | Y190: 235 | Z190: 30 | AA190: 91 | AB190: 58 | AC190: 70 | AD190: 327 | AE190: 60 | AF190: 132 | AG190: 22 | AH190: 70 | AI190: 290 | AJ190: 113 | AK190: 244
A191: YBL059W | B191: 184 | C191: 97 | D191: 27 | E191: 607 | F191: 406 | G191: 189 | H191: 155 | I191: 137 | J191: 188 | K191: 208 | L191: 313 | M191: 542 | N191: 166 | O191: 146 | P191: 239 | Q191: 432 | R191: 770 | S191: 3171 | T191: 340 | U191: 24 | V191: 402 | W191: 768 | X191: 135 | Y191: 714 | Z191: 80 | AA191: 87 | AB191: 105 | AC191: 104 | AD191: 543 | AE191: 84 | AF191: 92 | AG191: 67 | AH191: 70 | AI191: 385 | AJ191: 154 | AK191: 264
A192: YBL060W | B192: 95 | C192: 41 | D192: 9 | E192: 219 | F192: 66 | G192: 40 | H192: 61 | I192: 70 | J192: 61 | K192: 149 | L192: 389 | M192: 359 | N192: 52 | O192: 39 | P192: 76 | Q192: 81 | R192: 212 | S192: 463 | T192: 223 | U192: 27 | V192: 92 | W192: 221 | X192: 52 | Y192: 163 | Z192: 24 | AA192: 90 | AB192: 123 | AC192: 63 | AD192: 357 | AE192: 81 | AF192: 75 | AG192: 24 | AH192: 68 | AI192: 375 | AJ192: 163 | AK192: 222
A193: YBL061C | B193: 168 | C193: 146 | D193: 28 | E193: 509 | F193: 271 | G193: 140 | H193: 229 | I193: 249 | J193: 193 | K193: 252 | L193: 884 | M193: 1020 | N193: 132 | O193: 81 | P193: 146 | Q193: 360 | R193: 711 | S193: 1621 | T193: 361 | U193: 75 | V193: 173 | W193: 743 | X193: 212 | Y193: 555 | Z193: 135 | AA193: 283 | AB193: 248 | AC193: 261 | AD193: 1665 | AE193: 313 | AF193: 216 | AG193: 49 | AH193: 167 | AI193: 1123 | AJ193: 555 | AK193: 857
A194: YBL062W | B194: 0 | C194: 1 | D194: 0 | E194: 0 | F194: 0 | G194: 0 | H194: 0 | I194: 0 | J194: 0 | K194: 0 | L194: 3 | M194: 3 | N194: 0 | O194: 0 | P194: 0 | Q194: 0 | R194: 0 | S194: 0 | T194: 0 | U194: 0 | V194: 0 | W194: 0 | X194: 0 | Y194: 0 | Z194: 0 | AA194: 0 | AB194: 0 | AC194: 0 | AD194: 0 | AE194: 0 | AF194: 0 | AG194: 0 | AH194: 0 | AI194: 0 | AJ194: 2 | AK194: 0
A195: YBL063W | B195: 93 | C195: 68 | D195: 11 | E195: 302 | F195: 120 | G195: 58 | H195: 71 | I195: 118 | J195: 103 | K195: 113 | L195: 315 | M195: 336 | N195: 36 | O195: 26 | P195: 59 | Q195: 181 | R195: 277 | S195: 613 | T195: 208 | U195: 45 | V195: 54 | W195: 379 | X195: 189 | Y195: 252 | Z195: 50 | AA195: 64 | AB195: 66 | AC195: 77 | AD195: 363 | AE195: 106 | AF195: 68 | AG195: 26 | AH195: 51 | AI195: 559 | AJ195: 258 | AK195: 381
A196: YBL064C | B196: 1263 | C196: 435 | D196: 161 | E196: 2411 | F196: 523 | G196: 276 | H196: 759 | I196: 510 | J196: 584 | K196: 1369 | L196: 1939 | M196: 3517 | N196: 817 | O196: 365 | P196: 1000 | Q196: 761 | R196: 1725 | S196: 4011 | T196: 1863 | U196: 280 | V196: 665 | W196: 1555 | X196: 244 | Y196: 895 | Z196: 260 | AA196: 384 | AB196: 272 | AC196: 175 | AD196: 685 | AE196: 113 | AF196: 818 | AG196: 233 | AH196: 441 | AI196: 616 | AJ196: 242 | AK196: 407
A197: YBL065W | B197: 4 | C197: 0 | D197: 0 | E197: 2 | F197: 0 | G197: 0 | H197: 3 | I197: 0 | J197: 0 | K197: 0 | L197: 0 | M197: 3 | N197: 0 | O197: 2 | P197: 4 | Q197: 17 | R197: 30 | S197: 70 | T197: 0 | U197: 0 | V197: 0 | W197: 7 | X197: 0 | Y197: 14 | Z197: 0 | AA197: 0 | AB197: 0 | AC197: 0 | AD197: 0 | AE197: 3 | AF197: 0 | AG197: 0 | AH197: 0 | AI197: 0 | AJ197: 0 | AK197: 0
A198: YBL066C | B198: 162 | C198: 133 | D198: 35 | E198: 402 | F198: 188 | G198: 117 | H198: 131 | I198: 177 | J198: 144 | K198: 154 | L198: 652 | M198: 588 | N198: 104 | O198: 81 | P198: 147 | Q198: 380 | R198: 725 | S198: 1781 | T198: 587 | U198: 125 | V198: 228 | W198: 1329 | X198: 279 | Y198: 554 | Z198: 90 | AA198: 130 | AB198: 149 | AC198: 150 | AD198: 793 | AE198: 132 | AF198: 134 | AG198: 51 | AH198: 74 | AI198: 658 | AJ198: 246 | AK198: 401
A199: YBL067C | B199: 391 | C199: 188 | D199: 47 | E199: 428 | F199: 221 | G199: 145 | H199: 254 | I199: 474 | J199: 346 | K199: 553 | L199: 1384 | M199: 1247 | N199: 128 | O199: 92 | P199: 327 | Q199: 379 | R199: 914 | S199: 3037 | T199: 738 | U199: 125 | V199: 289 | W199: 1208 | X199: 230 | Y199: 876 | Z199: 190 | AA199: 253 | AB199: 335 | AC199: 186 | AD199: 929 | AE199: 156 | AF199: 313 | AG199: 118 | AH199: 207 | AI199: 814 | AJ199: 335 | AK199: 559
A200: YBL068W | B200: 337 | C200: 355 | D200: 75 | E200: 478 | F200: 347 | G200: 128 | H200: 299 | I200: 393 | J200: 325 | K200: 461 | L200: 1289 | M200: 1557 | N200: 373 | O200: 175 | P200: 558 | Q200: 586 | R200: 896 | S200: 2565 | T200: 726 | U200: 219 | V200: 615 | W200: 833 | X200: 119 | Y200: 588 | Z200: 272 | AA200: 360 | AB200: 514 | AC200: 407 | AD200: 2173 | AE200: 375 | AF200: 298 | AG200: 153 | AH200: 238 | AI200: 1079 | AJ200: 486 | AK200: 797
... 2048 more rows

Sheet EAP1
A1: name | B1: genes | C1: logFC | D1: logCPM | E1: LR | F1: PValue | G1: FDR
A2: RCL1 | B2: YOL010W | C2: 2.29586651 | D2: 7.314982691 | E2: 221.2123845 | F2: 4.919657174e-50 | G2: 2.459385375e-48
A3: NOT3 | B3: YIL038C | C3: 1.93544073 | D3: 7.54956503 | E3: 195.9742841 | F3: 1.578981105e-44 | G3: 6.258404395e-43
A4: POL2 | B4: YNL262W | C4: 1.88291139 | D4: 7.545274609 | E4: 188.7951272 | F4: 5.825497678e-43 | G4: 2.214088124e-41
A5: LPX1 | B5: YOR084W | C5: 2.221466684 | D5: 7.092476467 | E5: 185.7698056 | F5: 2.665290889e-42 | G5: 9.794502743e-41
A6: HO | B6: YDL227C | C6: 2.009812719 | D6: 8.53352321 | E6: 176.7073682 | F6: 2.537297571e-40 | G6: 8.481604952e-39
A7: MTO1 | B7: YGL236C | C7: 1.807117568 | D7: 7.28990985 | E7: 159.3280764 | F7: 1.586563381e-36 | G7: 4.44638394e-35
A8: SKI3 | B8: YPR189W | C8: 1.77270028 | D8: 8.732610813 | E8: 153.3697775 | F8: 3.180234904e-35 | G8: 8.608352917e-34
A9: PKP1 | B9: YIL042C | C9: 1.963964585 | D9: 6.763702854 | E9: 139.5961592 | F9: 3.262310261e-32 | G9: 7.870678104e-31
A10: NUP170 | B10: YBL079W | C10: 1.561227702 | D10: 8.117977139 | E10: 138.6434762 | F10: 5.270649467e-32 | G10: 1.260639392e-30
A11: GIS3 | B11: YLR094C | C11: 1.722632603 | D11: 6.966856369 | E11: 136.4759588 | F11: 1.57003073e-31 | G11: 3.72311988e-30
A12: OPI1 | B12: YHL020C | C12: 1.746041442 | D12: 7.409375654 | E12: 134.3545041 | F12: 4.570141674e-31 | G12: 1.05227038e-29
A13: MOT2 | B13: YER068W | C13: 1.701710635 | D13: 7.149839021 | E13: 132.0494813 | F13: 1.459359766e-30 | G13: 3.265317477e-29
A14: DUS1 | B14: YML080W | C14: 2.206780639 | D14: 6.127205127 | E14: 131.3607236 | F14: 2.064634328e-30 | G14: 4.564404736e-29
A15: IMH1 | B15: YLR309C | C15: 1.973080796 | D15: 6.479512777 | E15: 129.0239552 | F15: 6.700479143e-30 | G15: 1.441122433e-28
A16: MLP2 | B16: YIL149C | C16: 1.941538115 | D16: 6.658145706 | E16: 127.5475847 | F16: 1.40979893e-29 | G16: 2.997308148e-28
A17: PRP19 | B17: YLL036C | C17: 1.55396513 | D17: 7.374055396 | E17: 126.4509499 | F17: 2.449824808e-29 | G17: 5.129840701e-28
A18: CYM1 | B18: YDR430C | C18: 1.489563256 | D18: 8.126786907 | E18: 126.189889 | F18: 2.794252287e-29 | G18: 5.80723069e-28
A19: MTF2 | B19: YDL044C | C19: 2.420571537 | D19: 5.78790074 | E19: 125.9176966 | F19: 3.205037932e-29 | G19: 6.636102792e-28
A20: MYO1 | B20: YHR023W | C20: 1.780136188 | D20: 7.177173743 | E20: 124.8714244 | F20: 5.430156286e-29 | G20: 1.111879603e-27
A21: CBK1 | B21: YNL161W | C21: 1.664554888 | D21: 6.963884414 | E21: 124.6169083 | F21: 6.173280613e-29 | G21: 1.259394637e-27
A22: PRK1 | B22: YIL095W | C22: 1.909557596 | D22: 6.374882802 | E22: 121.1758232 | F22: 3.49722428e-28 | G22: 6.980610621e-27
A23: SMC1 | B23: YFL008W | C23: 1.80568428 | D23: 6.61527708 | E23: 119.9725825 | F23: 6.414109033e-28 | G23: 1.257663994e-26
A24: KIP2 | B24: YPL155C | C24: 1.722115335 | D24: 6.90807163 | E24: 119.9395405 | F24: 6.521840453e-28 | G24: 1.274284953e-26
A25: ABF1 | B25: YKL112W | C25: 1.526804149 | D25: 7.293065889 | E25: 119.2214345 | F25: 9.366729442e-28 | G25: 1.817342016e-26
A26: SOK2 | B26: YMR016C | C26: 2.133530502 | D26: 6.20166254 | E26: 117.9693726 | F26: 1.760861381e-27 | G26: 3.380975711e-26
A27: SMC5 | B27: YOL034W | C27: 2.143869321 | D27: 6.147137923 | E27: 116.6556264 | F27: 3.415022231e-27 | G27: 6.489711767e-26
A28: HOS3 | B28: YPL116W | C28: 1.692250208 | D28: 6.667243073 | E28: 115.3972323 | F28: 6.441196111e-27 | G28: 1.203440984e-25
A29: THP2 | B29: YHR167W | C29: 2.168959118 | D29: 5.988791661 | E29: 113.0142959 | F29: 2.142246822e-26 | G29: 3.949278277e-25
A30: SGV1 | B30: YPR161C | C30: 1.727726963 | D30: 6.665753321 | E30: 111.2881031 | F30: 5.116732689e-26 | G30: 9.339720293e-25
A31: RML2 | B31: YEL050C | C31: 1.43782434 | D31: 7.613846808 | E31: 109.5762697 | F31: 1.21344576e-25 | G31: 2.165083769e-24
A32: NUP100 | B32: YKL068W | C32: 1.444904606 | D32: 7.494348819 | E32: 109.2056305 | F32: 1.462939975e-25 | G32: 2.593563553e-24
A33: YGR031W | B33: YGR031W | C33: 1.637037122 | D33: 6.718826913 | E33: 108.9209106 | F33: 1.688921981e-25 | G33: 2.956412641e-24
A34: YPL247C | B34: YPL247C | C34: 1.414337658 | D34: 7.710732656 | E34: 108.8161158 | F34: 1.780618354e-25 | G34: 3.107123034e-24
A35: NUP192 | B35: YJL039C | C35: 1.336456954 | D35: 8.4528191 | E35: 107.7091951 | F35: 3.112551796e-25 | G35: 5.397359349e-24
A36: APL3 | B36: YBL037W | C36: 1.613343862 | D36: 6.806450789 | E36: 106.4966356 | F36: 5.738984875e-25 | G36: 9.859327267e-24
A37: YNR040W | B37: YNR040W | C37: 1.726174654 | D37: 6.443890583 | E37: 106.325944 | F37: 6.255216522e-25 | G37: 1.071302361e-23
A38: UTP10 | B38: YJL109C | C38: 1.351970756 | D38: 9.100556818 | E38: 105.0239378 | F38: 1.206692156e-24 | G38: 2.047686474e-23
A39: GAL11 | B39: YOL051W | C39: 1.470441528 | D39: 7.090681668 | E39: 104.3052597 | F39: 1.734280231e-24 | G39: 2.907408157e-23
A40: VIK1 | B40: YPL253C | C40: 2.571582632 | D40: 5.152877666 | E40: 104.231925 | F40: 1.799673194e-24 | G40: 3.007947756e-23
A41: UTP22 | B41: YGR090W | C41: 1.320835806 | D41: 8.160533501 | E41: 104.0097503 | F41: 2.013228661e-24 | G41: 3.354776529e-23
A42: MRM1 | B42: YOR201C | C42: 1.434566984 | D42: 7.881916927 | E42: 102.9247353 | F42: 3.481258273e-24 | G42: 5.749256594e-23
A43: LSB5 | B43: YCL034W | C43: 1.310547849 | D43: 8.129830429 | E43: 102.6227737 | F43: 4.054455387e-24 | G43: 6.676015711e-23
A44: WHI5 | B44: YOR083W | C44: 1.768977055 | D44: 6.377100558 | E44: 101.5022952 | F44: 7.138068203e-24 | G44: 1.158162002e-22
A45: DBP7 | B45: YKR024C | C45: 1.585102998 | D45: 6.676510141 | E45: 100.9945052 | F45: 9.223897034e-24 | G45: 1.48788967e-22
A46: TOP2 | B46: YNL088W | C46: 1.34505801 | D46: 7.574243391 | E46: 100.537463 | F46: 1.161786026e-23 | G46: 1.857853216e-22
A47: CTR9 | B47: YOL145C | C47: 1.361271736 | D47: 7.71602935 | E47: 100.4572013 | F47: 1.209831545e-23 | G47: 1.92359749e-22
A48: RNR1 | B48: YER070W | C48: 1.416375613 | D48: 10.89819487 | E48: 100.3852779 | F48: 1.254571574e-23 | G48: 1.989033618e-22
A49: SLH1 | B49: YGR271W | C49: 1.315806455 | D49: 8.016935367 | E49: 100.1337473 | F49: 1.424456e-23 | G49: 2.251939129e-22
A50: DCP2 | B50: YNL118C | C50: 1.39929964 | D50: 7.196514198 | E50: 97.57622179 | F50: 5.182252282e-23 | G50: 7.94373423e-22
A51: NAB6 | B51: YML117W | C51: 1.3541321 | D51: 7.668765572 | E51: 97.35354266 | F51: 5.79908047e-23 | G51: 8.86476516e-22
A52: BRE1 | B52: YDL074C | C52: 1.500467464 | D52: 6.883658922 | E52: 97.33803791 | F52: 5.844668157e-23 | G52: 8.909907583e-22
A53: SNF5 | B53: YBR289W | C53: 1.690357667 | D53: 6.755999108 | E53: 95.51554629 | F53: 1.467344611e-22 | G53: 2.200620337e-21
A54: MCM7 | B54: YBR202W | C54: 1.274433712 | D54: 8.040105975 | E54: 95.29414456 | F54: 1.640978045e-22 | G54: 2.454390073e-21
A55: GLC3 | B55: YEL011W | C55: 1.424681667 | D55: 7.5531764 | E55: 94.38257791 | F55: 2.600712122e-22 | G55: 3.868995057e-21
A56: SOF1 | B56: YLL011W | C56: 1.681303215 | D56: 6.596265468 | E56: 93.44998305 | F56: 4.165962307e-22 | G56: 6.115588583e-21
A57: YLR419W | B57: YLR419W | C57: 1.348863728 | D57: 7.236731107 | E57: 93.24876856 | F57: 4.611763624e-22 | G57: 6.752157348e-21
A58: CDC39 | B58: YCR093W | C58: 1.314283559 | D58: 8.939993915 | E58: 90.53271447 | F58: 1.819436056e-21 | G58: 2.622350824e-20
A59: NUP116 | B59: YMR047C | C59: 1.237287349 | D59: 8.5970057 | E59: 89.8736824 | F59: 2.538615474e-21 | G59: 3.639994126e-20
A60: YIR016W | B60: YIR016W | C60: 1.573537987 | D60: 6.7909677 | E60: 89.60337979 | F60: 2.910265669e-21 | G60: 4.162129948e-20
A61: UTP4 | B61: YDR324C | C61: 1.282680773 | D61: 7.397104322 | E61: 89.34844735 | F61: 3.310519023e-21 | G61: 4.722383048e-20
A62: CDC14 | B62: YFR028C | C62: 1.277826748 | D62: 7.449466248 | E62: 88.94428154 | F62: 4.060907784e-21 | G62: 5.763165548e-20
A63: UTP15 | B63: YMR093W | C63: 1.239853502 | D63: 7.937416888 | E63: 88.87001682 | F63: 4.216256493e-21 | G63: 5.968369204e-20
A64: SMC3 | B64: YJL074C | C64: 1.699155574 | D64: 6.247340665 | E64: 87.86284217 | F64: 7.015427446e-21 | G64: 9.855343518e-20
A65: BCS1 | B65: YDR375C | C65: 1.341911111 | D65: 7.020764943 | E65: 87.41761381 | F65: 8.786452164e-21 | G65: 1.231212703e-19
A66: DCC1 | B66: YCL016C | C66: 1.664926628 | D66: 6.249347699 | E66: 86.7675017 | F66: 1.220588509e-20 | G66: 1.706056836e-19
A67: EBP2 | B67: YKL172W | C67: 1.557811452 | D67: 6.427988515 | E67: 85.98803294 | F67: 1.81027836e-20 | G67: 2.498814582e-19
A68: MSS51 | B68: YLR203C | C68: 1.241250849 | D68: 7.608126955 | E68: 85.22789593 | F68: 2.658841914e-20 | G68: 3.625040241e-19
A69: SMY2 | B69: YBR172C | C69: 1.54247664 | D69: 6.436754591 | E69: 84.65639618 | F69: 3.549936404e-20 | G69: 4.828087526e-19
A70: FAR1 | B70: YJL157C | C70: 1.267217286 | D70: 7.759475638 | E70: 84.00820088 | F70: 4.927266106e-20 | G70: 6.651595525e-19
A71: YAK1 | B71: YJL141C | C71: 1.278171729 | D71: 7.572354473 | E71: 83.71852067 | F71: 5.704826468e-20 | G71: 7.646396635e-19
A72: RUP1 | B72: YOR138C | C72: 1.297458338 | D72: 7.397579754 | E72: 83.44846577 | F72: 6.539881007e-20 | G72: 8.681770266e-19
A73: MRPL7 | B73: YDR237W | C73: 1.220621581 | D73: 7.652385884 | E73: 83.2266751 | F73: 7.316373716e-20 | G73: 9.666323273e-19
A74: PDC2 | B74: YDR081C | C74: 1.67033818 | D74: 6.287834169 | E74: 82.77417907 | F74: 9.198373341e-20 | G74: 1.206661316e-18
A75: RSA4 | B75: YCR072C | C75: 1.30595246 | D75: 7.291002628 | E75: 82.73360468 | F75: 9.389137197e-20 | G75: 1.228781186e-18
A76: HIR1 | B76: YBL008W | C76: 1.421504084 | D76: 6.684523871 | E76: 82.52563321 | F76: 1.043086115e-19 | G76: 1.361902319e-18
A77: KEL1 | B77: YHR158C | C77: 1.253864803 | D77: 7.540800304 | E77: 82.20390288 | F77: 1.227472542e-19 | G77: 1.587702829e-18
A78: EEB1 | B78: YPL095C | C78: 1.272278879 | D78: 10.38238245 | E78: 82.15012811 | F78: 1.261326905e-19 | G78: 1.627698371e-18
A79: ARP7 | B79: YPR034W | C79: 1.299432269 | D79: 7.273389782 | E79: 81.99354463 | F79: 1.365318865e-19 | G79: 1.753739441e-18
A80: STU2 | B80: YLR045C | C80: 1.32858931 | D80: 6.94312375 | E80: 81.58577812 | F80: 1.678174348e-19 | G80: 2.150621122e-18
A81: CIN8 | B81: YEL061C | C81: 1.841856002 | D81: 5.802454224 | E81: 81.32866755 | F81: 1.911337807e-19 | G81: 2.44378191e-18
A82: GFD2 | B82: YCL036W | C82: 1.515643922 | D82: 6.425034863 | E82: 80.02545833 | F82: 3.696165991e-19 | G82: 4.650799339e-18
A83: GYP1 | B83: YOR070C | C83: 1.363196772 | D83: 6.751040497 | E83: 79.77721272 | F83: 4.190984484e-19 | G83: 5.249610136e-18
A84: PRT1 | B84: YOR361C | C84: 1.243583263 | D84: 10.23357838 | E84: 79.57283842 | F84: 4.647711873e-19 | G84: 5.808593059e-18
A85: SPB1 | B85: YCL054W | C85: 1.433999774 | D85: 6.93461914 | E85: 78.7972807 | F85: 6.882173465e-19 | G85: 8.486484568e-18
A86: ECM16 | B86: YMR128W | C86: 1.183421644 | D86: 7.519510662 | E86: 77.95651588 | F86: 1.053340566e-18 | G86: 1.278990547e-17
A87: RTT10 | B87: YPL183C | C87: 1.207135394 | D87: 7.788645029 | E87: 77.70393559 | F87: 1.197025996e-18 | G87: 1.44084539e-17
A88: RPB2 | B88: YOR151C | C88: 1.221389107 | D88: 9.793765304 | E88: 77.3540891 | F88: 1.42898564e-18 | G88: 1.71632929e-17
A89: SMC4 | B89: YLR086W | C89: 1.600455236 | D89: 6.177794305 | E89: 77.32958822 | F89: 1.446822587e-18 | G89: 1.733999684e-17
A90: SIF2 | B90: YBR103W | C90: 1.338768351 | D90: 6.822685495 | E90: 77.14862387 | F90: 1.585650807e-18 | G90: 1.88410628e-17
A91: GIN4 | B91: YDR507C | C91: 1.285958765 | D91: 7.257497377 | E91: 75.98141476 | F91: 2.863471595e-18 | G91: 3.34513766e-17
A92: YDR089W | B92: YDR089W | C92: 1.355649455 | D92: 7.040351665 | E92: 75.91035342 | F92: 2.968395782e-18 | G92: 3.460426091e-17
A93: ORC3 | B93: YLL004W | C93: 1.874138783 | D93: 5.715158202 | E93: 75.88978671 | F93: 2.999474632e-18 | G93: 3.48932594e-17
A94: SKS1 | B94: YPL026C | C94: 1.573641062 | D94: 6.408744768 | E94: 75.39570538 | F94: 3.852269959e-18 | G94: 4.444125988e-17
A95: GDE1 | B95: YPL110C | C95: 1.59367716 | D95: 6.47027747 | E95: 75.39159612 | F95: 3.860295662e-18 | G95: 4.444145359e-17
A96: SNF2 | B96: YOR290C | C96: 1.171395646 | D96: 7.549873003 | E96: 75.25637435 | F96: 4.133935546e-18 | G96: 4.749318497e-17
A97: KIP3 | B97: YGL216W | C97: 1.337878371 | D97: 6.714490209 | E97: 75.17693743 | F97: 4.303648687e-18 | G97: 4.934079869e-17
A98: MCM6 | B98: YGL201C | C98: 1.155321078 | D98: 7.509385273 | E98: 75.09272259 | F98: 4.491186984e-18 | G98: 5.12790053e-17
A99: RMD9 | B99: YGL107C | C99: 1.312696962 | D99: 6.796732351 | E99: 75.03898179 | F99: 4.615113348e-18 | G99: 5.258575764e-17
A100: TBF1 | B100: YPL128C | C100: 1.282550421 | D100: 7.274084519 | E100: 74.33534054 | F100: 6.591291035e-18 | G100: 7.449098565e-17
A101: MLP1 | B101: YKR095W | C101: 1.267768958 | D101: 6.962917749 | E101: 73.55620385 | F101: 9.781102528e-18 | G101: 1.094260845e-16
A102: RKR1 | B102: YMR247C | C102: 1.137542163 | D102: 7.687950845 | E102: 73.54953101 | F102: 9.814224701e-18 | G102: 1.095757201e-16
A103: SBE2 | B103: YDR351W | C103: 1.48547294 | D103: 6.309728239 | E103: 73.39344438 | F103: 1.06218293e-17 | G103: 1.1764577e-16
A104: PBS2 | B104: YJL128C | C104: 1.194779873 | D104: 7.323877336 | E104: 73.34167036 | F104: 1.090413507e-17 | G104: 1.205319631e-16
A105: UBS1 | B105: YBR165W | C105: 1.773795179 | D105: 5.793118949 | E105: 73.09642678 | F105: 1.234678491e-17 | G105: 1.353998211e-16
A106: BEM2 | B106: YER155C | C106: 1.129203326 | D106: 7.900946582 | E106: 72.45273107 | F106: 1.710810223e-17 | G106: 1.865085644e-16
A107: YTA6 | B107: YPL074W | C107: 1.684091592 | D107: 6.012849358 | E107: 72.40780248 | F107: 1.750205993e-17 | G107: 1.904292756e-16
A108: HST1 | B108: YOL068C | C108: 1.2336671 | D108: 7.103540608 | E108: 71.81440627 | F108: 2.36419872e-17 | G108: 2.567306986e-16
A109: TAH18 | B109: YPR048W | C109: 1.304406536 | D109: 6.910031363 | E109: 71.2766364 | F109: 3.104907593e-17 | G109: 3.358505309e-16
A110: PAC1 | B110: YOR269W | C110: 1.588267979 | D110: 6.451850955 | E110: 70.87409286 | F110: 3.807652831e-17 | G110: 4.110635323e-16
A111: CAC2 | B111: YML102W | C111: 1.262551027 | D111: 7.322048802 | E111: 70.83545005 | F111: 3.882968103e-17 | G111: 4.183803884e-16
A112: SDS23 | B112: YGL056C | C112: 1.238382615 | D112: 7.058753907 | E112: 70.75588995 | F112: 4.042757174e-17 | G112: 4.339121771e-16
A113: OSH3 | B113: YHR073W | C113: 1.108818887 | D113: 7.586763703 | E113: 70.73536797 | F113: 4.085030198e-17 | G113: 4.376029453e-16
A114: CAT8 | B114: YMR280C | C114: 2.58592145 | D114: 4.578992034 | E114: 69.89348922 | F114: 6.259471762e-17 | G114: 6.666757929e-16
A115: MET12 | B115: YPL023C | C115: 1.108913859 | D115: 7.729026925 | E115: 69.86921098 | F115: 6.336990555e-17 | G115: 6.736390917e-16
A116: STH1 | B116: YIL126W | C116: 1.101236444 | D116: 8.198150808 | E116: 69.70620223 | F116: 6.882933542e-17 | G116: 7.302753007e-16
A117: CTK2 | B117: YJL006C | C117: 1.902957772 | D117: 5.260180137 | E117: 69.18913388 | F117: 8.945956495e-17 | G117: 9.473494769e-16
A118: YHP1 | B118: YDR451C | C118: 1.544882371 | D118: 6.492723674 | E118: 69.04087879 | F118: 9.644354441e-17 | G118: 1.019362339e-15
A119: BDF1 | B119: YLR399C | C119: 1.047063823 | D119: 8.284159032 | E119: 68.78029638 | F119: 1.100669115e-16 | G119: 1.156744871e-15
A120: YSH1 | B120: YLR277C | C120: 1.286392371 | D120: 6.692302759 | E120: 68.66431807 | F120: 1.167340772e-16 | G120: 1.219882099e-15
A121: CUE3 | B121: YGL110C | C121: 1.655005313 | D121: 5.987006635 | E121: 68.6505666 | F121: 1.175509264e-16 | G121: 1.226109192e-15
A122: MYO3 | B122: YKL129C | C122: 1.169987296 | D122: 7.333845928 | E122: 68.50832261 | F122: 1.263432584e-16 | G122: 1.31534473e-15
A123: MON2 | B123: YNL297C | C123: 1.082768077 | D123: 7.945222747 | E123: 68.22943614 | F123: 1.455368868e-16 | G123: 1.506686912e-15
A124: RAD50 | B124: YNL250W | C124: 1.895106963 | D124: 5.554864985 | E124: 67.92011182 | F124: 1.702556899e-16 | G124: 1.752780748e-15
A125: SEC16 | B125: YPL085W | C125: 1.086236516 | D125: 8.255218409 | E125: 67.90576651 | F125: 1.714988795e-16 | G125: 1.762309783e-15
A126: MSI1 | B126: YBR195C | C126: 1.384957398 | D126: 6.589112714 | E126: 67.72564614 | F126: 1.879034711e-16 | G126: 1.920214293e-15
A127: ECM25 | B127: YJL201W | C127: 1.604405216 | D127: 5.943702969 | E127: 67.49453616 | F127: 2.112717725e-16 | G127: 2.151095533e-15
A128: SEC8 | B128: YPR055W | C128: 1.365366132 | D128: 6.44927775 | E128: 67.32650836 | F128: 2.300671066e-16 | G128: 2.338172847e-15
A129: MET30 | B129: YIL046W | C129: 1.110287251 | D129: 7.5121892 | E129: 67.30731713 | F129: 2.323175626e-16 | G129: 2.356727888e-15
A130: SRB8 | B130: YCR081W | C130: 1.621403827 | D130: 5.914847115 | E130: 67.24175741 | F130: 2.40172843e-16 | G130: 2.431969171e-15
A131: SLA2 | B131: YNL243W | C131: 1.083606984 | D131: 9.38596485 | E131: 66.98446349 | F131: 2.736553288e-16 | G131: 2.765962513e-15
A132: POL3 | B132: YDL102W | C132: 1.10355143 | D132: 7.469884087 | E132: 66.48712421 | F132: 3.521865879e-16 | G132: 3.533966322e-15
A133: COQ2 | B133: YNR041C | C133: 1.257503592 | D133: 7.256693783 | E133: 66.35137435 | F133: 3.772957179e-16 | G133: 3.765492695e-15
A134: YLR177W | B134: YLR177W | C134: 1.065635088 | D134: 8.253376468 | E134: 66.16112451 | F134: 4.155278005e-16 | G134: 4.124801011e-15
A135: TFC4 | B135: YGR047C | C135: 1.457360343 | D135: 6.496448469 | E135: 66.11558015 | F135: 4.252411043e-16 | G135: 4.206172706e-15
A136: MTG2 | B136: YHR168W | C136: 1.773435366 | D136: 5.52611701 | E136: 65.08130537 | F136: 7.187067295e-16 | G136: 7.03369249e-15
A137: EPL1 | B137: YFL024C | C137: 1.654393001 | D137: 5.805705757 | E137: 64.588629 | F137: 9.228640999e-16 | G137: 8.984162965e-15
A138: KIN2 | B138: YLR096W | C138: 1.074828214 | D138: 7.53452864 | E138: 64.46672899 | F138: 9.817623903e-16 | G138: 9.540804735e-15
A139: YOR093C | B139: YOR093C | C139: 1.419676526 | D139: 6.378751618 | E139: 64.33078236 | F139: 1.051894017e-15 | G139: 1.016891968e-14
A140: EIS1 | B140: YMR031C | C140: 1.135443392 | D140: 7.186670148 | E140: 64.14410889 | F140: 1.156432723e-15 | G140: 1.116007857e-14
A141: PAM1 | B141: YDR251W | C141: 1.171080193 | D141: 6.936236607 | E141: 63.98811358 | F141: 1.251721493e-15 | G141: 1.2058685e-14
A142: YMR111C | B142: YMR111C | C142: 2.477153311 | D142: 4.831269686 | E142: 63.92280556 | F142: 1.293911162e-15 | G142: 1.244352346e-14
A143: PCL1 | B143: YNL289W | C143: 1.403659661 | D143: 6.347974669 | E143: 63.82141437 | F143: 1.362247262e-15 | G143: 1.307804508e-14
A144: SPA2 | B144: YLL021W | C144: 1.17493222 | D144: 7.059635382 | E144: 63.66423103 | F144: 1.475393004e-15 | G144: 1.413982e-14
A145: DBP10 | B145: YDL031W | C145: 1.096513488 | D145: 7.319945079 | E145: 63.64234359 | F145: 1.491876942e-15 | G145: 1.427314681e-14
A146: XDJ1 | B146: YLR090W | C146: 1.122193555 | D146: 7.163924338 | E146: 63.57419266 | F146: 1.544392367e-15 | G146: 1.475014328e-14
A147: CFT1 | B147: YDR301W | C147: 1.041165864 | D147: 7.756935177 | E147: 63.15583485 | F147: 1.909829206e-15 | G147: 1.814664771e-14
A148: SRO77 | B148: YBL106C | C148: 1.172242395 | D148: 7.269665921 | E148: 63.03859007 | F148: 2.026961623e-15 | G148: 1.922668384e-14
A149: SRO7 | B149: YPR032W | C149: 1.19911384 | D149: 7.00372506 | E149: 62.92948813 | F149: 2.142405951e-15 | G149: 2.025248828e-14
A150: FMP48 | B150: YGR052W | C150: 1.194172549 | D150: 8.733699842 | E150: 62.70915595 | F150: 2.395992176e-15 | G150: 2.257276839e-14
A151: ADA2 | B151: YDR448W | C151: 1.79839705 | D151: 5.442939922 | E151: 62.66282387 | F151: 2.453025267e-15 | G151: 2.303187345e-14
A152: CLB3 | B152: YDL155W | C152: 1.331635884 | D152: 6.352478861 | E152: 62.62028848 | F152: 2.506579838e-15 | G152: 2.349495189e-14
A153: RRP4 | B153: YHR069C | C153: 1.124914441 | D153: 7.182005678 | E153: 62.60587714 | F153: 2.52498861e-15 | G153: 2.362759156e-14
A154: OXP1 | B154: YKL215C | C154: 1.094982492 | D154: 7.660334538 | E154: 62.59222246 | F154: 2.542555606e-15 | G154: 2.375192097e-14
A155: MCM3 | B155: YEL032W | C155: 1.010847481 | D155: 8.482991636 | E155: 62.50524616 | F155: 2.657358277e-15 | G155: 2.478265727e-14
A156: IQG1 | B156: YPL242C | C156: 1.201002669 | D156: 6.84686971 | E156: 62.10637283 | F156: 3.253966619e-15 | G156: 3.024499291e-14
A157: CYK3 | B157: YDL117W | C157: 1.22979462 | D157: 6.773348479 | E157: 61.95075956 | F157: 3.521539436e-15 | G157: 3.256837055e-14
A158: WHI4 | B158: YDL224C | C158: 1.206702525 | D158: 6.711211081 | E158: 61.80962346 | F158: 3.783208624e-15 | G158: 3.475666333e-14
A159: HSF1 | B159: YGL073W | C159: 1.613859577 | D159: 5.842510544 | E159: 61.39703771 | F159: 4.665118763e-15 | G159: 4.257824612e-14
A160: LAA1 | B160: YJL207C | C160: 1.049283729 | D160: 7.459371972 | E160: 61.33244507 | F160: 4.820704158e-15 | G160: 4.39246098e-14
A161: FMP43 | B161: YGR243W | C161: 1.185385088 | D161: 7.477346916 | E161: 61.19781001 | F161: 5.161891493e-15 | G161: 4.695628835e-14
A162: PUF3 | B162: YLL013C | C162: 1.192008582 | D162: 6.858372988 | E162: 60.92689164 | F162: 5.923416001e-15 | G162: 5.379547527e-14
A163: CWC22 | B163: YGR278W | C163: 1.881469333 | D163: 5.183051614 | E163: 60.49603151 | F163: 7.372696589e-15 | G163: 6.652210304e-14
A164: CYT2 | B164: YKL087C | C164: 1.285108099 | D164: 6.546925632 | E164: 60.46872974 | F164: 7.475665913e-15 | G164: 6.734167233e-14
A165: PUF4 | B165: YGL014W | C165: 1.104482212 | D165: 7.193083272 | E165: 60.4109469 | F165: 7.698365169e-15 | G165: 6.923537815e-14
A166: ASK1 | B166: YKL052C | C166: 1.433793916 | D166: 6.496668182 | E166: 60.25119522 | F166: 8.349211912e-15 | G166: 7.496727654e-14
A167: LOS1 | B167: YKL205W | C167: 1.099864214 | D167: 7.141855916 | E167: 60.17526204 | F167: 8.677599079e-15 | G167: 7.766451175e-14
A168: MRPL3 | B168: YMR024W | C168: 1.163009395 | D168: 6.772717813 | E168: 60.09437923 | F168: 9.041617651e-15 | G168: 8.079216803e-14
A169: ILV5 | B169: YLR355C | C169: 1.137452563 | D169: 11.40020988 | E169: 60.0524268 | F169: 9.236404894e-15 | G169: 8.24000173e-14
A170: YOR062C | B170: YOR062C | C170: 1.194806563 | D170: 7.07584846 | E170: 59.69675756 | F170: 1.106587076e-14 | G170: 9.833800367e-14
A171: RIO1 | B171: YOR119C | C171: 1.51727819 | D171: 5.955700898 | E171: 59.64786868 | F171: 1.134420506e-14 | G171: 1.005574982e-13
A172: FAP1 | B172: YNL023C | C172: 1.101343583 | D172: 7.183135401 | E172: 59.63867359 | F172: 1.13973319e-14 | G172: 1.008672962e-13
A173: TAF1 | B173: YGR274C | C173: 1.432269892 | D173: 6.423676023 | E173: 59.60583163 | F173: 1.158912472e-14 | G173: 1.023129678e-13
A174: MSY1 | B174: YPL097W | C174: 1.57004314 | D174: 5.767667329 | E174: 59.47811069 | F174: 1.236619828e-14 | G174: 1.087480733e-13
A175: SET2 | B175: YJL168C | C175: 1.451423379 | D175: 6.253651068 | E175: 59.32514482 | F175: 1.336577324e-14 | G175: 1.17352335e-13
A176: YPL272C | B176: YPL272C | C176: 1.013466004 | D176: 8.197304656 | E176: 59.11098836 | F176: 1.490247288e-14 | G176: 1.304318959e-13
A177: RIB1 | B177: YBL033C | C177: 1.014832116 | D177: 7.672676169 | E177: 58.56404748 | F177: 1.967796547e-14 | G177: 1.708811118e-13
A178: TRL1 | B178: YJL087C | C178: 1.479801737 | D178: 6.089141163 | E178: 58.46146025 | F178: 2.073124663e-14 | G178: 1.794659712e-13
A179: INP52 | B179: YNL106C | C179: 1.284627582 | D179: 6.611746509 | E179: 57.97946143 | F179: 2.648688214e-14 | G179: 2.271649289e-13
A180: AVO1 | B180: YOL078W | C180: 1.532031585 | D180: 5.825068883 | E180: 57.93843895 | F180: 2.704503533e-14 | G180: 2.315939831e-13
A181: BUL1 | B181: YMR275C | C181: 1.219103104 | D181: 6.50908082 | E181: 57.90398409 | F181: 2.75229123e-14 | G181: 2.353230206e-13
A182: MSG5 | B182: YNL053W | C182: 1.202945703 | D182: 6.603961827 | E182: 57.87545164 | F182: 2.792503595e-14 | G182: 2.383938838e-13
A183: MSB1 | B183: YOR188W | C183: 1.305256131 | D183: 6.413747948 | E183: 57.7332252 | F183: 3.001891874e-14 | G183: 2.558755454e-13
A184: SWI5 | B184: YDR146C | C184: 1.254291386 | D184: 6.461010635 | E184: 57.5758037 | F184: 3.252015546e-14 | G184: 2.763466197e-13
A185: PRP22 | B185: YER013W | C185: 1.410762363 | D185: 6.323631724 | E185: 57.56167319 | F185: 3.275462303e-14 | G185: 2.779134606e-13
A186: HOS2 | B186: YGL194C | C186: 1.370095905 | D186: 6.446996668 | E186: 57.45421904 | F186: 3.459383413e-14 | G186: 2.930705123e-13
A187: PRP6 | B187: YBR055C | C187: 1.202876434 | D187: 6.597152835 | E187: 57.02194062 | F187: 4.30976784e-14 | G187: 3.628968398e-13
A188: SEC10 | B188: YLR166C | C188: 1.160092066 | D188: 6.917769208 | E188: 56.78525801 | F188: 4.8609682e-14 | G188: 4.080712941e-13
A189: YLL032C | B189: YLL032C | C189: 1.543580338 | D189: 5.844107103 | E189: 56.5237146 | F189: 5.55246778e-14 | G189: 4.640157186e-13
A190: RSM25 | B190: YIL093C | C190: 1.156732544 | D190: 6.737432226 | E190: 56.41894775 | F190: 5.856330666e-14 | G190: 4.875980249e-13
A191: NMA111 | B191: YNL123W | C191: 1.002838373 | D191: 8.073201308 | E191: 56.38604215 | F191: 5.955160847e-14 | G191: 4.939489917e-13
A192: POL1 | B192: YNL102W | C192: 1.045845456 | D192: 7.530516226 | E192: 56.18102129 | F192: 6.609647663e-14 | G192: 5.449767441e-13
A193: TIF4632 | B193: YGL049C | C193: 1.012451631 | D193: 7.363897533 | E193: 56.13653253 | F193: 6.760912282e-14 | G193: 5.566216951e-13
A194: RSM7 | B194: YJR113C | C194: 0.9976757066 | D194: 7.521548289 | E194: 56.11512377 | F194: 6.834933069e-14 | G194: 5.610509409e-13
A195: TBS1 | B195: YBR150C | C195: 1.634691651 | D195: 5.603931025 | E195: 55.92271361 | F195: 7.537666596e-14 | G195: 6.178214467e-13
A196: RPA190 | B196: YOR341W | C196: 1.055151918 | D196: 10.55892883 | E196: 55.83345344 | F196: 7.887783202e-14 | G196: 6.436663087e-13
A197: ROX3 | B197: YBL093C | C197: 1.250231663 | D197: 6.552497902 | E197: 55.78670582 | F197: 8.077593046e-14 | G197: 6.581874275e-13
A198: NBP35 | B198: YGL091C | C198: 1.044121345 | D198: 7.234822749 | E198: 55.53958619 | F198: 9.159578137e-14 | G198: 7.419926874e-13
A199: UBP8 | B199: YMR223W | C199: 1.560554028 | D199: 5.99184528 | E199: 55.30433295 | F199: 1.032407613e-13 | G199: 8.338908074e-13
A200: NAM8 | B200: YHR086W | C200: 1.116777621 | D200: 6.948655276 | E200: 55.10772857 | F200: 1.141013684e-13 | G200: 9.176065117e-13
... 5350 more rows

Sheet CAF20
A1: name | B1: genes | C1: logFC | D1: logCPM | E1: LR | F1: PValue | G1: FDR
A2: CAF20 | B2: YOR276W | C2: 1.574880312 | D2: 7.08090471 | E2: 146.2877877 | F2: 1.123121833e-33 | G2: 2.234611333e-31
A3: UBS1 | B3: YBR165W | C3: 1.937812267 | D3: 6.096442024 | E3: 134.2395558 | F3: 4.84254395e-31 | G3: 6.579954231e-29
A4: YAK1 | B4: YJL141C | C4: 1.414978608 | D4: 7.293038992 | E4: 116.7993165 | F4: 3.176352539e-27 | G4: 2.492318309e-25
A5: THP2 | B5: YHR167W | C5: 1.670339261 | D5: 6.245176106 | E5: 116.0694636 | F5: 4.589368911e-27 | G5: 3.408983227e-25
A6: HSP42 | B6: YDR171W | C6: 1.366347313 | D6: 9.697273831 | E6: 115.2603808 | F6: 6.901394255e-27 | G6: 4.929188128e-25
A7: HOS2 | B7: YGL194C | C7: 1.588235263 | D7: 6.286742022 | E7: 109.1977758 | F7: 1.468748696e-25 | G7: 8.265049481e-24
A8: BTN2 | B8: YGR142W | C8: 1.226410321 | D8: 8.905723757 | E8: 103.1847943 | F8: 3.053003627e-24 | G8: 1.477964936e-22
A9: PDE2 | B9: YOR360C | C9: 1.252650956 | D9: 7.647786239 | E9: 98.90797534 | F9: 2.645119962e-23 | G9: 1.099698754e-21
A10: RMD9 | B10: YGL107C | C10: 1.361109353 | D10: 6.607722825 | E10: 95.23545643 | F10: 1.690354673e-22 | G10: 6.585290829e-21
A11: OPI1 | B11: YHL020C | C11: 1.271254539 | D11: 7.460981262 | E11: 93.73460847 | F11: 3.607968625e-22 | G11: 1.322367975e-20
A12: SNF5 | B12: YBR289W | C12: 1.923072181 | D12: 5.877192074 | E12: 93.59969034 | F12: 3.862480354e-22 | G12: 1.397264809e-20
A13: RTS3 | B13: YGR161C | C13: 1.251102034 | D13: 6.867810336 | E13: 92.31433096 | F13: 7.394686867e-22 | G13: 2.527349726e-20
A14: RPN4 | B14: YDL020C | C14: 1.152478862 | D14: 7.568137766 | E14: 90.90004628 | F14: 1.511161299e-21 | G14: 4.923204441e-20
A15: MRPL15 | B15: YLR312W-A | C15: 1.389338586 | D15: 6.42015927 | E15: 90.09868865 | F15: 2.265718322e-21 | G15: 7.091189197e-20
A16: RCL1 | B16: YOL010W | C16: 1.149461877 | D16: 7.058289396 | E16: 84.01294464 | F16: 4.915457419e-20 | G16: 1.404308373e-18
A17: REI1 | B17: YBR267W | C17: 1.333090143 | D17: 6.579049086 | E17: 83.57137033 | F17: 6.145668206e-20 | G17: 1.72047827e-18
A18: SNF1 | B18: YDR477W | C18: 1.103008136 | D18: 7.29792687 | E18: 82.65225234 | F18: 9.78362659e-20 | G18: 2.67179332e-18
A19: WHI4 | B19: YDL224C | C19: 1.281126313 | D19: 6.556157965 | E19: 81.89263172 | F19: 1.436839659e-19 | G19: 3.811730352e-18
A20: NMA111 | B20: YNL123W | C20: 1.025204357 | D20: 7.853591971 | E20: 81.17425351 | F20: 2.066669961e-19 | G20: 5.281384567e-18
A21: YLR194C | B21: YLR194C | C21: 1.250028684 | D21: 7.744100874 | E21: 80.43503694 | F21: 3.004208754e-19 | G21: 7.505133169e-18
A22: LSB5 | B22: YCL034W | C22: 1.055147136 | D22: 7.580264768 | E22: 79.80561761 | F22: 4.131164932e-19 | G22: 1.009417537e-17
A23: MOT2 | B23: YER068W | C23: 1.318888949 | D23: 6.315814826 | E23: 76.88699355 | F23: 1.810253881e-18 | G23: 4.167324121e-17
A24: MRPS35 | B24: YGR165W | C24: 1.075349993 | D24: 7.157788715 | E24: 73.89643131 | F24: 8.232500836e-18 | G24: 1.791533678e-16
A25: NAM9 | B25: YNL137C | C25: 1.181376172 | D25: 6.983988543 | E25: 72.41464681 | F25: 1.744146444e-17 | G25: 3.694539863e-16
A26: SLX9 | B26: YGR081C | C26: 1.655444555 | D26: 5.456366749 | E26: 72.00179542 | F26: 2.150016582e-17 | G26: 4.519902785e-16
A27: ROX3 | B27: YBL093C | C27: 1.227031132 | D27: 6.499524493 | E27: 71.97443629 | F27: 2.180033396e-17 | G27: 4.56577671e-16
A28: RSM7 | B28: YJR113C | C28: 1.018270142 | D28: 7.536707514 | E28: 70.8308141 | F28: 3.892103172e-17 | G28: 8.001072609e-16
A29: NUP170 | B29: YBL079W | C29: 0.9795718022 | D29: 7.718849096 | E29: 69.97114482 | F29: 6.017835389e-17 | G29: 1.214686991e-15
A30: YOR385W | B30: YOR385W | C30: 1.169341594 | D30: 6.699014057 | E30: 69.83856999 | F30: 6.436197541e-17 | G30: 1.289786205e-15
A31: SLM1 | B31: YIL105C | C31: 1.157615388 | D31: 6.61107029 | E31: 69.81108583 | F31: 6.526504748e-17 | G31: 1.303195626e-15
A32: SOK2 | B32: YMR016C | C32: 1.45339282 | D32: 6.050384374 | E32: 69.71834458 | F32: 6.840692847e-17 | G32: 1.361053566e-15
A33: EDC1 | B33: YGL222C | C33: 1.695312511 | D33: 5.336282313 | E33: 69.56016376 | F33: 7.41188394e-17 | G33: 1.464241327e-15
A34: NAB6 | B34: YML117W | C34: 1.064487329 | D34: 7.154450325 | E34: 68.72711212 | F34: 1.130756273e-16 | G34: 2.187781796e-15
A35: RSM24 | B35: YDR175C | C35: 1.378791402 | D35: 6.002118373 | E35: 68.72668378 | F35: 1.131001898e-16 | G35: 2.187781796e-15
A36: HRR25 | B36: YPL204W | C36: 0.9972682437 | D36: 7.351272436 | E36: 68.6328524 | F36: 1.186115987e-16 | G36: 2.279358141e-15
A37: PAC1 | B37: YOR269W | C37: 1.37541047 | D37: 6.0050887 | E37: 68.63217015 | F37: 1.186526406e-16 | G37: 2.279358141e-15
A38: EDC3 | B38: YEL015W | C38: 1.30050464 | D38: 6.474207666 | E38: 67.58126606 | F38: 2.021795239e-16 | G38: 3.77967157e-15
A39: INO2 | B39: YDR123C | C39: 1.640480112 | D39: 5.480429521 | E39: 66.96457616 | F39: 2.764299359e-16 | G39: 5.09930852e-15
A40: YGR079W | B40: YGR079W | C40: 1.143158732 | D40: 6.589545191 | E40: 65.58050063 | F40: 5.578801313e-16 | G40: 9.866508608e-15
A41: REH1 | B41: YLR387C | C41: 1.046463656 | D41: 6.946736016 | E41: 65.34366878 | F41: 6.291171632e-16 | G41: 1.105618838e-14
A42: YOR062C | B42: YOR062C | C42: 1.17092279 | D42: 6.48835308 | E42: 64.29272166 | F42: 1.072411732e-15 | G42: 1.832639803e-14
A43: FMP48 | B43: YGR052W | C43: 0.9542026582 | D43: 9.243511938 | E43: 64.24344837 | F43: 1.099569738e-15 | G43: 1.873303673e-14
A44: SRO7 | B44: YPR032W | C44: 1.175863237 | D44: 6.329914863 | E44: 64.03031242 | F44: 1.225195376e-15 | G44: 2.068352557e-14
A45: IVY1 | B45: YDR229W | C45: 1.411366701 | D45: 5.786115738 | E45: 62.57943985 | F45: 2.559111474e-15 | G45: 4.230507425e-14
A46: DUS1 | B46: YML080W | C46: 1.444409271 | D46: 5.944361589 | E46: 61.68879649 | F46: 4.022626126e-15 | G46: 6.458227709e-14
A47: MRPS5 | B47: YBR251W | C47: 1.242360977 | D47: 6.34716439 | E47: 61.66609283 | F47: 4.069276844e-15 | G47: 6.514350948e-14
A48: SFP1 | B48: YLR403W | C48: 1.046449768 | D48: 6.71521427 | E48: 59.7417889 | F48: 1.081554715e-14 | G48: 1.669069617e-13
A49: SLT2 | B49: YHR030C | C49: 0.908541702 | D49: 7.555908746 | E49: 59.56381015 | F49: 1.183924122e-14 | G49: 1.807025009e-13
A50: SST2 | B50: YLR452C | C50: 0.9217429229 | D50: 7.317841875 | E50: 58.61974948 | F50: 1.912866818e-14 | G50: 2.856992236e-13
A51: PFS2 | B51: YNL317W | C51: 1.188914683 | D51: 6.31945609 | E51: 58.55479378 | F51: 1.977073617e-14 | G51: 2.937140565e-13
A52: UTP21 | B52: YLR409C | C52: 0.8795274922 | D52: 8.057236616 | E52: 58.3909179 | F52: 2.148806863e-14 | G52: 3.16693202e-13
A53: PCL1 | B53: YNL289W | C53: 1.228806011 | D53: 6.161911663 | E53: 58.02503062 | F53: 2.588036787e-14 | G53: 3.754675245e-13
A54: SIP1 | B54: YDR422C | C54: 1.160628193 | D54: 6.399099722 | E54: 56.96507217 | F54: 4.436212727e-14 | G54: 6.336959257e-13
A55: CHS1 | B55: YNL192W | C55: 0.8670637555 | D55: 8.668054532 | E55: 56.4448884 | F55: 5.779577504e-14 | G55: 8.151399057e-13
A56: NUP100 | B56: YKL068W | C56: 0.9161771568 | D56: 7.20447247 | E56: 55.86957771 | F56: 7.7441697e-14 | G56: 1.083989181e-12
A57: PAC10 | B57: YGR078C | C57: 1.029046182 | D57: 6.963061571 | E57: 55.16722758 | F57: 1.106991532e-13 | G57: 1.537917662e-12
A58: GYP1 | B58: YOR070C | C58: 1.142747921 | D58: 6.264851942 | E58: 55.02974432 | F58: 1.187195259e-13 | G58: 1.645239997e-12
A59: SPO71 | B59: YDR104C | C59: 1.680504983 | D59: 5.075363916 | E59: 54.79100952 | F59: 1.340525983e-13 | G59: 1.843967963e-12
A60: YNL295W | B60: YNL295W | C60: 1.162094787 | D60: 6.174693283 | E60: 54.66179528 | F60: 1.431624868e-13 | G60: 1.964429099e-12
A61: POM34 | B61: YLR018C | C61: 1.089377957 | D61: 6.369716205 | E61: 54.16575877 | F61: 1.842701011e-13 | G61: 2.491671683e-12
A62: WHI3 | B62: YNL197C | C62: 1.319910059 | D62: 6.02738093 | E62: 53.39278356 | F62: 2.730982338e-13 | G62: 3.639785313e-12
A63: HST3 | B63: YOR025W | C63: 1.214640514 | D63: 5.978018861 | E63: 50.69253618 | F63: 1.080296028e-12 | G63: 1.340385117e-11
A64: MRT4 | B64: YKL009W | C64: 0.9351469516 | D64: 7.477743675 | E64: 49.35284834 | F64: 2.138237708e-12 | G64: 2.606591306e-11
A65: HOS3 | B65: YPL116W | C65: 1.162185801 | D65: 6.161313179 | E65: 48.9768651 | F65: 2.589994081e-12 | G65: 3.12990391e-11
A66: TAM41 | B66: YGR046W | C66: 1.462661852 | D66: 5.285638069 | E66: 47.82062717 | F66: 4.670521913e-12 | G66: 5.512601181e-11
A67: YDL133W | B67: YDL133W | C67: 1.212367493 | D67: 5.968305579 | E67: 47.77588042 | F67: 4.778346067e-12 | G67: 5.627942059e-11
A68: PBS2 | B68: YJL128C | C68: 0.874921147 | D68: 7.028466584 | E68: 47.11432546 | F68: 6.696445669e-12 | G68: 7.804581344e-11
A69: MRPL9 | B69: YGR220C | C69: 1.035966425 | D69: 6.374198707 | E69: 46.89749317 | F69: 7.479832544e-12 | G69: 8.699404406e-11
A70: TBS1 | B70: YBR150C | C70: 1.463030547 | D70: 5.063448313 | E70: 46.86931278 | F70: 7.588162752e-12 | G70: 8.807011394e-11
A71: SSD1 | B71: YDR293C | C71: 0.762965933 | D71: 8.336404099 | E71: 46.53682148 | F71: 8.991291691e-12 | G71: 1.032793526e-10
A72: OSH3 | B72: YHR073W | C72: 0.8852764982 | D72: 7.237075376 | E72: 46.50981034 | F72: 9.116090798e-12 | G72: 1.044974112e-10
A73: UTP4 | B73: YDR324C | C73: 0.8667552264 | D73: 7.008289998 | E73: 46.43962939 | F73: 9.448510687e-12 | G73: 1.076434622e-10
A74: CYR1 | B74: YJL005W | C74: 0.7861585581 | D74: 7.583027701 | E74: 45.97549768 | F74: 1.197412742e-11 | G74: 1.350173162e-10
A75: DCP2 | B75: YNL118C | C75: 0.9126307735 | D75: 6.853589078 | E75: 45.89812748 | F75: 1.245649659e-11 | G75: 1.399095615e-10
A76: SBE2 | B76: YDR351W | C76: 1.127305255 | D76: 5.975929148 | E76: 45.85129709 | F76: 1.275786264e-11 | G76: 1.430061424e-10
A77: MTF2 | B77: YDL044C | C77: 1.531089994 | D77: 4.932305074 | E77: 45.58503528 | F77: 1.461539355e-11 | G77: 1.625196756e-10
A78: MSN4 | B78: YKL062W | C78: 1.145482837 | D78: 5.898883403 | E78: 45.5051464 | F78: 1.522382972e-11 | G78: 1.682776892e-10
A79: MRP51 | B79: YPL118W | C79: 0.9050120444 | D79: 6.733681879 | E79: 45.0425851 | F79: 1.927958916e-11 | G79: 2.118473199e-10
A80: XDJ1 | B80: YLR090W | C80: 0.8874631953 | D80: 6.772436525 | E80: 45.03806855 | F80: 1.932410692e-11 | G80: 2.119185032e-10
A81: NOT3 | B81: YIL038C | C81: 1.064791501 | D81: 6.481645284 | E81: 44.97836341 | F81: 1.992235715e-11 | G81: 2.176224543e-10
A82: SKI3 | B82: YPR189W | C82: 0.8277688924 | D82: 7.136758972 | E82: 44.85818789 | F82: 2.118332275e-11 | G82: 2.309438181e-10
A83: R0020C | B83: R0020C | C83: 0.8009836519 | D83: 8.894743268 | E83: 44.80816699 | F83: 2.173143921e-11 | G83: 2.364567341e-10
A84: NGL1 | B84: YOL042W | C84: 1.306246584 | D84: 5.569936052 | E84: 44.72265728 | F84: 2.270150919e-11 | G84: 2.465304243e-10
A85: CLB3 | B85: YDL155W | C85: 1.00936756 | D85: 6.250058359 | E85: 43.95328465 | F85: 3.363074948e-11 | G85: 3.582350007e-10
A86: SEN15 | B86: YMR059W | C86: 2.012626609 | D86: 4.218395786 | E86: 43.94703803 | F86: 3.373825196e-11 | G86: 3.58694278e-10
A87: YTM1 | B87: YOR272W | C87: 0.8484092663 | D87: 7.353252597 | E87: 43.84805974 | F87: 3.548827861e-11 | G87: 3.758653994e-10
A88: SKG3 | B88: YLR187W | C88: 1.426834689 | D88: 5.278401603 | E88: 43.42756709 | F88: 4.399463726e-11 | G88: 4.633159247e-10
A89: PKP1 | B89: YIL042C | C89: 0.9570675913 | D89: 6.467038179 | E89: 43.16605638 | F89: 5.028553316e-11 | G89: 5.255923175e-10
A90: DIA1 | B90: YMR316W | C90: 0.7888219079 | D90: 7.280075693 | E90: 42.72185383 | F90: 6.310334784e-11 | G90: 6.558745351e-10
A91: RIM8 | B91: YGL045W | C91: 1.310376696 | D91: 5.329033685 | E91: 42.63032188 | F91: 6.612632936e-11 | G91: 6.847393696e-10
A92: GLC3 | B92: YEL011W | C92: 0.8364097062 | D92: 7.291981538 | E92: 42.62129019 | F92: 6.643236145e-11 | G92: 6.866320698e-10
A93: SAC7 | B93: YDR389W | C93: 1.026000786 | D93: 6.191498371 | E93: 42.60685946 | F93: 6.692428109e-11 | G93: 6.904354999e-10
A94: IPT1 | B94: YDR072C | C94: 0.7708736283 | D94: 8.779179781 | E94: 42.45785198 | F94: 7.22218917e-11 | G94: 7.382535021e-10
A95: MOD5 | B95: YOR274W | C95: 1.4244244 | D95: 4.965111698 | E95: 42.34011831 | F95: 7.670290423e-11 | G95: 7.811917358e-10
A96: YLR177W | B96: YLR177W | C96: 0.8298075799 | D96: 7.168689616 | E96: 42.26335332 | F96: 7.977345953e-11 | G96: 8.109816479e-10
A97: STS1 | B97: YIR011C | C97: 1.044252266 | D97: 6.358416916 | E97: 41.53858697 | F97: 1.155671913e-10 | G97: 1.164240186e-09
A98: CIN5 | B98: YOR028C | C98: 1.500395572 | D98: 5.048695481 | E98: 41.39829114 | F98: 1.241658825e-10 | G98: 1.246356994e-09
A99: ADA2 | B99: YDR448W | C99: 1.417824117 | D99: 4.984683044 | E99: 41.26382804 | F99: 1.330075717e-10 | G99: 1.33031451e-09
A100: PRP19 | B100: YLL036C | C100: 0.8286928982 | D100: 6.781934369 | E100: 40.7593236 | F100: 1.721799798e-10 | G100: 1.700735226e-09
A101: SOF1 | B101: YLL011W | C101: 1.027295305 | D101: 6.61992563 | E101: 40.5798184 | F101: 1.887460836e-10 | G101: 1.854505171e-09
A102: MRP13 | B102: YGR084C | C102: 1.014323289 | D102: 6.175530508 | E102: 40.57208373 | F102: 1.894947049e-10 | G102: 1.858582748e-09
A103: SRL3 | B103: YKR091W | C103: 1.445650963 | D103: 4.87342164 | E103: 40.44927726 | F103: 2.017870779e-10 | G103: 1.975669263e-09
A104: BSP1 | B104: YPR171W | C104: 1.223889808 | D104: 5.453249612 | E104: 40.36238403 | F104: 2.109639626e-10 | G104: 2.061895151e-09
A105: MRPL3 | B105: YMR024W | C105: 0.808888636 | D105: 6.853094676 | E105: 40.23256212 | F105: 2.254588297e-10 | G105: 2.199704273e-09
A106: SIP5 | B106: YMR140W | C106: 0.9415974237 | D106: 6.296118146 | E106: 40.1520885 | F106: 2.349401817e-10 | G106: 2.288202364e-09
A107: OPI10 | B107: YOL032W | C107: 0.88780018 | D107: 6.564901867 | E107: 39.95089564 | F107: 2.604281301e-10 | G107: 2.518828321e-09
A108: PDR1 | B108: YGL013C | C108: 0.9552270758 | D108: 6.477977855 | E108: 39.86852229 | F108: 2.716459022e-10 | G108: 2.61823412e-09
A109: YMR111C | B109: YMR111C | C109: 1.731674599 | D109: 4.404042537 | E109: 39.81592404 | F109: 2.79060608e-10 | G109: 2.680425254e-09
A110: SNU56 | B110: YDR240C | C110: 1.332570131 | D110: 5.356058341 | E110: 39.71146837 | F110: 2.943917226e-10 | G110: 2.813132567e-09
A111: ROX1 | B111: YPR065W | C111: 1.539319351 | D111: 4.928418661 | E111: 39.70229576 | F111: 2.957776179e-10 | G111: 2.821536146e-09
A112: CBK1 | B112: YNL161W | C112: 0.984947306 | D112: 6.401964542 | E112: 39.46815463 | F112: 3.334531829e-10 | G112: 3.170081368e-09
A113: AIM39 | B113: YOL053W | C113: 1.261916164 | D113: 5.32654469 | E113: 38.95239674 | F113: 4.342667987e-10 | G113: 4.072896188e-09
A114: MRPL17 | B114: YNL252C | C114: 1.358923028 | D114: 5.055833304 | E114: 38.51456366 | F114: 5.434662294e-10 | G114: 5.071441146e-09
A115: MAC1 | B115: YMR021C | C115: 0.9957541304 | D115: 6.273294361 | E115: 38.47922382 | F115: 5.533967854e-10 | G115: 5.146867265e-09
A116: ARP7 | B116: YPR034W | C116: 0.9271577034 | D116: 6.282785163 | E116: 38.30660771 | F116: 6.045758313e-10 | G116: 5.613486593e-09
A117: PRK1 | B117: YIL095W | C117: 1.094097297 | D117: 5.753923196 | E117: 38.13473907 | F117: 6.602411449e-10 | G117: 6.109972455e-09
A118: APL3 | B118: YBL037W | C118: 1.104565146 | D118: 5.936643178 | E118: 37.95342905 | F118: 7.24536152e-10 | G118: 6.66071106e-09
A119: GLN3 | B119: YER040W | C119: 1.264161508 | D119: 5.340777879 | E119: 37.94840668 | F119: 7.264036944e-10 | G119: 6.666878059e-09
A120: POL2 | B120: YNL262W | C120: 0.9150781966 | D120: 6.53185951 | E120: 37.65423406 | F120: 8.446314261e-10 | G120: 7.688630188e-09
A121: UTP18 | B121: YJL069C | C121: 0.9471416665 | D121: 6.241627999 | E121: 37.64284332 | F121: 8.495780861e-10 | G121: 7.721043259e-09
A122: UTP22 | B122: YGR090W | C122: 0.8064659278 | D122: 7.352216544 | E122: 37.61467819 | F122: 8.61934263e-10 | G122: 7.807863055e-09
A123: MSH2 | B123: YOL090W | C123: 0.9323317184 | D123: 6.639812668 | E123: 37.58364867 | F123: 8.757554714e-10 | G123: 7.907348024e-09
A124: NOT5 | B124: YPR072W | C124: 1.083624526 | D124: 6.28428452 | E124: 37.37679033 | F124: 9.737405822e-10 | G124: 8.749530296e-09
A125: YPT10 | B125: YBR264C | C125: 1.333991621 | D125: 5.131377197 | E125: 37.35200846 | F125: 9.861926596e-10 | G125: 8.847148642e-09
A126: ARK1 | B126: YNL020C | C126: 1.118239588 | D126: 5.713168507 | E126: 37.27146064 | F126: 1.0277772e-09 | G126: 9.190604783e-09
A127: SNX4 | B127: YJL036W | C127: 1.133278148 | D127: 5.581671322 | E127: 37.08349599 | F127: 1.13177597e-09 | G127: 1.005601902e-08
A128: MDJ1 | B128: YFL016C | C128: 0.7853743599 | D128: 7.324760521 | E128: 37.04879366 | F128: 1.152098357e-09 | G128: 1.022028654e-08
A129: YPL014W | B129: YPL014W | C129: 1.208643568 | D129: 5.527963837 | E129: 36.50262452 | F129: 1.524608304e-09 | G129: 1.331284147e-08
A130: MRPL11 | B130: YDL202W | C130: 1.269455223 | D130: 5.454135612 | E130: 36.35883001 | F130: 1.64133909e-09 | G130: 1.428734386e-08
A131: YBL086C | B131: YBL086C | C131: 1.232534812 | D131: 5.274802206 | E131: 36.3406957 | F131: 1.656682122e-09 | G131: 1.439840265e-08
A132: PSP2 | B132: YML017W | C132: 0.9950989944 | D132: 6.378792783 | E132: 36.20314903 | F132: 1.777830466e-09 | G132: 1.540325587e-08
A133: YJL147C | B133: YJL147C | C133: 1.359688573 | D133: 4.768690323 | E133: 35.9426429 | F133: 2.032122277e-09 | G133: 1.752469536e-08
A134: BRE1 | B134: YDL074C | C134: 0.9092461226 | D134: 6.360276738 | E134: 35.6660844 | F134: 2.342061396e-09 | G134: 2.016634318e-08
A135: YKR075C | B135: YKR075C | C135: 1.449856571 | D135: 4.684218905 | E135: 35.52054473 | F135: 2.523746206e-09 | G135: 2.159721984e-08
A136: ECM21 | B136: YBL101C | C136: 0.8758504709 | D136: 6.382976858 | E136: 35.28336098 | F136: 2.85057059e-09 | G136: 2.422553216e-08
A137: MRPS9 | B137: YBR146W | C137: 0.8398073722 | D137: 6.535523602 | E137: 35.28196091 | F137: 2.852620552e-09 | G137: 2.422553216e-08
A138: SSF1 | B138: YHR066W | C138: 1.016461132 | D138: 6.044531502 | E138: 35.21587191 | F138: 2.951085662e-09 | G138: 2.494764525e-08
A139: IPI3 | B139: YNL182C | C139: 0.9292530752 | D139: 6.645750405 | E139: 35.07520057 | F139: 3.172150268e-09 | G139: 2.673532397e-08
A140: YAP1 | B140: YML007W | C140: 0.7469105835 | D140: 7.032658218 | E140: 34.90367335 | F140: 3.464266685e-09 | G140: 2.906540618e-08
A141: POP2 | B141: YNR052C | C141: 0.7520273634 | D141: 7.129724313 | E141: 34.80079383 | F141: 3.652245127e-09 | G141: 3.04938291e-08
A142: RGP1 | B142: YDR137W | C142: 1.165071516 | D142: 5.463861933 | E142: 34.728705 | F142: 3.790018089e-09 | G142: 3.146675227e-08
A143: RAV1 | B143: YJR033C | C143: 0.912410204 | D143: 6.294714509 | E143: 34.69484642 | F143: 3.856511655e-09 | G143: 3.197117028e-08
A144: DSE1 | B144: YER124C | C144: 0.68505703 | D144: 8.599458524 | E144: 34.59605623 | F144: 4.057274534e-09 | G144: 3.35855519e-08
A145: ABF1 | B145: YKL112W | C145: 1.032996938 | D145: 5.914055092 | E145: 34.55523604 | F145: 4.143255378e-09 | G145: 3.424640313e-08
A146: MRPL6 | B146: YHR147C | C146: 0.9089662576 | D146: 6.260369206 | E146: 34.43631368 | F146: 4.404288818e-09 | G146: 3.635006371e-08
A147: YIL152W | B147: YIL152W | C147: 1.49092018 | D147: 4.541011833 | E147: 34.22101532 | F147: 4.919481864e-09 | G147: 4.018538631e-08
A148: HAT1 | B148: YPL001W | C148: 1.069141892 | D148: 5.632096431 | E148: 33.94344085 | F148: 5.673763679e-09 | G148: 4.607863927e-08
A149: GAT2 | B149: YMR136W | C149: 1.193908793 | D149: 5.32282503 | E149: 33.85110276 | F149: 5.949535877e-09 | G149: 4.824579967e-08
A150: PUF3 | B150: YLL013C | C150: 1.004222184 | D150: 6.184348462 | E150: 33.79114748 | F150: 6.135743191e-09 | G150: 4.96113575e-08
A151: UTP15 | B151: YMR093W | C151: 0.7115394598 | D151: 7.361710113 | E151: 33.73320395 | F151: 6.321246936e-09 | G151: 5.096333817e-08
A152: POL1 | B152: YNL102W | C152: 0.8384678855 | D152: 6.370970838 | E152: 33.58101315 | F152: 6.835673138e-09 | G152: 5.479357562e-08
A153: VAM3 | B153: YOR106W | C153: 1.198540601 | D153: 5.465546749 | E153: 33.49186577 | F153: 7.156265396e-09 | G153: 5.719878698e-08
A154: URB2 | B154: YJR041C | C154: 0.8930945027 | D154: 6.297976093 | E154: 33.38600122 | F154: 7.556593569e-09 | G154: 6.03120097e-08
A155: MON2 | B155: YNL297C | C155: 0.7276973394 | D155: 7.31701329 | E155: 33.02377992 | F155: 9.103853884e-09 | G155: 7.245367141e-08
A156: DBF2 | B156: YGR092W | C156: 0.8606183377 | D156: 6.35436779 | E156: 33.01120857 | F156: 9.162909727e-09 | G156: 7.278736757e-08
A157: CLB2 | B157: YPR119W | C157: 1.071994031 | D157: 5.698968922 | E157: 33.00929898 | F157: 9.171913845e-09 | G157: 7.278736757e-08
A158: MSS4 | B158: YDR208W | C158: 0.81449111 | D158: 6.657639739 | E158: 32.88373057 | F158: 9.783865066e-09 | G158: 7.731335076e-08
A159: YPK2 | B159: YMR104C | C159: 0.8086605809 | D159: 6.5526386 | E159: 32.83132753 | F159: 1.005119066e-08 | G159: 7.911628819e-08
A160: YLR419W | B160: YLR419W | C160: 0.9546728829 | D160: 6.069126706 | E160: 32.8242188 | F160: 1.008801381e-08 | G160: 7.926703097e-08
A161: MOT3 | B161: YMR070W | C161: 1.434873356 | D161: 4.982558841 | E161: 32.6526064 | F161: 1.101915535e-08 | G161: 8.60977762e-08
A162: GCD14 | B162: YJL125C | C162: 1.249205644 | D162: 5.087194936 | E162: 32.61231839 | F162: 1.124994672e-08 | G162: 8.777794561e-08
A163: CRZ1 | B163: YNL027W | C163: 1.089917425 | D163: 5.705182039 | E163: 32.50875737 | F163: 1.186566389e-08 | G163: 9.23234826e-08
A164: GIS4 | B164: YML006C | C164: 1.018624628 | D164: 5.836677974 | E164: 32.48502365 | F164: 1.201146054e-08 | G164: 9.332754068e-08
A165: PET127 | B165: YOR017W | C165: 1.283049235 | D165: 5.13396935 | E165: 32.48202841 | F165: 1.202998739e-08 | G165: 9.334130886e-08
A166: HOF1 | B166: YMR032W | C166: 1.119058601 | D166: 5.388496373 | E166: 32.46021013 | F166: 1.216580945e-08 | G166: 9.426387264e-08
A167: VPS71 | B167: YML041C | C167: 1.331736284 | D167: 5.076721238 | E167: 32.45474701 | F167: 1.2200058e-08 | G167: 9.439794878e-08
A168: FAR1 | B168: YJL157C | C168: 0.8265173153 | D168: 7.009122345 | E168: 32.38999354 | F168: 1.261343152e-08 | G168: 9.732607619e-08
A169: UFD1 | B169: YGR048W | C169: 0.7442535002 | D169: 6.962666175 | E169: 32.34252999 | F169: 1.292531359e-08 | G169: 9.959463624e-08
A170: ELM1 | B170: YKL048C | C170: 1.405034352 | D170: 4.680028865 | E170: 32.25069112 | F170: 1.355088785e-08 | G170: 1.039834659e-07
A171: CBP2 | B171: YHL038C | C171: 1.081901651 | D171: 5.376466481 | E171: 32.09272601 | F171: 1.469866254e-08 | G171: 1.121729438e-07
A172: TRM11 | B172: YOL124C | C172: 0.8653160434 | D172: 6.443908842 | E172: 31.82983943 | F172: 1.682873857e-08 | G172: 1.272088231e-07
A173: DBP7 | B173: YKR024C | C173: 0.9269503499 | D173: 6.027337076 | E173: 31.82076695 | F173: 1.690752899e-08 | G173: 1.27631225e-07
A174: SGV1 | B174: YPR161C | C174: 1.018329846 | D174: 5.93786906 | E174: 31.80753064 | F174: 1.702314371e-08 | G174: 1.283300861e-07
A175: NUP192 | B175: YJL039C | C175: 0.7083805663 | D175: 7.487998663 | E175: 31.77063636 | F175: 1.734959989e-08 | G175: 1.306143527e-07
A176: RET1 | B176: YOR207C | C176: 0.6786143102 | D176: 7.732364762 | E176: 31.58404734 | F176: 1.909921408e-08 | G176: 1.430130667e-07
A177: ROD1 | B177: YOR018W | C177: 1.035634664 | D177: 5.8457315 | E177: 31.50648105 | F177: 1.987756946e-08 | G177: 1.480453736e-07
A178: GIC2 | B178: YDR309C | C178: 1.064229019 | D178: 5.851025739 | E178: 31.17772542 | F178: 2.354523288e-08 | G178: 1.737357515e-07
A179: DEG1 | B179: YFL001W | C179: 1.073150391 | D179: 5.663958222 | E179: 31.15306131 | F179: 2.384629972e-08 | G179: 1.752608651e-07
A180: ADD66 | B180: YKL206C | C180: 0.7035275551 | D180: 7.135814128 | E180: 31.12608147 | F180: 2.418005232e-08 | G180: 1.772461467e-07
A181: IPI1 | B181: YHR085W | C181: 1.089560102 | D181: 5.611730741 | E181: 30.87504313 | F181: 2.751879617e-08 | G181: 2.011905689e-07
A182: IGO1 | B182: YNL157W | C182: 0.7680375903 | D182: 6.673762634 | E182: 30.87047279 | F182: 2.758368006e-08 | G182: 2.014006312e-07
A183: GPB1 | B183: YOR371C | C183: 1.012180915 | D183: 5.811301012 | E183: 30.850269 | F183: 2.787234889e-08 | G183: 2.032419577e-07
A184: ELP4 | B184: YPL101W | C184: 0.8505041806 | D184: 6.361540346 | E184: 30.70950402 | F184: 2.996935402e-08 | G184: 2.182474134e-07
A185: NIS1 | B185: YNL078W | C185: 0.998110709 | D185: 6.014476252 | E185: 30.62934414 | F185: 3.123340493e-08 | G185: 2.265641912e-07
A186: AIM36 | B186: YMR157C | C186: 0.9696356283 | D186: 6.01392886 | E186: 30.6261824 | F186: 3.128434319e-08 | G186: 2.266385902e-07
A187: HAL5 | B187: YJL165C | C187: 0.6712962389 | D187: 7.228844968 | E187: 30.25928594 | F187: 3.779772878e-08 | G187: 2.720557456e-07
A188: VTS1 | B188: YOR359W | C188: 1.293846325 | D188: 4.788550774 | E188: 30.09457993 | F188: 4.114796555e-08 | G188: 2.957875046e-07
A189: NAN1 | B189: YPL126W | C189: 0.6357567996 | D189: 7.86313363 | E189: 30.06966856 | F189: 4.167995885e-08 | G189: 2.992255809e-07
A190: NOB1 | B190: YOR056C | C190: 0.9626748341 | D190: 6.167882624 | E190: 29.79520744 | F190: 4.801775332e-08 | G190: 3.438392079e-07
A191: BSD2 | B191: YBR290W | C191: 1.079783705 | D191: 5.285430171 | E191: 29.78254861 | F191: 4.833231414e-08 | G191: 3.456473967e-07
A192: CDC14 | B192: YFR028C | C192: 0.8193549728 | D192: 6.710001314 | E192: 29.75959954 | F192: 4.890785184e-08 | G192: 3.493149264e-07
A193: ROM2 | B193: YLR371W | C193: 0.8019975072 | D193: 6.353856808 | E193: 29.74851255 | F193: 4.918835668e-08 | G193: 3.508685468e-07
A194: MRPS17 | B194: YMR188C | C194: 1.239551282 | D194: 4.917933272 | E194: 29.68731576 | F194: 5.076591198e-08 | G194: 3.611965461e-07
A195: GLO3 | B195: YER122C | C195: 0.6611602876 | D195: 7.694788081 | E195: 29.47829012 | F195: 5.654657437e-08 | G195: 4.002807698e-07
A196: CTH1 | B196: YDR151C | C196: 0.7891242951 | D196: 6.522460867 | E196: 29.46736688 | F196: 5.68661751e-08 | G196: 4.020323115e-07
A197: RSM28 | B197: YDR494W | C197: 1.090162644 | D197: 5.731418149 | E197: 29.41621261 | F197: 5.838713979e-08 | G197: 4.117401972e-07
A198: RMD1 | B198: YDL001W | C198: 1.313803887 | D198: 4.774831037 | E198: 29.40381153 | F198: 5.876195707e-08 | G198: 4.138594979e-07
A199: NPL4 | B199: YBR170C | C199: 0.7341836553 | D199: 6.768727526 | E199: 29.36873921 | F199: 5.983510536e-08 | G199: 4.203548196e-07
A200: UBX6 | B200: YJL048C | C200: 0.8940882464 | D200: 6.062704908 | E200: 29.3604202 | F200: 6.009251951e-08 | G200: 4.21101165e-07
... 5372 more rows

Sheet eIF4G2
A1: name | B1: genes | C1: logFC | D1: logCPM | E1: LR | F1: PValue | G1: FDR
A2: TPO2 | B2: YGR138C | C2: 1.906341952 | D2: 9.155665798 | E2: 118.9523809 | F2: 1.072741082e-27 | G2: 2.677188613e-25
A3: YOL014W | B3: YOL014W | C3: 1.899003998 | D3: 6.793330514 | E3: 95.78238233 | F3: 1.282317819e-22 | G3: 1.29131654e-20
A4: ACS1 | B4: YAL054C | C4: 2.139271934 | D4: 5.491165143 | E4: 92.24530411 | F4: 7.657162527e-22 | G4: 6.867517641e-20
A5: NCA3 | B5: YJL116C | C5: 1.899334918 | D5: 6.137108111 | E5: 89.48880157 | F5: 3.083791058e-21 | G5: 2.525752273e-19
A6: YOR338W | B6: YOR338W | C6: 1.921999943 | D6: 5.4189317 | E6: 80.45906329 | F6: 2.967901746e-19 | G6: 1.756263507e-17
A7: SRL1 | B7: YOR247W | C7: 2.233956015 | D7: 6.834700506 | E7: 79.66221084 | F7: 4.442160422e-19 | G7: 2.47553406e-17
A8: TOS6 | B8: YNL300W | C8: 1.815652955 | D8: 6.086944591 | E8: 78.74384651 | F8: 7.070863963e-19 | G8: 3.856148707e-17
A9: CLN3 | B9: YAL040C | C9: 1.650262628 | D9: 5.944413979 | E9: 65.49201106 | F9: 5.835002281e-16 | G9: 2.174864486e-14
A10: AAC1 | B10: YMR056C | C10: 1.683641779 | D10: 5.795998204 | E10: 63.86691875 | F10: 1.331142439e-15 | G10: 4.716517037e-14
A11: UTH1 | B11: YKR042W | C11: 1.57120492 | D11: 10.73769207 | E11: 63.06779067 | F11: 1.997133503e-15 | G11: 6.864398987e-14
A12: SLX8 | B12: YER116C | C12: 1.932786185 | D12: 4.693817119 | E12: 62.97754743 | F12: 2.090763646e-15 | G12: 7.143442456e-14
A13: YNR014W | B13: YNR014W | C13: 1.943107454 | D13: 5.17249797 | E13: 61.6008744 | F13: 4.206317994e-15 | G13: 1.387601453e-13
A14: BDF2 | B14: YDL070W | C14: 1.306236732 | D14: 8.265085234 | E14: 58.95217891 | F14: 1.61550854e-14 | G14: 4.932456925e-13
A15: WSS1 | B15: YHR134W | C15: 1.754587888 | D15: 5.064703514 | E15: 57.70500931 | F15: 3.045262982e-14 | G15: 8.875170495e-13
A16: MFA2 | B16: YNL145W | C16: 1.320082853 | D16: 8.188601871 | E16: 56.92576144 | F16: 4.525781957e-14 | G16: 1.292437236e-12
A17: MRPS16 | B17: YPL013C | C17: 2.113655079 | D17: 4.852009946 | E17: 56.53432921 | F17: 5.522575595e-14 | G17: 1.546321167e-12
A18: YLR297W | B18: YLR297W | C18: 1.624981086 | D18: 6.095321033 | E18: 56.48701271 | F18: 5.657078517e-14 | G18: 1.576292752e-12
A19: STP3 | B19: YLR375W | C19: 1.286935292 | D19: 8.509393782 | E19: 55.77702516 | F19: 8.117467112e-14 | G19: 2.229390489e-12
A20: YNL194C | B20: YNL194C | C20: 1.51534669 | D20: 5.639412796 | E20: 53.84120262 | F20: 2.173661963e-13 | G20: 5.723311774e-12
A21: PFK27 | B21: YOL136C | C21: 1.378649786 | D21: 6.070982339 | E21: 52.81853883 | F21: 3.658318777e-13 | G21: 9.33277768e-12
A22: YBR076C-A | B22: YBR076C-A | C22: 1.748855324 | D22: 4.710268526 | E22: 52.7814416 | F22: 3.728072735e-13 | G22: 9.468644911e-12
A23: SNA4 | B23: YDL123W | C23: 1.595635356 | D23: 5.459651908 | E23: 52.71475661 | F23: 3.856823984e-13 | G23: 9.709723539e-12
A24: IMG1 | B24: YCR046C | C24: 1.217950155 | D24: 7.195261433 | E24: 51.55666383 | F24: 6.956018411e-13 | G24: 1.684706569e-11
A25: HMS2 | B25: YJR147W | C25: 1.250183168 | D25: 7.013404424 | E25: 50.22851535 | F25: 1.368447643e-12 | G25: 3.154574085e-11
A26: LDB18 | B26: YLL049W | C26: 1.469315309 | D26: 5.65665234 | E26: 50.16256205 | F26: 1.415222426e-12 | G26: 3.249350691e-11
A27: SOH1 | B27: YGL127C | C27: 1.519248522 | D27: 5.601055013 | E27: 49.68692033 | F27: 1.803442037e-12 | G27: 4.075494997e-11
A28: SIA1 | B28: YOR137C | C28: 1.552589764 | D28: 5.62123736 | E28: 48.91796384 | F28: 2.668950993e-12 | G28: 5.892222577e-11
A29: FRA2 | B29: YGL220W | C29: 1.244680302 | D29: 7.305539725 | E29: 48.70251037 | F29: 2.978848888e-12 | G29: 6.476739627e-11
A30: BSC2 | B30: YDR275W | C30: 1.428352494 | D30: 5.58872567 | E30: 47.19594526 | F30: 6.423318428e-12 | G30: 1.298234077e-10
A31: PTC6 | B31: YCR079W | C31: 1.281420898 | D31: 7.164302375 | E31: 46.49113838 | F31: 9.203372503e-12 | G31: 1.827936269e-10
A32: YER053C-A | B32: YER053C-A | C32: 2.743090646 | D32: 3.880484225 | E32: 45.65079573 | F32: 1.413286494e-11 | G32: 2.749920161e-10
A33: YMR181C | B33: YMR181C | C33: 1.676720268 | D33: 4.78779041 | E33: 45.6248335 | F33: 1.432143265e-11 | G33: 2.777196736e-10
A34: YPL014W | B34: YPL014W | C34: 1.121390544 | D34: 7.111327182 | E34: 44.88498217 | F34: 2.089543122e-11 | G34: 3.945387341e-10
A35: ASI2 | B35: YNL159C | C35: 1.307355566 | D35: 5.764865382 | E35: 44.17100514 | F35: 3.009054908e-11 | G35: 5.589635978e-10
A36: ERI1 | B36: YPL096C-A | C36: 1.436394753 | D36: 5.561267226 | E36: 44.10238891 | F36: 3.116403743e-11 | G36: 5.770373382e-10
A37: LST8 | B37: YNL006W | C37: 1.146699336 | D37: 8.478308175 | E37: 43.92174382 | F37: 3.417708582e-11 | G37: 6.307925164e-10
A38: YER186C | B38: YER186C | C38: 1.325313155 | D38: 6.341951552 | E38: 43.30690109 | F38: 4.679302502e-11 | G38: 8.446288164e-10
A39: YKL068W-A | B39: YKL068W-A | C39: 1.603531384 | D39: 4.858742749 | E39: 42.94351854 | F39: 5.634325998e-11 | G39: 1.010657226e-09
A40: IES6 | B40: YEL044W | C40: 1.231251516 | D40: 7.04070656 | E40: 42.8648833 | F40: 5.865414246e-11 | G40: 1.048831083e-09
A41: GPX1 | B41: YKL026C | C41: 1.345097261 | D41: 5.563130026 | E41: 41.64780651 | F41: 1.09287938e-10 | G41: 1.878181928e-09
A42: SRD1 | B42: YCR018C | C42: 1.401161733 | D42: 5.252145237 | E42: 41.19526286 | F42: 1.377559982e-10 | G42: 2.332505692e-09
A43: RRD1 | B43: YIL153W | C43: 1.038876811 | D43: 7.740880346 | E43: 40.66160895 | F43: 1.810086789e-10 | G43: 3.002860742e-09
A44: FUN19 | B44: YAL034C | C44: 1.358993777 | D44: 5.942778574 | E44: 40.53396662 | F44: 1.932276162e-10 | G44: 3.196330021e-09
A45: BTN2 | B45: YGR142W | C45: 1.186054577 | D45: 8.58972681 | E45: 40.51345062 | F45: 1.952671869e-10 | G45: 3.220786359e-09
A46: YEL007W | B46: YEL007W | C46: 1.169339698 | D46: 6.509810665 | E46: 40.33752814 | F46: 2.136650537e-10 | G46: 3.49412367e-09
A47: NIT1 | B47: YIL164C | C47: 1.612642772 | D47: 4.482001998 | E47: 40.30227835 | F47: 2.1755512e-10 | G47: 3.537581838e-09
A48: YLR099W-A | B48: YLR099W-A | C48: 1.330543928 | D48: 5.981434989 | E48: 39.86103442 | F48: 2.726892939e-10 | G48: 4.33583531e-09
A49: AMN1 | B49: YBR158W | C49: 1.024247543 | D49: 8.460536642 | E49: 39.59124287 | F49: 3.13084075e-10 | G49: 4.937095029e-09
A50: DIA1 | B50: YMR316W | C50: 1.145480682 | D50: 6.788880536 | E50: 39.53876371 | F50: 3.216116033e-10 | G50: 5.057672885e-09
A51: KSP1 | B51: YHR082C | C51: 1.027110152 | D51: 7.110461515 | E51: 38.18238691 | F51: 6.443138705e-10 | G51: 9.681574913e-09
A52: RLM1 | B52: YPL089C | C52: 1.411434162 | D52: 4.884227482 | E52: 37.88205098 | F52: 7.515350056e-10 | G52: 1.123388264e-08
A53: PPT2 | B53: YPL148C | C53: 1.61270219 | D53: 4.314742985 | E53: 37.25746532 | F53: 1.035179576e-09 | G53: 1.512182333e-08
A54: RMI1 | B54: YPL024W | C54: 1.533055707 | D54: 5.441409505 | E54: 36.52039141 | F54: 1.510774714e-09 | G54: 2.141196755e-08
A55: YBR056W-A | B55: YBR056W-A | C55: 1.281506309 | D55: 5.292456379 | E55: 36.48448775 | F55: 1.538860719e-09 | G55: 2.175630672e-08
A56: DFG10 | B56: YIL049W | C56: 1.480580364 | D56: 5.031078392 | E56: 36.45372562 | F56: 1.56334022e-09 | G56: 2.204809057e-08
A57: YHL026C | B57: YHL026C | C57: 1.454925332 | D57: 4.745380155 | E57: 36.22275475 | F57: 1.760034561e-09 | G57: 2.460535625e-08
A58: ERF2 | B58: YLR246W | C58: 1.452567886 | D58: 5.187659308 | E58: 36.22078754 | F58: 1.761812094e-09 | G58: 2.460535625e-08
A59: GPA2 | B59: YER020W | C59: 0.9996575555 | D59: 7.302674484 | E59: 36.14001478 | F59: 1.83637026e-09 | G59: 2.552243413e-08
A60: RTG1 | B60: YOL067C | C60: 1.17520379 | D60: 5.97786015 | E60: 35.98987403 | F60: 1.98345605e-09 | G60: 2.750009113e-08
A61: FLR1 | B61: YBR008C | C61: 1.316024375 | D61: 6.067448483 | E61: 35.74996023 | F61: 2.243365484e-09 | G61: 3.087989899e-08
A62: HST2 | B62: YPL015C | C62: 0.9918572033 | D62: 8.025980178 | E62: 35.06451885 | F62: 3.189598907e-09 | G62: 4.277639655e-08
A63: SHR5 | B63: YOL110W | C63: 1.172405902 | D63: 6.668929663 | E63: 34.94334882 | F63: 3.394389281e-09 | G63: 4.541677034e-08
A64: LDB16 | B64: YCL005W | C64: 1.207153606 | D64: 6.765898431 | E64: 34.81358972 | F64: 3.628319626e-09 | G64: 4.843384802e-08
A65: FRT2 | B65: YAL028W | C65: 1.577194733 | D65: 4.35926819 | E65: 34.44820024 | F65: 4.377473684e-09 | G65: 5.801403727e-08
A66: SIC1 | B66: YLR079W | C66: 1.003169858 | D66: 7.000263794 | E66: 34.44422325 | F66: 4.386427208e-09 | G66: 5.801403727e-08
A67: YIL165C | B67: YIL165C | C67: 1.662619074 | D67: 4.150297437 | E67: 34.31116231 | F67: 4.696801773e-09 | G67: 6.141148559e-08
A68: SYN8 | B68: YAL014C | C68: 1.081679505 | D68: 7.147826761 | E68: 34.2597002 | F68: 4.822656257e-09 | G68: 6.291374299e-08
A69: YJL144W | B69: YJL144W | C69: 1.106451912 | D69: 7.033159354 | E69: 34.17581682 | F69: 5.035079568e-09 | G69: 6.553595628e-08
A70: APJ1 | B70: YNL077W | C70: 0.980723517 | D70: 7.890486464 | E70: 34.16374346 | F70: 5.066415605e-09 | G70: 6.579462799e-08
A71: YPR015C | B71: YPR015C | C71: 2.502281514 | D71: 2.965567372 | E71: 33.90753228 | F71: 5.77945165e-09 | G71: 7.388430395e-08
A72: APT2 | B72: YDR441C | C72: 1.194307715 | D72: 5.785202376 | E72: 33.3913124 | F72: 7.53598505e-09 | G72: 9.465329144e-08
A73: AIM4 | B73: YBR194W | C73: 1.744845108 | D73: 3.768963398 | E73: 33.33850701 | F73: 7.743408875e-09 | G73: 9.683478637e-08
A74: PEX2 | B74: YJL210W | C74: 0.9535787341 | D74: 7.310296268 | E74: 33.04775258 | F74: 8.99229318e-09 | G74: 1.110016405e-07
A75: SMY2 | B75: YBR172C | C75: 1.196375686 | D75: 5.452458244 | E75: 33.01494622 | F75: 9.145311605e-09 | G75: 1.126482588e-07
A76: SNF6 | B76: YHL025W | C76: 1.044502908 | D76: 7.040494453 | E76: 32.94285748 | F76: 9.49077884e-09 | G76: 1.161558007e-07
A77: YCR045W-A | B77: YCR045W-A | C77: 1.37271546 | D77: 4.787794203 | E77: 32.42140566 | F77: 1.241117939e-08 | G77: 1.490380119e-07
A78: STP4 | B78: YDL048C | C78: 0.9355419563 | D78: 8.552484965 | E78: 32.28275106 | F78: 1.332913416e-08 | G78: 1.590628484e-07
A79: BRE5 | B79: YNR051C | C79: 1.10224726 | D79: 5.810444193 | E79: 32.15135961 | F79: 1.426168554e-08 | G79: 1.694866977e-07
A80: SWT21 | B80: YNL187W | C80: 1.455100305 | D80: 4.42145372 | E80: 32.03475528 | F80: 1.514388304e-08 | G80: 1.795989434e-07
A81: PIC2 | B81: YER053C | C81: 0.9032856004 | D81: 8.010601214 | E81: 31.81395407 | F81: 1.696693865e-08 | G81: 2.003914153e-07
A82: SCW10 | B82: YMR305C | C82: 1.121712314 | D82: 8.598067112 | E82: 31.75030998 | F82: 1.75321279e-08 | G82: 2.066415075e-07
A83: LRE1 | B83: YCL051W | C83: 1.198501126 | D83: 5.298086186 | E83: 31.70351058 | F83: 1.79597262e-08 | G83: 2.112475992e-07
A84: NDJ1 | B84: YOL104C | C84: 1.334201884 | D84: 4.779241563 | E84: 31.67140707 | F84: 1.825907636e-08 | G84: 2.138787082e-07
A85: ASK1 | B85: YKL052C | C85: 1.046157331 | D85: 6.328131198 | E85: 31.66756877 | F85: 1.82951996e-08 | G85: 2.138787082e-07
A86: PAR32 | B86: YDL173W | C86: 1.046927621 | D86: 6.527876644 | E86: 31.62655686 | F86: 1.868567089e-08 | G86: 2.175573041e-07
A87: COA4 | B87: YLR218C | C87: 1.669968974 | D87: 3.902323672 | E87: 31.38856768 | F87: 2.112209505e-08 | G87: 2.424816512e-07
A88: YGR050C | B88: YGR050C | C88: 1.960480755 | D88: 3.632226166 | E88: 31.36791688 | F88: 2.134795334e-08 | G88: 2.445853337e-07
A89: YGL072C | B89: YGL072C | C89: 1.840013591 | D89: 3.758650231 | E89: 31.20274122 | F89: 2.324376214e-08 | G89: 2.647206244e-07
A90: YLR152C | B90: YLR152C | C90: 0.9358682164 | D90: 7.166530057 | E90: 31.17640143 | F90: 2.356129722e-08 | G90: 2.672763756e-07
A91: DEP1 | B91: YAL013W | C91: 1.080555932 | D91: 6.399097254 | E91: 31.01364843 | F91: 2.562203467e-08 | G91: 2.900798402e-07
A92: YPR157W | B92: YPR157W | C92: 0.9645780514 | D92: 7.644384131 | E92: 30.82200833 | F92: 2.828121771e-08 | G92: 3.189276811e-07
A93: YIR016W | B93: YIR016W | C93: 0.9877441896 | D93: 6.666509604 | E93: 30.78304259 | F93: 2.885483702e-08 | G93: 3.2285919e-07
A94: YNL097W-A | B94: YNL097W-A | C94: 2.645812474 | D94: 2.801517385 | E94: 30.76140074 | F94: 2.917844862e-08 | G94: 3.252122235e-07
A95: SCW4 | B95: YGR279C | C95: 1.042068486 | D95: 10.22489531 | E95: 30.71531444 | F95: 2.987974621e-08 | G95: 3.323832233e-07
A96: CLG1 | B96: YGL215W | C96: 1.012464249 | D96: 6.573922403 | E96: 30.41676823 | F96: 3.485026021e-08 | G96: 3.84693257e-07
A97: SAP4 | B97: YGL229C | C97: 1.246909003 | D97: 4.849147789 | E97: 30.25866636 | F97: 3.780980488e-08 | G97: 4.149680306e-07
A98: OXA1 | B98: YER154W | C98: 1.092554578 | D98: 7.291518344 | E98: 29.94181448 | F98: 4.452073873e-08 | G98: 4.839943945e-07
A99: COX19 | B99: YLL018C-A | C99: 1.574096715 | D99: 4.521268779 | E99: 29.87440743 | F99: 4.609573353e-08 | G99: 5.001692069e-07
A100: YPL247C | B100: YPL247C | C100: 0.9247567093 | D100: 8.30774274 | E100: 29.86042752 | F100: 4.642930544e-08 | G100: 5.028381382e-07
A101: NBL1 | B101: YHR199C-A | C101: 1.542466151 | D101: 4.145227402 | E101: 29.76473074 | F101: 4.877857386e-08 | G101: 5.26295139e-07
A102: IRC23 | B102: YOR044W | C102: 1.543252703 | D102: 4.017353567 | E102: 29.75994686 | F102: 4.889909057e-08 | G102: 5.266055907e-07
A103: IRC15 | B103: YPL017C | C103: 1.033482224 | D103: 6.146477928 | E103: 29.71273585 | F103: 5.01045591e-08 | G103: 5.38577096e-07
A104: YKR045C | B104: YKR045C | C104: 1.342466534 | D104: 4.658846904 | E104: 29.66094195 | F104: 5.146132386e-08 | G104: 5.521271009e-07
A105: MAK3 | B105: YPR051W | C105: 1.124202381 | D105: 5.883338349 | E105: 29.62653081 | F105: 5.238303088e-08 | G105: 5.599228999e-07
A106: YSP3 | B106: YOR003W | C106: 1.245293433 | D106: 5.166638297 | E106: 29.00629649 | F106: 7.214342606e-08 | G106: 7.529150283e-07
A107: DIF1 | B107: YLR437C | C107: 1.387253175 | D107: 4.864951542 | E107: 28.96684898 | F107: 7.362759885e-08 | G107: 7.656203213e-07
A108: MTQ1 | B108: YNL063W | C108: 1.028604095 | D108: 6.100961883 | E108: 28.80494159 | F108: 8.004661671e-08 | G108: 8.293638627e-07
A109: HSP42 | B109: YDR171W | C109: 1.005560031 | D109: 10.06867815 | E109: 28.7340347 | F109: 8.303159956e-08 | G109: 8.571967292e-07
A110: GTO3 | B110: YMR251W | C110: 1.939552095 | D110: 3.391154988 | E110: 28.47548502 | F110: 9.489242339e-08 | G110: 9.726473398e-07
A111: VHS1 | B111: YDR247W | C111: 0.9340856314 | D111: 6.791825485 | E111: 28.45459673 | F111: 9.592175222e-08 | G111: 9.814453792e-07
A112: YSY6 | B112: YBR162W-A | C112: 1.024388733 | D112: 6.544844326 | E112: 28.40565651 | F112: 9.837744859e-08 | G112: 1.002995657e-06
A113: COX18 | B113: YGR062C | C113: 1.09025735 | D113: 6.277767413 | E113: 28.28898793 | F113: 1.044887158e-07 | G113: 1.059655882e-06
A114: R0030W | B114: R0030W | C114: 0.9139469126 | D114: 6.983470542 | E114: 28.23393376 | F114: 1.075032453e-07 | G114: 1.088304459e-06
A115: RPA12 | B115: YJR063W | C115: 1.25608481 | D115: 4.925960981 | E115: 28.22561583 | F115: 1.079662165e-07 | G115: 1.091067047e-06
A116: SDP1 | B116: YIL113W | C116: 0.9784498769 | D116: 6.421495686 | E116: 28.10192688 | F116: 1.150912138e-07 | G116: 1.154936307e-06
A117: CMK2 | B117: YOL016C | C117: 0.8578582971 | D117: 8.058719361 | E117: 27.97802171 | F117: 1.227011725e-07 | G117: 1.222751268e-06
A118: SIM1 | B118: YIL123W | C118: 0.8837994306 | D118: 9.10916945 | E118: 27.39633437 | F118: 1.657451159e-07 | G118: 1.615241028e-06
A119: FOX2 | B119: YKR009C | C119: 1.167474339 | D119: 4.991183086 | E119: 27.07352709 | F119: 1.958618586e-07 | G119: 1.892671832e-06
A120: PKP1 | B120: YIL042C | C120: 1.126518841 | D120: 6.530876692 | E120: 26.97113685 | F120: 2.065163695e-07 | G120: 1.982280871e-06
A121: UBP5 | B121: YER144C | C121: 1.081273876 | D121: 5.461267587 | E121: 26.79540021 | F121: 2.261750535e-07 | G121: 2.163741345e-06
A122: TAH11 | B122: YJR046W | C122: 0.9001291648 | D122: 8.054864206 | E122: 26.70824588 | F122: 2.366096314e-07 | G122: 2.259799142e-06
A123: SKG1 | B123: YKR100C | C123: 1.127163964 | D123: 5.190842052 | E123: 26.70430349 | F123: 2.370928781e-07 | G123: 2.260653024e-06
A124: CWC21 | B124: YDR482C | C124: 1.40313466 | D124: 5.136197826 | E124: 26.69854327 | F124: 2.378007285e-07 | G124: 2.263642092e-06
A125: YJR115W | B125: YJR115W | C125: 1.391706018 | D125: 4.380983412 | E125: 26.64089971 | F125: 2.450020372e-07 | G125: 2.324482138e-06
A126: RMD8 | B126: YFR048W | C126: 1.116752466 | D126: 5.149328373 | E126: 26.57032878 | F126: 2.541166417e-07 | G126: 2.403014042e-06
A127: NRG1 | B127: YDR043C | C127: 1.195017595 | D127: 4.907263986 | E127: 26.56205433 | F127: 2.552073531e-07 | G127: 2.409358893e-06
A128: MOH1 | B128: YBL049W | C128: 1.615193672 | D128: 3.884839927 | E128: 26.48806935 | F128: 2.651707668e-07 | G128: 2.499310676e-06
A129: ADY4 | B129: YLR227C | C129: 1.462374344 | D129: 3.984841788 | E129: 26.44675765 | F129: 2.70902815e-07 | G129: 2.54082052e-06
A130: LUC7 | B130: YDL087C | C130: 1.172705853 | D130: 4.987467871 | E130: 26.42657244 | F130: 2.737485416e-07 | G130: 2.563322396e-06
A131: YIL152W | B131: YIL152W | C131: 1.409928207 | D131: 4.467223517 | E131: 26.33328551 | F131: 2.8729444e-07 | G131: 2.681414773e-06
A132: YGR201C | B132: YGR201C | C132: 0.9213818109 | D132: 6.803489981 | E132: 26.19771547 | F132: 3.081869116e-07 | G132: 2.862448014e-06
A133: YER187W | B133: YER187W | C133: 2.169691682 | D133: 2.897039989 | E133: 26.15145297 | F133: 3.156594988e-07 | G133: 2.922396005e-06
A134: SNX4 | B134: YJL036W | C134: 1.271143823 | D134: 4.579188813 | E134: 26.13665086 | F134: 3.180885649e-07 | G134: 2.940142291e-06
A135: YLR177W | B135: YLR177W | C135: 0.8367520393 | D135: 8.196233236 | E135: 26.1265752 | F135: 3.197527195e-07 | G135: 2.950772685e-06
A136: YDR157W | B136: YDR157W | C136: 1.360382648 | D136: 4.274922142 | E136: 26.00894768 | F136: 3.398386675e-07 | G136: 3.131097836e-06
A137: SUN4 | B137: YNL066W | C137: 0.882663033 | D137: 9.590931943 | E137: 25.99038123 | F137: 3.431226526e-07 | G137: 3.151238441e-06
A138: CNL1 | B138: YDR357C | C138: 1.198751142 | D138: 5.087271839 | E138: 25.9081494 | F138: 3.580543517e-07 | G138: 3.277881944e-06
A139: SAG1 | B139: YJR004C | C139: 1.252268031 | D139: 4.539751146 | E139: 25.85994414 | F139: 3.671085583e-07 | G139: 3.351479376e-06
A140: YBR090C | B140: YBR090C | C140: 1.570445774 | D140: 3.865344248 | E140: 25.85914059 | F140: 3.672614159e-07 | G140: 3.351479376e-06
A141: R0040C | B141: R0040C | C141: 0.8388033854 | D141: 8.6035611 | E141: 25.77751739 | F141: 3.83125439e-07 | G141: 3.490698445e-06
A142: YMR114C | B142: YMR114C | C142: 1.345501182 | D142: 4.146346289 | E142: 25.77094836 | F142: 3.844316547e-07 | G142: 3.491515345e-06
A143: CUR1 | B143: YPR158W | C143: 0.9545855349 | D143: 6.621546984 | E143: 25.63091978 | F143: 4.133625162e-07 | G143: 3.742430352e-06
A144: MEH1 | B144: YKR007W | C144: 1.140355062 | D144: 5.685092105 | E144: 25.48792082 | F144: 4.451612648e-07 | G144: 3.992540094e-06
A145: YAH1 | B145: YPL252C | C145: 1.078951829 | D145: 5.419924461 | E145: 25.47705499 | F145: 4.476754693e-07 | G145: 4.002581298e-06
A146: MDM31 | B146: YHR194W | C146: 0.9128496169 | D146: 6.623451663 | E146: 25.36712206 | F146: 4.739270294e-07 | G146: 4.217583177e-06
A147: YJL127C-B | B147: YJL127C-B | C147: 1.548073745 | D147: 5.88631985 | E147: 25.33557324 | F147: 4.817419076e-07 | G147: 4.267281712e-06
A148: TYE7 | B148: YOR344C | C148: 0.9386411548 | D148: 6.461574342 | E148: 25.16393048 | F148: 5.265790079e-07 | G148: 4.607566319e-06
A149: DAL82 | B149: YNL314W | C149: 1.455165968 | D149: 4.680845033 | E149: 25.11989874 | F149: 5.387405562e-07 | G149: 4.692520171e-06
A150: LDB7 | B150: YBL006C | C150: 0.9005083571 | D150: 7.254261493 | E150: 25.01465465 | F150: 5.689622324e-07 | G150: 4.940761292e-06
A151: BSC1 | B151: YDL037C | C151: 1.469669458 | D151: 4.127058404 | E151: 24.89429247 | F151: 6.056145935e-07 | G151: 5.243179135e-06
A152: HVG1 | B152: YER039C | C152: 1.267245052 | D152: 4.888638407 | E152: 24.74737547 | F152: 6.535773662e-07 | G152: 5.641404634e-06
A153: RSF2 | B153: YJR127C | C153: 0.8291081801 | D153: 7.165240113 | E153: 24.6909807 | F153: 6.729838208e-07 | G153: 5.800190888e-06
A154: HAP4 | B154: YKL109W | C154: 1.045179248 | D154: 5.496025146 | E154: 24.55360092 | F154: 7.227115788e-07 | G154: 6.1639888e-06
A155: SEN2 | B155: YLR105C | C155: 0.9973530508 | D155: 5.757153206 | E155: 24.50403241 | F155: 7.4154481e-07 | G155: 6.296549126e-06
A156: YER158C | B156: YER158C | C156: 1.116129528 | D156: 5.584212434 | E156: 24.44354189 | F156: 7.651958073e-07 | G156: 6.487775383e-06
A157: AIM5 | B157: YBR262C | C157: 0.972454263 | D157: 5.873202645 | E157: 24.43615067 | F157: 7.68137057e-07 | G157: 6.503107238e-06
A158: AGX1 | B158: YFL030W | C158: 0.8972642042 | D158: 6.425737919 | E158: 24.31848526 | F158: 8.165171467e-07 | G158: 6.872153112e-06
A159: MRP20 | B159: YDR405W | C159: 0.996170079 | D159: 5.60074228 | E159: 24.26867125 | F159: 8.379088063e-07 | G159: 7.041869031e-06
A160: YLR194C | B160: YLR194C | C160: 0.9487026129 | D160: 7.601342767 | E160: 24.22048026 | F160: 8.591381898e-07 | G160: 7.209726915e-06
A161: HAL5 | B161: YJL165C | C161: 0.9371606795 | D161: 6.716780394 | E161: 24.169981 | F161: 8.819634185e-07 | G161: 7.368951997e-06
A162: YPT35 | B162: YHR105W | C162: 1.363859721 | D162: 4.146455905 | E162: 24.1489449 | F162: 8.916500583e-07 | G162: 7.439057172e-06
A163: YML020W | B163: YML020W | C163: 1.264095159 | D163: 4.249033754 | E163: 24.13323092 | F163: 8.989555335e-07 | G163: 7.489121571e-06
A164: FLD1 | B164: YLR404W | C164: 1.154282142 | D164: 4.593896847 | E164: 24.01474463 | F164: 9.560078435e-07 | G164: 7.913928957e-06
A165: EMI5 | B165: YOL071W | C165: 0.9657821608 | D165: 5.800824052 | E165: 23.99604782 | F165: 9.653365042e-07 | G165: 7.972707243e-06
A166: MRS3 | B166: YJL133W | C166: 0.9201843257 | D166: 6.292571345 | E166: 23.94623277 | F166: 9.906394749e-07 | G166: 8.13486493e-06
A167: ECM27 | B167: YJR106W | C167: 1.087936988 | D167: 5.95560067 | E167: 23.89857572 | F167: 1.015468627e-06 | G167: 8.291308562e-06
A168: YMR122W-A | B168: YMR122W-A | C168: 0.9839258869 | D168: 9.948444109 | E168: 23.86399903 | F168: 1.033872742e-06 | G168: 8.429587414e-06
A169: YKL187C | B169: YKL187C | C169: 1.412383087 | D169: 4.304491826 | E169: 23.82121595 | F169: 1.057108552e-06 | G169: 8.572429805e-06
A170: YKR051W | B170: YKR051W | C170: 1.022969874 | D170: 5.666505243 | E170: 23.82074739 | F170: 1.057365906e-06 | G170: 8.572429805e-06
A171: SDC1 | B171: YDR469W | C171: 1.735640352 | D171: 3.455296652 | E171: 23.78779628 | F171: 1.075622768e-06 | G171: 8.708144833e-06
A172: MAL31 | B172: YBR298C | C172: 1.085060523 | D172: 5.389156526 | E172: 23.68453236 | F172: 1.134910297e-06 | G172: 9.169178933e-06
A173: HEM12 | B173: YDR047W | C173: 0.8098033614 | D173: 8.371313813 | E173: 23.68308502 | F173: 1.13576415e-06 | G173: 9.169178933e-06
A174: YER184C | B174: YER184C | C174: 1.194093547 | D174: 4.533407238 | E174: 23.45735488 | F174: 1.277135321e-06 | G174: 1.02671663e-05
A175: TOS3 | B175: YGL179C | C175: 0.9238037359 | D175: 6.516732537 | E175: 23.44981245 | F175: 1.282152222e-06 | G175: 1.029308217e-05
A176: CRS5 | B176: YOR031W | C176: 1.225251258 | D176: 4.644333493 | E176: 23.43905896 | F176: 1.289339193e-06 | G176: 1.030789525e-05
A177: PUS2 | B177: YGL063W | C177: 1.045471496 | D177: 6.005306414 | E177: 23.4389909 | F177: 1.289384807e-06 | G177: 1.030789525e-05
A178: YGL010W | B178: YGL010W | C178: 1.082508791 | D178: 5.200115602 | E178: 23.39117513 | F178: 1.3218355e-06 | G178: 1.053796635e-05
A179: AAD14 | B179: YNL331C | C179: 1.543369784 | D179: 3.906126298 | E179: 23.37152433 | F179: 1.33540806e-06 | G179: 1.063140398e-05
A180: CDD1 | B180: YLR245C | C180: 1.039302585 | D180: 5.139059972 | E180: 23.30506165 | F180: 1.382357379e-06 | G180: 1.098993263e-05
A181: DOT6 | B181: YER088C | C181: 0.8394745339 | D181: 6.79833319 | E181: 23.2942083 | F181: 1.390179927e-06 | G181: 1.103683649e-05
A182: RPB7 | B182: YDR404C | C182: 0.8296262654 | D182: 6.868854608 | E182: 23.26007832 | F182: 1.415069622e-06 | G182: 1.121355041e-05
A183: YLR112W | B183: YLR112W | C183: 1.123144436 | D183: 4.858255454 | E183: 23.23318648 | F183: 1.434995255e-06 | G183: 1.134555477e-05
A184: DIG1 | B184: YPL049C | C184: 0.827794856 | D184: 7.393774036 | E184: 23.22431183 | F184: 1.441632532e-06 | G184: 1.138235314e-05
A185: SAT4 | B185: YCR008W | C185: 0.8004374683 | D185: 7.094396048 | E185: 23.19055251 | F185: 1.467163419e-06 | G185: 1.153632606e-05
A186: FMP33 | B186: YJL161W | C186: 1.144625086 | D186: 4.962448541 | E186: 23.17689249 | F186: 1.4776224e-06 | G186: 1.16026711e-05
A187: NDD1 | B187: YOR372C | C187: 1.048765434 | D187: 5.216604891 | E187: 23.10296985 | F187: 1.535533429e-06 | G187: 1.200812245e-05
A188: YLR252W | B188: YLR252W | C188: 1.12979179 | D188: 4.739010279 | E188: 23.03944263 | F188: 1.587116355e-06 | G188: 1.237778244e-05
A189: CDC31 | B189: YOR257W | C189: 1.591612732 | D189: 3.633115527 | E189: 23.01022271 | F189: 1.611422502e-06 | G189: 1.254616822e-05
A190: THI22 | B190: YPR121W | C190: 1.149505264 | D190: 4.58343534 | E190: 22.96998885 | F190: 1.645502631e-06 | G190: 1.276376365e-05
A191: FMP46 | B191: YKR049C | C191: 0.9446418867 | D191: 5.944132607 | E191: 22.96663118 | F191: 1.648379225e-06 | G191: 1.276882152e-05
A192: NTG1 | B192: YAL015C | C192: 0.9041228449 | D192: 6.397907604 | E192: 22.86623472 | F192: 1.736761388e-06 | G192: 1.341724141e-05
A193: ROG3 | B193: YFR022W | C193: 0.8986637503 | D193: 6.630402754 | E193: 22.86304812 | F193: 1.739643172e-06 | G193: 1.34214406e-05
A194: REC107 | B194: YJR021C | C194: 1.157440824 | D194: 5.030206903 | E194: 22.8161948 | F194: 1.782572697e-06 | G194: 1.373418427e-05
A195: YPR174C | B195: YPR174C | C195: 1.11270921 | D195: 4.724815163 | E195: 22.67021298 | F195: 1.923263101e-06 | G195: 1.466908133e-05
A196: ECM19 | B196: YLR390W | C196: 1.172550868 | D196: 4.594192779 | E196: 22.66911884 | F196: 1.924358578e-06 | G196: 1.466908133e-05
A197: DSE2 | B197: YHR143W | C197: 0.8809949031 | D197: 9.021765713 | E197: 22.56926278 | F197: 2.02701839e-06 | G197: 1.543114796e-05
A198: YRM1 | B198: YOR172W | C198: 0.9235018638 | D198: 5.760678181 | E198: 22.49145908 | F198: 2.110800343e-06 | G198: 1.602644705e-05
A199: YET2 | B199: YMR040W | C199: 1.449109749 | D199: 3.828721941 | E199: 22.41475448 | F199: 2.196799115e-06 | G199: 1.652637866e-05
A200: YDL133W | B200: YDL133W | C200: 1.148230875 | D200: 4.570090356 | E200: 22.36005088 | F200: 2.260270234e-06 | G200: 1.695941326e-05
... 5541 more rows

Sheet eIF4G1
A1: name | B1: genes | C1: logFC | D1: logCPM | E1: LR | F1: PValue | G1: FDR
A2: MFA2 | B2: YNL145W | C2: 1.693896161 | D2: 7.900143715 | E2: 77.60959399 | F2: 1.25558757e-18 | G2: 2.827583208e-16
A3: YER053C-A | B3: YER053C-A | C3: 2.535147142 | D3: 4.808786531 | E3: 72.71333813 | F3: 1.499174581e-17 | G3: 2.336650282e-15
A4: AAC1 | B4: YMR056C | C4: 2.017627071 | D4: 5.752052436 | E4: 67.05419625 | F4: 2.641447501e-16 | G4: 2.478558238e-14
A5: YOR338W | B5: YOR338W | C5: 1.702576287 | D5: 5.532902916 | E5: 63.30713327 | F5: 1.768626715e-15 | G5: 1.214313221e-13
A6: SPC25 | B6: YER018C | C6: 1.488505047 | D6: 6.766328417 | E6: 58.65856756 | F6: 1.875496574e-14 | G6: 1.03520056e-12
A7: YGR201C | B7: YGR201C | C7: 1.874524553 | D7: 6.081698163 | E7: 58.48777434 | F7: 2.045581357e-14 | G7: 1.096821242e-12
A8: NCA3 | B8: YJL116C | C8: 1.505836015 | D8: 6.061472978 | E8: 57.9052481 | F8: 2.750523256e-14 | G8: 1.460891126e-12
A9: GDH3 | B9: YAL062W | C9: 1.501376697 | D9: 5.757226594 | E9: 54.91449719 | F9: 1.258889939e-13 | G9: 5.670040284e-12
A10: HVG1 | B10: YER039C | C10: 1.697000732 | D10: 4.962346066 | E10: 54.10418908 | F10: 1.901354739e-13 | G10: 8.17147113e-12
A11: CLN3 | B11: YAL040C | C11: 1.354719768 | D11: 6.685862922 | E11: 53.27340075 | F11: 2.902096763e-13 | G11: 1.18397136e-11
A12: YLR297W | B12: YLR297W | C12: 1.577446672 | D12: 5.972973695 | E12: 52.83729043 | F12: 3.62355856e-13 | G12: 1.436664415e-11
A13: YHL019W-A | B13: YHL019W-A | C13: 2.80442405 | D13: 3.670187824 | E13: 52.23545215 | F13: 4.922929633e-13 | G13: 1.924728739e-11
A14: APT2 | B14: YDR441C | C14: 1.481123483 | D14: 5.829764164 | E14: 51.2535668 | F14: 8.117311292e-13 | G14: 3.067145139e-11
A15: PTC6 | B15: YCR079W | C15: 1.593786739 | D15: 7.744403884 | E15: 49.63072433 | F15: 1.855845006e-12 | G15: 6.5713254e-11
A16: ACS1 | B16: YAL054C | C16: 1.882575684 | D16: 6.264619144 | E16: 49.52081691 | F16: 1.962779414e-12 | G16: 6.863632361e-11
A17: YER186C | B17: YER186C | C17: 1.318585691 | D17: 6.472040169 | E17: 48.97059462 | F17: 2.598287226e-12 | G17: 8.520768005e-11
A18: SHR5 | B18: YOL110W | C18: 1.769678418 | D18: 7.069590907 | E18: 48.85393422 | F18: 2.757517465e-12 | G18: 8.973886315e-11
A19: IES6 | B19: YEL044W | C19: 1.416356266 | D19: 6.968585843 | E19: 48.51568058 | F19: 3.276584691e-12 | G19: 1.019180763e-10
A20: YPR157W | B20: YPR157W | C20: 1.367360962 | D20: 8.047372336 | E20: 48.486158 | F20: 3.326284257e-12 | G20: 1.026494796e-10
A21: FRA2 | B21: YGL220W | C21: 1.423934356 | D21: 6.966696162 | E21: 48.27116724 | F21: 3.711698546e-12 | G21: 1.129560152e-10
A22: PMA2 | B22: YPL036W | C22: 1.489690754 | D22: 5.476293483 | E22: 47.80600275 | F22: 4.70549112e-12 | G22: 1.416679947e-10
A23: YLR099W-A | B23: YLR099W-A | C23: 1.505107497 | D23: 6.068373632 | E23: 46.20541969 | F23: 1.064820228e-11 | G23: 3.07432712e-10
A24: SDP1 | B24: YIL113W | C24: 1.393574054 | D24: 6.704448903 | E24: 45.94602828 | F24: 1.215561168e-11 | G24: 3.473913389e-10
A25: TOS6 | B25: YNL300W | C25: 1.27233879 | D25: 6.673662815 | E25: 45.83450224 | F25: 1.286771067e-11 | G25: 3.658849045e-10
A26: YCL002C | B26: YCL002C | C26: 1.456323566 | D26: 6.460598335 | E26: 45.63650437 | F26: 1.423635574e-11 | G26: 4.007534141e-10
A27: AGX1 | B27: YFL030W | C27: 1.360437189 | D27: 6.066041689 | E27: 45.23661578 | F27: 1.746097731e-11 | G27: 4.772102052e-10
A28: LDB7 | B28: YBL006C | C28: 1.213422198 | D28: 7.850521722 | E28: 43.71884188 | F28: 3.791042941e-11 | G28: 9.881283222e-10
A29: PUS2 | B29: YGL063W | C29: 1.262605382 | D29: 6.352410087 | E29: 43.40604583 | F29: 4.448116923e-11 | G29: 1.144622895e-09
A30: YIL029C | B30: YIL029C | C30: 2.11159656 | D30: 3.898029634 | E30: 43.33629764 | F30: 4.609528689e-11 | G30: 1.171965146e-09
A31: CMK2 | B31: YOL016C | C31: 1.246094564 | D31: 8.349746516 | E31: 42.66623291 | F31: 6.492340725e-11 | G31: 1.59615189e-09
A32: HMS2 | B32: YJR147W | C32: 1.16162736 | D32: 7.019992885 | E32: 41.22868717 | F32: 1.35420393e-10 | G32: 3.150482698e-09
A33: PET122 | B33: YER153C | C33: 1.624637036 | D33: 5.101197528 | E33: 40.95141467 | F33: 1.560610072e-10 | G33: 3.571640124e-09
A34: YIR016W | B34: YIR016W | C34: 1.410313277 | D34: 7.053840439 | E34: 40.86175387 | F34: 1.633876054e-10 | G34: 3.709162171e-09
A35: YBR076C-A | B35: YBR076C-A | C35: 1.950930194 | D35: 4.141723007 | E35: 40.7164214 | F35: 1.760019088e-10 | G35: 3.932106137e-09
A36: MTM1 | B36: YGR257C | C36: 1.213398003 | D36: 6.80792871 | E36: 40.6555405 | F36: 1.815716865e-10 | G36: 4.040508281e-09
A37: BSC2 | B37: YDR275W | C37: 1.320971642 | D37: 5.9059181 | E37: 39.88120494 | F37: 2.698877573e-10 | G37: 5.866672099e-09
A38: BRE5 | B38: YNR051C | C38: 1.369489696 | D38: 6.428148749 | E38: 39.15937478 | F38: 3.905833086e-10 | G38: 8.296409941e-09
A39: YMR304C-A | B39: YMR304C-A | C39: 1.261636266 | D39: 5.762711257 | E39: 39.12533302 | F39: 3.974532009e-10 | G39: 8.380754761e-09
A40: HST2 | B40: YPL015C | C40: 1.121859516 | D40: 8.130493494 | E40: 38.53585898 | F40: 5.375685603e-10 | G40: 1.100549453e-08
A41: GTO3 | B41: YMR251W | C41: 1.591398026 | D41: 4.715301952 | E41: 38.49143233 | F41: 5.499457993e-10 | G41: 1.121809728e-08
A42: PEX2 | B42: YJL210W | C42: 1.217235029 | D42: 7.851739835 | E42: 38.12623214 | F42: 6.631259539e-10 | G42: 1.333356829e-08
A43: CHK1 | B43: YBR274W | C43: 1.166198721 | D43: 6.257557978 | E43: 37.61419803 | F43: 8.621464614e-10 | G43: 1.709114288e-08
A44: PDR10 | B44: YOR328W | C44: 1.126983957 | D44: 6.475741778 | E44: 37.37344765 | F44: 9.754109384e-10 | G44: 1.926864415e-08
A45: YOL014W | B45: YOL014W | C45: 1.259864671 | D45: 6.434458667 | E45: 37.28763889 | F45: 1.019286255e-09 | G45: 1.999505789e-08
A46: YJL077W-B | B46: YJL077W-B | C46: 3.376048408 | D46: 2.970216825 | E46: 36.23227881 | F46: 1.751454148e-09 | G46: 3.30895532e-08
A47: FLR1 | B47: YBR008C | C47: 1.320292371 | D47: 5.691239582 | E47: 35.94978415 | F47: 2.024688032e-09 | G47: 3.782830558e-08
A48: SGF29 | B48: YCL010C | C48: 1.217078515 | D48: 6.037342865 | E48: 35.93622121 | F48: 2.03883078e-09 | G48: 3.788322539e-08
A49: SAP4 | B49: YGL229C | C49: 1.424202715 | D49: 5.028083246 | E49: 35.68367014 | F49: 2.321014417e-09 | G49: 4.242633497e-08
A50: NHP6B | B50: YBR089C-A | C50: 1.112736006 | D50: 6.71724532 | E50: 35.66395152 | F50: 2.344627033e-09 | G50: 4.271925629e-08
A51: BTN2 | B51: YGR142W | C51: 1.232165212 | D51: 7.709468395 | E51: 35.36889018 | F51: 2.728097462e-09 | G51: 4.891461373e-08
A52: CUE4 | B52: YML101C | C52: 1.337816235 | D52: 6.052617978 | E52: 35.2209226 | F52: 2.94344205e-09 | G52: 5.244170488e-08
A53: RTG1 | B53: YOL067C | C53: 1.214503054 | D53: 6.203335266 | E53: 34.75584416 | F53: 3.737550415e-09 | G53: 6.596366406e-08
A54: KSP1 | B54: YHR082C | C54: 1.051878189 | D54: 7.354959216 | E54: 34.49603189 | F54: 4.271211803e-09 | G54: 7.3816064e-08
A55: QDR1 | B55: YIL120W | C55: 1.292647087 | D55: 5.360087394 | E55: 34.34411554 | F55: 4.617944963e-09 | G55: 7.885744678e-08
A56: YMR262W | B56: YMR262W | C56: 1.037734218 | D56: 7.087178973 | E56: 34.10893925 | F56: 5.211131947e-09 | G56: 8.810412271e-08
A57: YDR374W-A | B57: YDR374W-A | C57: 1.365190854 | D57: 5.094903524 | E57: 33.77476817 | F57: 6.187621066e-09 | G57: 1.035933348e-07
A58: TRP1 | B58: YDR007W | C58: 1.01709267 | D58: 7.138415599 | E58: 33.41166872 | F58: 7.457518054e-09 | G58: 1.22765575e-07
A59: BSC1 | B59: YDL037C | C59: 1.700904648 | D59: 4.441984924 | E59: 33.307568 | F59: 7.867586429e-09 | G59: 1.291385178e-07
A60: ADH4 | B60: YGL256W | C60: 1.079361612 | D60: 6.328675485 | E60: 33.14438601 | F60: 8.556305662e-09 | G60: 1.400348863e-07
A61: RRT15 | B61: YLR162W-A | C61: 2.712646967 | D61: 3.258856183 | E61: 32.99155652 | F61: 9.255997913e-09 | G61: 1.501765656e-07
A62: COA3 | B62: YJL062W-A | C62: 1.142851122 | D62: 6.990968191 | E62: 32.87554181 | F62: 9.825164362e-09 | G62: 1.580447867e-07
A63: LPX1 | B63: YOR084W | C63: 1.030071714 | D63: 7.154860596 | E63: 32.8131433 | F63: 1.014565429e-08 | G63: 1.622728229e-07
A64: IMG1 | B64: YCR046C | C64: 1.089389712 | D64: 7.466904518 | E64: 32.63866831 | F64: 1.109845871e-08 | G64: 1.765093857e-07
A65: TAH11 | B65: YJR046W | C65: 1.04070002 | D65: 7.814667937 | E65: 32.41589502 | F65: 1.244642416e-08 | G65: 1.957356648e-07
A66: SML1 | B66: YML058W | C66: 1.059025521 | D66: 7.419429342 | E66: 32.27123546 | F66: 1.340836434e-08 | G66: 2.096919201e-07
A67: YBR085C-A | B67: YBR085C-A | C67: 1.049599197 | D67: 7.845243784 | E67: 31.91476959 | F67: 1.610876411e-08 | G67: 2.484721698e-07
A68: MUP3 | B68: YHL036W | C68: 1.077396595 | D68: 6.47765956 | E68: 31.81420662 | F68: 1.696473262e-08 | G68: 2.581390396e-07
A69: YFR020W | B69: YFR020W | C69: 1.371483648 | D69: 5.600421344 | E69: 31.79554343 | F69: 1.712853107e-08 | G69: 2.599289216e-07
A70: YNL097W-A | B70: YNL097W-A | C70: 2.075799549 | D70: 3.949840938 | E70: 31.40059818 | F70: 2.099162225e-08 | G70: 3.15154222e-07
A71: SYG1 | B71: YIL047C | C71: 1.170435884 | D71: 9.55597326 | E71: 31.36176734 | F71: 2.141567728e-08 | G71: 3.206655934e-07
A72: TOM6 | B72: YOR045W | C72: 1.173089102 | D72: 7.623978105 | E72: 31.26127649 | F72: 2.255336383e-08 | G72: 3.359138582e-07
A73: TAH1 | B73: YCR060W | C73: 1.292203248 | D73: 5.57294685 | E73: 31.13416014 | F73: 2.40796277e-08 | G73: 3.577000104e-07
A74: SLX8 | B74: YER116C | C74: 1.560881284 | D74: 4.180334216 | E74: 30.61692509 | F74: 3.143396533e-08 | G74: 4.561165587e-07
A75: SRD1 | B75: YCR018C | C75: 1.376503531 | D75: 5.091113272 | E75: 30.30503755 | F75: 3.691658807e-08 | G75: 5.261782046e-07
A76: MRPS16 | B76: YPL013C | C76: 1.384152364 | D76: 5.225723717 | E76: 30.15680194 | F76: 3.984871276e-08 | G76: 5.651089493e-07
A77: ASK1 | B77: YKL052C | C77: 1.052440643 | D77: 6.298765553 | E77: 30.10134521 | F77: 4.100466827e-08 | G77: 5.785871739e-07
A78: AVL9 | B78: YLR114C | C78: 1.045054461 | D78: 6.125911194 | E78: 29.74734831 | F78: 4.92179056e-08 | G78: 6.875851328e-07
A79: ARR1 | B79: YPR199C | C79: 1.25069453 | D79: 5.050356582 | E79: 29.72405234 | F79: 4.981292224e-08 | G79: 6.941751293e-07
A80: REV3 | B80: YPL167C | C80: 1.59820883 | D80: 4.222708651 | E80: 29.42400039 | F80: 5.815298297e-08 | G80: 8.024541522e-07
A81: KEL2 | B81: YGR238C | C81: 1.386410769 | D81: 4.779932949 | E81: 29.36271194 | F81: 6.002149585e-08 | G81: 8.262127668e-07
A82: YHK8 | B82: YHR048W | C82: 2.199369585 | D82: 4.298130788 | E82: 29.31993263 | F82: 6.136125179e-08 | G82: 8.405446413e-07
A83: MAL31 | B83: YBR298C | C83: 1.278746363 | D83: 4.891983099 | E83: 29.18482871 | F83: 6.579235807e-08 | G83: 8.968788764e-07
A84: PDR8 | B84: YLR266C | C84: 1.184818459 | D84: 5.11458366 | E84: 29.13708901 | F84: 6.743362082e-08 | G84: 9.104347368e-07
A85: GPA2 | B85: YER020W | C85: 0.9853200789 | D85: 7.542195076 | E85: 28.97960638 | F85: 7.314429721e-08 | G85: 9.828219411e-07
A86: NIT1 | B86: YIL164C | C86: 1.316362493 | D86: 4.979370431 | E86: 28.83551589 | F86: 7.879292933e-08 | G86: 1.038885696e-06
A87: BDF2 | B87: YDL070W | C87: 1.003293702 | D87: 7.935145594 | E87: 28.67774575 | F87: 8.548042721e-08 | G87: 1.114015753e-06
A88: BRE4 | B88: YDL231C | C88: 1.103274729 | D88: 6.635419395 | E88: 28.64392394 | F88: 8.698650298e-08 | G88: 1.128419382e-06
A89: RRG7 | B89: YOR305W | C89: 1.885537649 | D89: 4.024249522 | E89: 28.44009441 | F89: 9.66429676e-08 | G89: 1.242237232e-06
A90: USE1 | B90: YGL098W | C90: 1.535327142 | D90: 4.180629239 | E90: 28.22634189 | F90: 1.079257249e-07 | G90: 1.37611719e-06
A91: YMR181C | B91: YMR181C | C91: 1.429796715 | D91: 4.576694761 | E91: 28.17835525 | F91: 1.106348985e-07 | G91: 1.399717929e-06
A92: MEP3 | B92: YPR138C | C92: 1.015147431 | D92: 8.617063341 | E92: 28.14220258 | F92: 1.127208846e-07 | G92: 1.419728367e-06
A93: ALF1 | B93: YNL148C | C93: 1.175647204 | D93: 5.352884277 | E93: 28.08755326 | F93: 1.159491783e-07 | G93: 1.441046079e-06
A94: ERS1 | B94: YCR075C | C94: 1.011838636 | D94: 6.52524284 | E94: 28.05436459 | F94: 1.179547834e-07 | G94: 1.459528419e-06
A95: YNL046W | B95: YNL046W | C95: 1.210634397 | D95: 6.30670573 | E95: 27.95087569 | F95: 1.244346327e-07 | G95: 1.532969326e-06
A96: MRPL37 | B96: YBR268W | C96: 1.060116066 | D96: 5.8618194 | E96: 27.81529946 | F96: 1.334664904e-07 | G96: 1.629970371e-06
A97: YAT1 | B97: YAR035W | C97: 1.606997842 | D97: 4.820227309 | E97: 27.66498205 | F97: 1.442504923e-07 | G97: 1.757857731e-06
A98: PHM7 | B98: YOL084W | C98: 1.002181071 | D98: 7.380246136 | E98: 27.5624721 | F98: 1.521014044e-07 | G98: 1.841571843e-06
A99: SWR1 | B99: YDR334W | C99: 1.119404362 | D99: 6.265453176 | E99: 27.36274522 | F99: 1.686492056e-07 | G99: 2.03317993e-06
A100: PTH1 | B100: YHR189W | C100: 1.121795378 | D100: 5.365488874 | E100: 27.247529 | F100: 1.790037506e-07 | G100: 2.139683898e-06
A101: YSP3 | B101: YOR003W | C101: 1.38480004 | D101: 4.762213653 | E101: 27.1466191 | F101: 1.885947267e-07 | G101: 2.225971302e-06
A102: YER152C | B102: YER152C | C102: 1.008291754 | D102: 8.249640598 | E102: 27.02273319 | F102: 2.010766719e-07 | G102: 2.368329839e-06
A103: ERF2 | B103: YLR246W | C103: 1.147842379 | D103: 5.244797164 | E103: 26.96176486 | F103: 2.075201533e-07 | G103: 2.428978093e-06
A104: SAS3 | B104: YBL052C | C104: 1.653430507 | D104: 3.988307671 | E104: 26.94761189 | F104: 2.090452774e-07 | G104: 2.441752929e-06
A105: PAC11 | B105: YDR488C | C105: 1.026266294 | D105: 6.089657982 | E105: 26.87640154 | F105: 2.16891071e-07 | G105: 2.528150579e-06
A106: MRPS12 | B106: YNR036C | C106: 1.044234951 | D106: 8.312296066 | E106: 26.75700049 | F106: 2.307143947e-07 | G106: 2.683723228e-06
A107: YEL073C | B107: YEL073C | C107: 1.877307085 | D107: 3.532727799 | E107: 26.65242627 | F107: 2.435447686e-07 | G107: 2.827127933e-06
A108: RRN5 | B108: YLR141W | C108: 1.292001933 | D108: 4.904167541 | E108: 26.63383556 | F108: 2.458994532e-07 | G108: 2.841115887e-06
A109: HAL5 | B109: YJL165C | C109: 0.9333269449 | D109: 6.762121628 | E109: 26.63097581 | F109: 2.462636861e-07 | G109: 2.841115887e-06
A110: DAD1 | B110: YDR016C | C110: 1.262403447 | D110: 5.338832114 | E110: 26.56943103 | F110: 2.542347538e-07 | G110: 2.921105437e-06
A111: GPR1 | B111: YDL035C | C111: 1.079686757 | D111: 5.66656179 | E111: 26.56354636 | F111: 2.550103316e-07 | G111: 2.92404922e-06
A112: FMP46 | B112: YKR049C | C112: 1.11593202 | D112: 5.776077011 | E112: 26.52819088 | F112: 2.597202389e-07 | G112: 2.96597352e-06
A113: YHR080C | B113: YHR080C | C113: 1.185675535 | D113: 5.722034023 | E113: 26.36154831 | F113: 2.831210278e-07 | G113: 3.188646664e-06
A114: SWT21 | B114: YNL187W | C114: 1.175796051 | D114: 5.060920647 | E114: 26.36112189 | F114: 2.831835403e-07 | G114: 3.188646664e-06
A115: IRC15 | B115: YPL017C | C115: 1.074114477 | D115: 6.305118968 | E115: 26.29815485 | F115: 2.925680579e-07 | G115: 3.274668322e-06
A116: SPR6 | B116: YER115C | C116: 1.370748794 | D116: 5.049216056 | E116: 26.14264625 | F116: 3.171024556e-07 | G116: 3.528234832e-06
A117: YLR152C | B117: YLR152C | C117: 1.021125021 | D117: 6.501147116 | E117: 26.1161142 | F117: 3.214897515e-07 | G117: 3.562967127e-06
A118: SRL1 | B118: YOR247W | C118: 1.262242676 | D118: 6.142687366 | E118: 26.06312103 | F118: 3.304355975e-07 | G118: 3.654916333e-06
A119: PRM7 | B119: YDL039C | C119: 1.044165003 | D119: 5.783092145 | E119: 26.02752285 | F119: 3.365846654e-07 | G119: 3.708359426e-06
A120: TPO2 | B120: YGR138C | C120: 0.9785928044 | D120: 9.342053592 | E120: 25.74457549 | F120: 3.897208521e-07 | G120: 4.243962084e-06
A121: THG1 | B121: YGR024C | C121: 0.9906597696 | D121: 6.42990551 | E121: 25.6537468 | F121: 4.085015677e-07 | G121: 4.431336852e-06
A122: ENT4 | B122: YLL038C | C122: 0.9697440512 | D122: 6.263339024 | E122: 25.6486215 | F122: 4.095879719e-07 | G122: 4.434577465e-06
A123: LSM5 | B123: YER146W | C123: 1.092578809 | D123: 6.382352741 | E123: 25.56884213 | F123: 4.268770713e-07 | G123: 4.612894264e-06
A124: YOL097W-A | B124: YOL097W-A | C124: 3.088145887 | D124: 2.490402158 | E124: 25.55605993 | F124: 4.297143325e-07 | G124: 4.634658413e-06
A125: ERI1 | B125: YPL096C-A | C125: 1.15799955 | D125: 5.50012756 | E125: 25.50535247 | F125: 4.411573534e-07 | G125: 4.739915839e-06
A126: HUT1 | B126: YPL244C | C126: 0.9970030457 | D126: 7.067157849 | E126: 25.49277518 | F126: 4.440426108e-07 | G126: 4.761828378e-06
A127: AIM5 | B127: YBR262C | C127: 1.045415457 | D127: 6.105268124 | E127: 25.33557344 | F127: 4.8174186e-07 | G127: 5.13675506e-06
A128: ROM1 | B128: YGR070W | C128: 1.158843034 | D128: 5.083961428 | E128: 25.19518077 | F128: 5.181150436e-07 | G128: 5.49338549e-06
A129: DYN1 | B129: YKR054C | C129: 0.9900840642 | D129: 6.558559801 | E129: 25.10096276 | F129: 5.440568822e-07 | G129: 5.740168148e-06
A130: ATS1 | B130: YAL020C | C130: 1.218032792 | D130: 6.956699955 | E130: 25.09957224 | F130: 5.444493412e-07 | G130: 5.740168148e-06
A131: AAD6 | B131: YFL056C | C131: 1.485507673 | D131: 4.039559365 | E131: 24.99942349 | F131: 5.734745922e-07 | G131: 6.023623049e-06
A132: YIR035C | B132: YIR035C | C132: 0.977993812 | D132: 9.214489247 | E132: 24.82819005 | F132: 6.267415782e-07 | G132: 6.534361269e-06
A133: FCY1 | B133: YPR062W | C133: 1.062553918 | D133: 5.691514166 | E133: 24.78706059 | F133: 6.402582991e-07 | G133: 6.66294681e-06
A134: YOR246C | B134: YOR246C | C134: 0.9133854146 | D134: 8.625330858 | E134: 24.67487165 | F134: 6.786325881e-07 | G134: 7.036282636e-06
A135: DAL2 | B135: YIR029W | C135: 1.952183045 | D135: 3.684224537 | E135: 24.56301751 | F135: 7.191883919e-07 | G135: 7.388742056e-06
A136: SWC7 | B136: YLR385C | C136: 2.44410798 | D136: 2.787909104 | E136: 24.51251805 | F136: 7.382861841e-07 | G136: 7.545349662e-06
A137: YGR161W-C | B137: YGR161W-C | C137: 1.248509117 | D137: 4.692306754 | E137: 24.4746934 | F137: 7.529230067e-07 | G137: 7.679269072e-06
A138: TOA2 | B138: YKL058W | C138: 0.9082849795 | D138: 6.917990188 | E138: 24.20855807 | F138: 8.644729251e-07 | G138: 8.75356577e-06
A139: MDE1 | B139: YJR024C | C139: 0.9204916312 | D139: 8.024716541 | E139: 24.18972571 | F139: 8.729674596e-07 | G139: 8.807897487e-06
A140: YER039C-A | B140: YER039C-A | C140: 2.478207647 | D140: 2.806553005 | E140: 24.17796067 | F140: 8.783166325e-07 | G140: 8.846015458e-06
A141: RAD1 | B141: YPL022W | C141: 0.960327578 | D141: 6.086574943 | E141: 24.11510841 | F141: 9.07455296e-07 | G141: 9.123166637e-06
A142: YGL010W | B142: YGL010W | C142: 1.257100256 | D142: 4.750399354 | E142: 24.06939363 | F142: 9.292561015e-07 | G142: 9.309095821e-06
A143: SMC6 | B143: YLR383W | C143: 1.491010477 | D143: 4.312848438 | E143: 23.98136129 | F143: 9.727282328e-07 | G143: 9.710035374e-06
A144: PRY1 | B144: YJL079C | C144: 0.8860686742 | D144: 7.670397758 | E144: 23.95052012 | F144: 9.884358549e-07 | G144: 9.849369669e-06
A145: BDS1 | B145: YOL164W | C145: 1.056232113 | D145: 5.661006878 | E145: 23.8323467 | F145: 1.051013425e-06 | G145: 1.041761546e-05
A146: MTQ1 | B146: YNL063W | C146: 1.149012895 | D146: 5.850145512 | E146: 23.76569643 | F146: 1.088044169e-06 | G146: 1.076570944e-05
A147: YBR284W | B147: YBR284W | C147: 1.31873635 | D147: 4.594355311 | E147: 23.74424234 | F147: 1.100240218e-06 | G147: 1.086728496e-05
A148: YNR065C | B148: YNR065C | C148: 1.445567368 | D148: 4.016787702 | E148: 23.63766941 | F148: 1.162886599e-06 | G148: 1.144589432e-05
A149: YKL068W-A | B149: YKL068W-A | C149: 1.265731793 | D149: 4.661117976 | E149: 23.62920971 | F149: 1.168010087e-06 | G149: 1.147625967e-05
A150: YFR018C | B150: YFR018C | C150: 0.8436894596 | D150: 7.548871683 | E150: 23.53042466 | F150: 1.229540091e-06 | G150: 1.203880124e-05
A151: COX19 | B151: YLL018C-A | C151: 1.205274122 | D151: 5.190645919 | E151: 23.44286127 | F151: 1.286793357e-06 | G151: 1.249077e-05
A152: WHI5 | B152: YOR083W | C152: 1.070879298 | D152: 6.53959144 | E152: 23.39389394 | F152: 1.319968577e-06 | G152: 1.279074542e-05
A153: YCR006C | B153: YCR006C | C153: 1.558298846 | D153: 4.079129593 | E153: 23.38720162 | F153: 1.32456875e-06 | G153: 1.281326815e-05
A154: YJL144W | B154: YJL144W | C154: 1.025042093 | D154: 6.38894713 | E154: 23.27870173 | F154: 1.401433382e-06 | G154: 1.346428317e-05
A155: PET111 | B155: YMR257C | C155: 1.420170474 | D155: 4.130264787 | E155: 23.17926038 | F155: 1.475804049e-06 | G155: 1.415464531e-05
A156: YJL127C-B | B156: YJL127C-B | C156: 1.274397835 | D156: 5.715456729 | E156: 23.16117928 | F156: 1.489745956e-06 | G156: 1.423984674e-05
A157: ADY4 | B157: YLR227C | C157: 2.166308788 | D157: 2.866943218 | E157: 23.10230035 | F157: 1.536068185e-06 | G157: 1.45880066e-05
A158: SNA2 | B158: YDR525W-A | C158: 0.9734338472 | D158: 6.051445534 | E158: 23.0740971 | F158: 1.558765761e-06 | G158: 1.473543081e-05
A159: MGA1 | B159: YGR249W | C159: 1.082224359 | D159: 5.210759099 | E159: 22.98647661 | F159: 1.631450091e-06 | G159: 1.533399668e-05
A160: PMP1 | B160: YCR024C-A | C160: 0.8592687502 | D160: 8.369323388 | E160: 22.84290105 | F160: 1.75797443e-06 | G160: 1.641359211e-05
A161: ASI2 | B161: YNL159C | C161: 1.04776293 | D161: 5.253328264 | E161: 22.80670887 | F161: 1.791392725e-06 | G161: 1.669791563e-05
A162: IMP1 | B162: YMR150C | C162: 1.189858898 | D162: 5.284237784 | E162: 22.71613563 | F162: 1.87784388e-06 | G162: 1.741723401e-05
A163: SOH1 | B163: YGL127C | C163: 0.9779646447 | D163: 5.612025432 | E163: 22.63869419 | F163: 1.955072507e-06 | G163: 1.807398721e-05
A164: TRK2 | B164: YKR050W | C164: 0.8684540626 | D164: 6.892080993 | E164: 22.62149618 | F164: 1.972651094e-06 | G164: 1.818213103e-05
A165: THI74 | B165: YDR438W | C165: 1.253008472 | D165: 5.101102887 | E165: 22.62093291 | F165: 1.973229495e-06 | G165: 1.818213103e-05
A166: PHO4 | B166: YFR034C | C166: 1.05338275 | D166: 5.711193468 | E166: 22.55088346 | F166: 2.046503961e-06 | G166: 1.882649885e-05
A167: HHY1 | B167: YEL059W | C167: 10.53968287 | D167: 0.2498194766 | E167: 22.36788443 | F167: 2.251069538e-06 | G167: 2.040824718e-05
A168: RIM21 | B168: YNL294C | C168: 0.9666751482 | D168: 5.773174577 | E168: 22.15769269 | F168: 2.511476042e-06 | G168: 2.251530273e-05
A169: TOK1 | B169: YJL093C | C169: 0.8233368607 | D169: 7.444856184 | E169: 22.13918497 | F169: 2.535804853e-06 | G169: 2.269726761e-05
A170: YPR202W | B170: YPR202W | C170: 6.459539798 | D170: 0.5904737426 | E170: 22.10247427 | F170: 2.584763739e-06 | G170: 2.307134302e-05
A171: NBL1 | B171: YHR199C-A | C171: 1.350421774 | D171: 4.411844975 | E171: 22.02332405 | F171: 2.693572614e-06 | G171: 2.395705184e-05
A172: TEL1 | B172: YBL088C | C172: 1.027766352 | D172: 5.628356147 | E172: 21.8984352 | F172: 2.874682384e-06 | G172: 2.548734145e-05
A173: BIO4 | B173: YNR057C | C173: 1.262701858 | D173: 4.375005038 | E173: 21.87846094 | F173: 2.904761082e-06 | G173: 2.57135297e-05
A174: TEN1 | B174: YLR010C | C174: 1.630881264 | D174: 3.652331015 | E174: 21.8712881 | F174: 2.915639361e-06 | G174: 2.572891787e-05
A175: SBH2 | B175: YER019C-A | C175: 0.9082896017 | D175: 8.561976498 | E175: 21.70674064 | F175: 3.17673079e-06 | G175: 2.785824665e-05
A176: YMR1 | B176: YJR110W | C176: 1.079542105 | D176: 5.213879699 | E176: 21.62039506 | F176: 3.322995051e-06 | G176: 2.905040704e-05
A177: YIL165C | B177: YIL165C | C177: 1.401924586 | D177: 4.220497413 | E177: 21.47330705 | F177: 3.587883959e-06 | G177: 3.112447872e-05
A178: YOL085W-A | B178: YOL085W-A | C178: 1.313208453 | D178: 4.564979937 | E178: 21.39744197 | F178: 3.732688659e-06 | G178: 3.228116305e-05
A179: GPB2 | B179: YAL056W | C179: 0.875260657 | D179: 6.505908668 | E179: 21.28868927 | F179: 3.950556317e-06 | G179: 3.411293262e-05
A180: GUD1 | B180: YDL238C | C180: 0.8978058588 | D180: 5.85977542 | E180: 21.23778412 | F180: 4.056876779e-06 | G180: 3.497736029e-05
A181: YLR137W | B181: YLR137W | C181: 0.9783496887 | D181: 6.000687931 | E181: 21.19112149 | F181: 4.156857043e-06 | G181: 3.572993153e-05
A182: UTH1 | B182: YKR042W | C182: 0.9825264717 | D182: 11.20180349 | E182: 21.16736891 | F182: 4.208695711e-06 | G182: 3.612036106e-05
A183: YCR045W-A | B183: YCR045W-A | C183: 1.111882981 | D183: 5.271459465 | E183: 21.13557361 | F183: 4.279104049e-06 | G183: 3.664212156e-05
A184: ACN9 | B184: YDR511W | C184: 0.9409241845 | D184: 5.564959115 | E184: 21.09033256 | F184: 4.381329463e-06 | G184: 3.731752629e-05
A185: ULP2 | B185: YIL031W | C185: 1.084831717 | D185: 4.902501039 | E185: 21.02426959 | F185: 4.535022351e-06 | G185: 3.851689838e-05
A186: NAT4 | B186: YMR069W | C186: 1.32581613 | D186: 4.959822073 | E186: 21.00085713 | F186: 4.590779435e-06 | G186: 3.892483165e-05
A187: HOR7 | B187: YMR251W-A | C187: 0.9117613043 | D187: 9.87159546 | E187: 20.97585126 | F187: 4.65109131e-06 | G187: 3.937690839e-05
A188: YIA6 | B188: YIL006W | C188: 1.043035195 | D188: 5.520944852 | E188: 20.96039439 | F188: 4.688768899e-06 | G188: 3.963628964e-05
A189: YSY6 | B189: YBR162W-A | C189: 1.041478435 | D189: 6.15179623 | E189: 20.89329265 | F189: 4.855919545e-06 | G189: 4.098774668e-05
A190: MDM35 | B190: YKL053C-A | C190: 0.8375303607 | D190: 6.483637049 | E190: 20.88898698 | F190: 4.866846933e-06 | G190: 4.101848537e-05
A191: RMI1 | B191: YPL024W | C191: 1.026144931 | D191: 5.253175019 | E191: 20.83079797 | F191: 5.016968741e-06 | G191: 4.215751345e-05
A192: GCR1 | B192: YPL075W | C192: 0.8777304394 | D192: 6.163978264 | E192: 20.81421166 | F192: 5.060604774e-06 | G192: 4.239762631e-05
A193: YGL072C | B193: YGL072C | C193: 1.637362205 | D193: 4.107607469 | E193: 20.80887256 | F193: 5.07473202e-06 | G193: 4.240022376e-05
A194: KAE1 | B194: YKR038C | C194: 1.051361132 | D194: 5.45121983 | E194: 20.74557767 | F194: 5.245256925e-06 | G194: 4.355574704e-05
A195: NSE1 | B195: YLR007W | C195: 1.131471362 | D195: 4.73093615 | E195: 20.74087406 | F195: 5.258156319e-06 | G195: 4.359855682e-05
A196: SUN4 | B196: YNL066W | C196: 0.8766975747 | D196: 9.794991016 | E196: 20.7070588 | F196: 5.35183481e-06 | G196: 4.431004409e-05
A197: YBR056W-A | B197: YBR056W-A | C197: 0.9991401448 | D197: 5.647370145 | E197: 20.62156561 | F197: 5.596216821e-06 | G197: 4.598107844e-05
A198: YGL194C-A | B198: YGL194C-A | C198: 1.607887824 | D198: 3.473961212 | E198: 20.620215 | F198: 5.600166086e-06 | G198: 4.598107844e-05
A199: LST8 | B199: YNL006W | C199: 0.7999700829 | D199: 7.137777325 | E199: 20.61935993 | F199: 5.602667817e-06 | G199: 4.598107844e-05
A200: WSS1 | B200: YHR134W | C200: 1.088415339 | D200: 5.13565702 | E200: 20.55098597 | F200: 5.806387696e-06 | G200: 4.730819498e-05
... 5431 more rows

Sheet eIF4E
A1: name | B1: genes | C1: logFC | D1: logCPM | E1: LR | F1: PValue | G1: FDR
A2: MFA2 | B2: YNL145W | C2: 2.588662269 | D2: 9.141685963 | E2: 120.1634925 | F2: 5.825604554e-28 | G2: 1.722296781e-24
A3: SHR5 | B3: YOL110W | C3: 2.354145942 | D3: 7.131461616 | E3: 119.2633438 | F3: 9.170909377e-28 | G3: 1.722296781e-24
A4: CAF20 | B4: YOR276W | C4: 2.328737455 | D4: 9.286475627 | E4: 111.1213962 | F4: 5.565607737e-26 | G4: 6.271326798e-23
A5: CUE4 | B5: YML101C | C5: 2.386155488 | D5: 6.546904947 | E5: 105.5724045 | F5: 9.14930121e-25 | G5: 7.82951769e-22
A6: ERI1 | B6: YPL096C-A | C6: 2.812022742 | D6: 5.207963457 | E6: 105.4509074 | F6: 9.727835256e-25 | G6: 7.82951769e-22
A7: GON7 | B7: YJL184W | C7: 2.169568133 | D7: 6.265925486 | E7: 96.0150839 | F7: 1.14011514e-22 | G7: 7.137120775e-20
A8: MIM1 | B8: YOL026C | C8: 2.056366324 | D8: 7.71161341 | E8: 94.98559947 | F8: 1.917752808e-22 | G8: 1.080461932e-19
A9: TOM6 | B9: YOR045W | C9: 2.513644547 | D9: 7.874766409 | E9: 90.23769288 | F9: 2.111999541e-21 | G9: 8.499289581e-19
A10: FRA2 | B10: YGL220W | C10: 2.205852298 | D10: 7.316223162 | E10: 89.19163503 | F10: 3.583610413e-21 | G10: 1.346004071e-18
A11: YJL127C-B | B11: YJL127C-B | C11: 2.450844642 | D11: 5.903022515 | E11: 87.62361466 | F11: 7.917370844e-21 | G11: 2.323407314e-18
A12: APT2 | B12: YDR441C | C12: 2.19860017 | D12: 5.322840045 | E12: 83.2258647 | F12: 7.319373734e-20 | G12: 1.649494065e-17
A13: IES6 | B13: YEL044W | C13: 1.889502631 | D13: 6.762971779 | E13: 79.04870947 | F13: 6.059730199e-19 | G13: 1.177259308e-16
A14: SDP1 | B14: YIL113W | C14: 1.88588475 | D14: 6.358431288 | E14: 78.26592363 | F14: 9.006215959e-19 | G14: 1.629836467e-16
A15: ATP15 | B15: YPL271W | C15: 1.998077171 | D15: 7.01944818 | E15: 76.55169944 | F15: 2.145227888e-18 | G15: 3.266544303e-16
A16: YHL019W-A | B16: YHL019W-A | C16: 3.190154849 | D16: 4.002894858 | E16: 75.72275809 | F16: 3.264236276e-18 | G16: 4.378739804e-16
A17: TOS6 | B17: YNL300W | C17: 2.286631958 | D17: 5.745928979 | E17: 75.30401899 | F17: 4.035374066e-18 | G17: 5.052288331e-16
A18: SOH1 | B18: YGL127C | C18: 2.140242329 | D18: 5.631416715 | E18: 75.19454425 | F18: 4.265441216e-18 | G18: 5.224238219e-16
A19: EAP1 | B19: YKL204W | C19: 1.997506951 | D19: 5.556288006 | E19: 73.16735289 | F19: 1.1910974e-17 | G19: 1.290508221e-15
A20: YER053C-A | B20: YER053C-A | C20: 3.13800318 | D20: 3.87060195 | E20: 72.7136659 | F20: 1.498925613e-17 | G20: 1.593386208e-15
A21: AAC1 | B21: YMR056C | C21: 1.849973568 | D21: 5.970178071 | E21: 72.67513762 | F21: 1.528475602e-17 | G21: 1.594709544e-15
A22: YDR374W-A | B22: YDR374W-A | C22: 2.228683682 | D22: 5.901077664 | E22: 72.63613866 | F22: 1.558980117e-17 | G22: 1.596962542e-15
A23: YSY6 | B23: YBR162W-A | C23: 1.819646984 | D23: 6.506309632 | E23: 72.22525761 | F23: 1.919827506e-17 | G23: 1.931483601e-15
A24: MDE1 | B24: YJR024C | C24: 1.784598172 | D24: 8.280258056 | E24: 71.5053267 | F24: 2.765106487e-17 | G24: 2.596434991e-15
A25: YCR075W-A | B25: YCR075W-A | C25: 1.980866273 | D25: 5.392393728 | E25: 66.76700914 | F25: 3.055694365e-16 | G25: 2.459397436e-14
A26: HVG1 | B26: YER039C | C26: 2.039994146 | D26: 4.931461467 | E26: 66.54399145 | F26: 3.421714741e-16 | G26: 2.715202937e-14
A27: YOL085W-A | B27: YOL085W-A | C27: 3.102321065 | D27: 4.465668134 | E27: 66.47842405 | F27: 3.537444607e-16 | G27: 2.768050405e-14
A28: DIF1 | B28: YLR437C | C28: 2.314748083 | D28: 4.789565926 | E28: 66.39983168 | F28: 3.681335725e-16 | G28: 2.841184311e-14
A29: HMS2 | B29: YJR147W | C29: 1.898612387 | D29: 5.919251968 | E29: 66.35358341 | F29: 3.768731167e-16 | G29: 2.869328567e-14
A30: TIF4632 | B30: YGL049C | C30: 1.731048499 | D30: 6.506644979 | E30: 66.03422789 | F30: 4.431599147e-16 | G30: 3.28521442e-14
A31: MAK31 | B31: YCR020C-A | C31: 1.935832293 | D31: 5.692230247 | E31: 63.7626993 | F31: 1.403459222e-15 | G31: 9.883861573e-14
A32: SMX2 | B32: YFL017W-A | C32: 1.991567961 | D32: 5.363598268 | E32: 63.13427039 | F32: 1.930852818e-15 | G32: 1.27981468e-13
A33: BIO4 | B33: YNR057C | C33: 2.00211082 | D33: 4.986683661 | E33: 62.91453008 | F33: 2.158738121e-15 | G33: 1.414224486e-13
A34: SPC25 | B34: YER018C | C34: 1.652347123 | D34: 6.387277647 | E34: 62.77330262 | F34: 2.319213246e-15 | G34: 1.46814016e-13
A35: COA3 | B35: YJL062W-A | C35: 1.777517432 | D35: 7.058608789 | E35: 60.67504181 | F35: 6.731824522e-15 | G35: 3.755158352e-13
A36: YGR201C | B36: YGR201C | C36: 1.987091819 | D36: 5.631891768 | E36: 60.47881492 | F36: 7.437462877e-15 | G36: 4.068219985e-13
A37: YOL086W-A | B37: YOL086W-A | C37: 1.686637577 | D37: 6.797791352 | E37: 60.45681108 | F37: 7.521067438e-15 | G37: 4.074393648e-13
A38: ERP6 | B38: YGL002W | C38: 1.712326608 | D38: 6.145222147 | E38: 59.24856104 | F38: 1.389619165e-14 | G38: 7.183267388e-13
A39: NAT4 | B39: YMR069W | C39: 2.004830175 | D39: 5.21801614 | E39: 58.8707807 | F39: 1.683740943e-14 | G39: 8.469818277e-13
A40: YLR099W-A | B40: YLR099W-A | C40: 1.811880575 | D40: 6.181384105 | E40: 58.82511874 | F40: 1.723272032e-14 | G40: 8.591959846e-13
A41: SBH2 | B41: YER019C-A | C41: 1.626083767 | D41: 9.157376317 | E41: 58.45360854 | F41: 2.081414811e-14 | G41: 1.002281286e-12
A42: YBR056W-A | B42: YBR056W-A | C42: 1.827704323 | D42: 5.950480438 | E42: 57.22125011 | F42: 3.894405432e-14 | G42: 1.783827659e-12
A43: RIM21 | B43: YNL294C | C43: 1.697279721 | D43: 5.754163879 | E43: 56.6782571 | F43: 5.13279573e-14 | G43: 2.295092948e-12
A44: COS10 | B44: YNR075W | C44: 1.598999499 | D44: 6.281284473 | E44: 56.27430777 | F44: 6.303372116e-14 | G44: 2.690393826e-12
A45: YOL014W | B45: YOL014W | C45: 1.806703655 | D45: 6.521714687 | E45: 55.8578594 | F45: 7.790467326e-14 | G45: 3.227315656e-12
A46: LDB18 | B46: YLL049W | C46: 1.845640595 | D46: 5.865892464 | E46: 55.83619096 | F46: 7.876807376e-14 | G46: 3.239265165e-12
A47: RSM19 | B47: YNR037C | C47: 1.602567728 | D47: 6.309588425 | E47: 55.76551559 | F47: 8.165130755e-14 | G47: 3.333503382e-12
A48: SMX3 | B48: YPR182W | C48: 1.744453064 | D48: 5.411443611 | E48: 55.47889056 | F48: 9.446804441e-14 | G48: 3.801664016e-12
A49: NBL1 | B49: YHR199C-A | C49: 2.209992888 | D49: 4.30942594 | E49: 54.81939199 | F49: 1.321305912e-13 | G49: 5.169609381e-12
A50: PPT2 | B50: YPL148C | C50: 2.353790768 | D50: 4.041724502 | E50: 54.8017926 | F50: 1.333191156e-13 | G50: 5.180137224e-12
A51: COA2 | B51: YPL189C-A | C51: 1.763666745 | D51: 6.197744884 | E51: 54.72665741 | F51: 1.385146603e-13 | G51: 5.326505955e-12
A52: ACS1 | B52: YAL054C | C52: 1.781140806 | D52: 6.07488873 | E52: 54.72010861 | F52: 1.389769924e-13 | G52: 5.326505955e-12
A53: AIM5 | B53: YBR262C | C53: 1.65804056 | D53: 6.269691383 | E53: 53.36840973 | F53: 2.765077726e-13 | G53: 1.024897889e-11
A54: MTL1 | B54: YGR023W | C54: 2.382685474 | D54: 4.380191033 | E54: 52.28396581 | F54: 4.802800037e-13 | G54: 1.691185963e-11
A55: YPR150W | B55: YPR150W | C55: 2.74090429 | D55: 3.353100858 | E55: 52.1470787 | F55: 5.149540315e-13 | G55: 1.800787456e-11
A56: PEX2 | B56: YJL210W | C56: 1.628840555 | D56: 7.988741997 | E56: 51.52896336 | F56: 7.054859355e-13 | G56: 2.438471019e-11
A57: DAD4 | B57: YDR320C-A | C57: 1.886316438 | D57: 5.684354924 | E57: 51.30829473 | F57: 7.894137818e-13 | G57: 2.69548924e-11
A58: CLN3 | B58: YAL040C | C58: 1.814484814 | D58: 5.563108441 | E58: 51.20028409 | F58: 8.340655706e-13 | G58: 2.81384756e-11
A59: YLR297W | B59: YLR297W | C59: 1.566300848 | D59: 6.037576008 | E59: 51.06370762 | F59: 8.941629511e-13 | G59: 2.998639325e-11
A60: SML1 | B60: YML058W | C60: 1.689219185 | D60: 7.439639708 | E60: 50.93893745 | F60: 9.528452187e-13 | G60: 3.157841154e-11
A61: TAD2 | B61: YJL035C | C61: 1.720635977 | D61: 5.156975639 | E61: 50.1982735 | F61: 1.389700285e-12 | G61: 4.525763817e-11
A62: YOR385W | B62: YOR385W | C62: 1.778189325 | D62: 6.273480123 | E62: 50.16689843 | F62: 1.412098469e-12 | G62: 4.572277458e-11
A63: SRL1 | B63: YOR247W | C63: 1.786726774 | D63: 5.571576607 | E63: 49.03541481 | F63: 2.513825187e-12 | G63: 7.655616813e-11
A64: YMR181C | B64: YMR181C | C64: 2.001104803 | D64: 4.454920658 | E64: 48.93208695 | F64: 2.649802191e-12 | G64: 7.983414729e-11
A65: TAF9 | B65: YMR236W | C65: 1.450935966 | D65: 7.343867133 | E65: 48.82302274 | F65: 2.801321337e-12 | G65: 8.350605509e-11
A66: YCL002C | B66: YCL002C | C66: 1.572650818 | D66: 6.254842822 | E66: 48.61352061 | F66: 3.117127953e-12 | G66: 9.194711459e-11
A67: YBR090C | B67: YBR090C | C67: 2.352537316 | D67: 3.809879038 | E67: 48.27894511 | F67: 3.697005416e-12 | G67: 1.083445783e-10
A68: YDR379C-A | B68: YDR379C-A | C68: 1.724947937 | D68: 4.918343891 | E68: 48.25335241 | F68: 3.745573043e-12 | G68: 1.087760749e-10
A69: TRX3 | B69: YCR083W | C69: 1.512633737 | D69: 5.968665358 | E69: 48.19037641 | F69: 3.867819724e-12 | G69: 1.111800833e-10
A70: FHN1 | B70: YGR131W | C70: 2.112018892 | D70: 4.208739387 | E70: 47.74546273 | F70: 4.853060999e-12 | G70: 1.367107283e-10
A71: YOR060C | B71: YOR060C | C71: 2.244137534 | D71: 3.881784968 | E71: 47.58323512 | F71: 5.271739183e-12 | G71: 1.475976342e-10
A72: TOA2 | B72: YKL058W | C72: 1.385943323 | D72: 7.18757607 | E72: 47.4151944 | F72: 5.743575362e-12 | G72: 1.594054364e-10
A73: DAL3 | B73: YIR032C | C73: 2.229261927 | D73: 4.001296937 | E73: 47.3922438 | F73: 5.811216914e-12 | G73: 1.604921377e-10
A74: KAE1 | B74: YKR038C | C74: 1.493524034 | D74: 5.846691176 | E74: 46.24893214 | F74: 1.041432925e-11 | G74: 2.754663427e-10
A75: YGL072C | B75: YGL072C | C75: 2.09098098 | D75: 4.129267076 | E75: 45.76679629 | F75: 1.3320231e-11 | G75: 3.474360253e-10
A76: YDR034W-B | B76: YDR034W-B | C76: 1.826832328 | D76: 4.627748905 | E76: 45.71151637 | F76: 1.370148666e-11 | G76: 3.557335292e-10
A77: YPL014W | B77: YPL014W | C77: 1.483213686 | D77: 6.65465649 | E77: 45.6886893 | F77: 1.386208934e-11 | G77: 3.582523456e-10
A78: YNL097W-A | B78: YNL097W-A | C78: 2.44500056 | D78: 3.642247469 | E78: 45.67845266 | F78: 1.39347211e-11 | G78: 3.584850167e-10
A79: ACN9 | B79: YDR511W | C79: 1.742292402 | D79: 5.490897727 | E79: 45.65145257 | F79: 1.412812659e-11 | G79: 3.618084782e-10
A80: ATP19 | B80: YOL077W-A | C80: 1.57107337 | D80: 5.958089112 | E80: 45.62779096 | F80: 1.429982571e-11 | G80: 3.64548498e-10
A81: DIB1 | B81: YPR082C | C81: 1.895425181 | D81: 4.419848493 | E81: 45.2569308 | F81: 1.728079028e-11 | G81: 4.327109885e-10
A82: CMK2 | B82: YOL016C | C82: 1.424662954 | D82: 8.492839226 | E82: 45.22356567 | F82: 1.757771791e-11 | G82: 4.381985074e-10
A83: YEL073C | B83: YEL073C | C83: 1.849773229 | D83: 4.442957019 | E83: 45.21264993 | F83: 1.76759651e-11 | G83: 4.387065523e-10
A84: YGL010W | B84: YGL010W | C84: 1.633563136 | D84: 5.4266674 | E84: 45.07987756 | F84: 1.891591361e-11 | G84: 4.65381036e-10
A85: MGA1 | B85: YGR249W | C85: 1.504590842 | D85: 5.631385454 | E85: 44.94095575 | F85: 2.030659457e-11 | G85: 4.952699299e-10
A86: ERV15 | B86: YBR210W | C86: 1.898309086 | D86: 4.519113508 | E86: 44.66444156 | F86: 2.338662356e-11 | G86: 5.654945801e-10
A87: CDD1 | B87: YLR245C | C87: 1.600909074 | D87: 5.009607717 | E87: 44.44824564 | F87: 2.611709064e-11 | G87: 6.261433559e-10
A88: MTQ1 | B88: YNL063W | C88: 1.469013093 | D88: 5.693314693 | E88: 44.18023916 | F88: 2.994893863e-11 | G88: 7.089593287e-10
A89: MRPL37 | B89: YBR268W | C89: 1.637544789 | D89: 5.996011546 | E89: 44.16676304 | F89: 3.015582935e-11 | G89: 7.108700524e-10
A90: AIM1 | B90: YAL046C | C90: 1.453635626 | D90: 6.623126544 | E90: 43.90285221 | F90: 3.450856286e-11 | G90: 7.968083735e-10
A91: GDH3 | B91: YAL062W | C91: 1.572376345 | D91: 5.319930999 | E91: 43.67694784 | F91: 3.873071119e-11 | G91: 8.906482728e-10
A92: YPL114W | B92: YPL114W | C92: 1.880744636 | D92: 4.25248407 | E92: 42.99919579 | F92: 5.476237093e-11 | G92: 1.239081116e-09
A93: VPS24 | B93: YKL041W | C93: 2.22057454 | D93: 3.827916004 | E93: 42.98092246 | F93: 5.527626385e-11 | G93: 1.242060291e-09
A94: YGR050C | B94: YGR050C | C94: 2.102791281 | D94: 3.881284983 | E94: 42.67348288 | F94: 6.46832233e-11 | G94: 1.429118745e-09
A95: WSS1 | B95: YHR134W | C95: 1.624910234 | D95: 4.832074638 | E95: 42.52173287 | F95: 6.990120292e-11 | G95: 1.538372567e-09
A96: FMP21 | B96: YBR269C | C96: 1.599132834 | D96: 6.776900499 | E96: 42.34110544 | F96: 7.666419978e-11 | G96: 1.68064631e-09
A97: YNL046W | B97: YNL046W | C97: 1.333287032 | D97: 6.703000037 | E97: 42.18824661 | F97: 8.289673774e-11 | G97: 1.79630854e-09
A98: YPR157W | B98: YPR157W | C98: 1.382936593 | D98: 7.984895847 | E98: 41.9342847 | F98: 9.439297673e-11 | G98: 2.022091372e-09
A99: ATX1 | B99: YNL259C | C99: 1.478030923 | D99: 5.714792983 | E99: 41.83253505 | F99: 9.943499301e-11 | G99: 2.122033146e-09
A100: SNA2 | B100: YDR525W-A | C100: 1.450721982 | D100: 6.39158695 | E100: 41.78675596 | F100: 1.017905833e-10 | G100: 2.155970474e-09
A101: RPL37B | B101: YDR500C | C101: 1.47284862 | D101: 9.952180567 | E101: 41.49976686 | F101: 1.178849853e-10 | G101: 2.450789694e-09
A102: GOT1 | B102: YMR292W | C102: 1.318552908 | D102: 6.28925839 | E102: 41.23083817 | F102: 1.352714509e-10 | G102: 2.791645987e-09
A103: YKR045C | B103: YKR045C | C103: 1.833891438 | D103: 4.310978525 | E103: 40.75201426 | F103: 1.728252087e-10 | G103: 3.51515244e-09
A104: YJL144W | B104: YJL144W | C104: 1.31535266 | D104: 7.005056295 | E104: 40.65832334 | F104: 1.813132878e-10 | G104: 3.66135865e-09
A105: SPT4 | B105: YGR063C | C105: 1.297465585 | D105: 7.129140681 | E105: 40.57173233 | F105: 1.895287857e-10 | G105: 3.813589923e-09
A106: COA1 | B106: YIL157C | C106: 1.336277302 | D106: 6.939348907 | E106: 40.01219274 | F106: 2.523825731e-10 | G106: 4.971760198e-09
A107: VPS68 | B107: YOL129W | C107: 1.350617274 | D107: 8.368543533 | E107: 39.98253014 | F107: 2.562443848e-10 | G107: 5.030246913e-09
A108: YOR292C | B108: YOR292C | C108: 1.477165592 | D108: 5.352779227 | E108: 39.61095698 | F108: 3.099394723e-10 | G108: 6.021375817e-09
A109: SEC72 | B109: YLR292C | C109: 1.306360966 | D109: 6.331081837 | E109: 39.40925211 | F109: 3.436647767e-10 | G109: 6.653633511e-09
A110: HTL1 | B110: YCR020W-B | C110: 3.565386145 | D110: 2.632081833 | E110: 39.22009076 | F110: 3.786241085e-10 | G110: 7.305370642e-09
A111: MRP17 | B111: YKL003C | C111: 1.483321008 | D111: 5.061692286 | E111: 39.19685149 | F111: 3.83157611e-10 | G111: 7.367610854e-09
A112: CNL1 | B112: YDR357C | C112: 1.485676137 | D112: 5.107975599 | E112: 38.85493475 | F112: 4.564984473e-10 | G112: 8.718346618e-09
A113: YEL068C | B113: YEL068C | C113: 1.469587136 | D113: 5.282219848 | E113: 38.6157989 | F113: 5.159954975e-10 | G113: 9.755431653e-09
A114: MRPS12 | B114: YNR036C | C114: 1.546249247 | D114: 8.707220818 | E114: 38.59418969 | F114: 5.217401191e-10 | G114: 9.831049603e-09
A115: CUR1 | B115: YPR158W | C115: 1.26313132 | D115: 6.492265337 | E115: 38.21863514 | F115: 6.324552838e-10 | G115: 1.167113517e-08
A116: IMP1 | B116: YMR150C | C116: 1.313835882 | D116: 5.902381701 | E116: 38.09752747 | F116: 6.729535393e-10 | G116: 1.228723815e-08
A117: MRPL20 | B117: YKR085C | C117: 1.298015879 | D117: 6.842176187 | E117: 38.06430372 | F117: 6.845105246e-10 | G117: 1.240771892e-08
A118: OST4 | B118: YDL232W | C118: 1.376525512 | D118: 5.785919419 | E118: 37.903641 | F118: 7.432639721e-10 | G118: 1.33787515e-08
A119: AIM4 | B119: YBR194W | C119: 1.926174718 | D119: 4.056070834 | E119: 37.86515568 | F119: 7.580717356e-10 | G119: 1.36018349e-08
A120: DFR1 | B120: YOR236W | C120: 1.558309521 | D120: 5.002327858 | E120: 37.68500177 | F120: 8.314135813e-10 | G120: 1.477660605e-08
A121: YGL199C | B121: YGL199C | C121: 2.489828739 | D121: 3.328305081 | E121: 37.17635692 | F121: 1.079142602e-09 | G121: 1.888164417e-08
A122: NOP10 | B122: YHR072W-A | C122: 1.260986051 | D122: 7.924383132 | E122: 37.01291194 | F122: 1.173495711e-09 | G122: 2.028059766e-08
A123: YDR476C | B123: YDR476C | C123: 1.279260364 | D123: 7.319400661 | E123: 36.83488186 | F123: 1.285692078e-09 | G123: 2.188395519e-08
A124: AVL9 | B124: YLR114C | C124: 1.34960438 | D124: 6.33619316 | E124: 36.8071676 | F124: 1.304099175e-09 | G124: 2.213040588e-08
A125: FMP46 | B125: YKR049C | C125: 1.354581731 | D125: 5.991519344 | E125: 36.65858686 | F125: 1.407377144e-09 | G125: 2.355523465e-08
A126: LDB7 | B126: YBL006C | C126: 1.251175641 | D126: 7.727115774 | E126: 36.58453612 | F126: 1.461868326e-09 | G126: 2.436735547e-08
A127: IMG1 | B127: YCR046C | C127: 1.708960975 | D127: 7.529215268 | E127: 36.3773912 | F127: 1.625782222e-09 | G127: 2.694016776e-08
A128: VPS36 | B128: YLR417W | C128: 1.546178672 | D128: 5.089039327 | E128: 36.2037649 | F128: 1.777268719e-09 | G128: 2.902357091e-08
A129: PTH1 | B129: YHR189W | C129: 1.584710708 | D129: 4.764189583 | E129: 36.14772043 | F129: 1.829123211e-09 | G129: 2.978404674e-08
A130: CLG1 | B130: YGL215W | C130: 1.244875247 | D130: 6.429577545 | E130: 36.13819812 | F130: 1.838082986e-09 | G130: 2.984368744e-08
A131: YBR085C-A | B131: YBR085C-A | C131: 1.253669972 | D131: 8.008030186 | E131: 36.03428485 | F131: 1.938760889e-09 | G131: 3.138787025e-08
A132: TAH1 | B132: YCR060W | C132: 1.334553069 | D132: 5.595761435 | E132: 35.9757078 | F132: 1.997928904e-09 | G132: 3.220707163e-08
A133: COX9 | B133: YDL067C | C133: 1.282053794 | D133: 7.052601256 | E133: 35.9729153 | F133: 2.000794297e-09 | G133: 3.220707163e-08
A134: NCE101 | B134: YJL205C | C134: 1.508276963 | D134: 4.835015498 | E134: 35.81521382 | F134: 2.169471527e-09 | G134: 3.452769091e-08
A135: YOL097W-A | B135: YOL097W-A | C135: 2.987475402 | D135: 3.01920937 | E135: 35.75577495 | F135: 2.236679787e-09 | G135: 3.549705329e-08
A136: TOM5 | B136: YPR133W-A | C136: 1.668880233 | D136: 5.674475958 | E136: 35.69975198 | F136: 2.301933171e-09 | G136: 3.636598999e-08
A137: SAP4 | B137: YGL229C | C137: 1.436942639 | D137: 5.139669629 | E137: 35.69771511 | F137: 2.304341219e-09 | G137: 3.636598999e-08
A138: EST3 | B138: YIL009C-A | C138: 1.383142699 | D138: 5.223595503 | E138: 35.42329031 | F138: 2.65295538e-09 | G138: 4.175070002e-08
A139: YPL067C | B139: YPL067C | C139: 1.453632683 | D139: 5.906588449 | E139: 35.34681668 | F139: 2.759191729e-09 | G139: 4.330163287e-08
A140: YET2 | B140: YMR040W | C140: 2.091553278 | D140: 3.492972416 | E140: 35.15483326 | F140: 3.045047096e-09 | G140: 4.70877595e-08
A141: ECM1 | B141: YAL059W | C141: 1.43583741 | D141: 5.133029248 | E141: 35.13994533 | F141: 3.068416107e-09 | G141: 4.723348728e-08
A142: RTG1 | B142: YOL067C | C142: 1.439001319 | D142: 6.191548124 | E142: 35.11083537 | F142: 3.114629035e-09 | G142: 4.777668242e-08
A143: HLJ1 | B143: YMR161W | C143: 1.390524655 | D143: 5.306620374 | E143: 35.09353609 | F143: 3.142421673e-09 | G143: 4.797941383e-08
A144: ASK1 | B144: YKL052C | C144: 1.242402269 | D144: 6.112502348 | E144: 34.7313216 | F144: 3.784927496e-09 | G144: 5.686475071e-08
A145: YOR338W | B145: YOR338W | C145: 1.403503982 | D145: 5.334253463 | E145: 34.41911085 | F145: 4.443388636e-09 | G145: 6.605290653e-08
A146: YPL222C-A | B146: YPL222C-A | C146: 1.749908763 | D146: 4.127192734 | E146: 34.32309952 | F146: 4.66808155e-09 | G146: 6.902879646e-08
A147: DAD1 | B147: YDR016C | C147: 1.332342338 | D147: 5.403733132 | E147: 33.90615823 | F147: 5.783534749e-09 | G147: 8.441563414e-08
A148: RRG7 | B148: YOR305W | C148: 1.977092566 | D148: 3.561698399 | E148: 33.85405392 | F148: 5.940517824e-09 | G148: 8.625999335e-08
A149: YBR076C-A | B149: YBR076C-A | C149: 1.663196015 | D149: 4.369383629 | E149: 33.7968439 | F149: 6.117803308e-09 | G149: 8.860592247e-08
A150: ASI2 | B150: YNL159C | C150: 1.299469278 | D150: 5.569048892 | E150: 33.7554236 | F150: 6.249456784e-09 | G150: 9.028061416e-08
A151: YBR284W | B151: YBR284W | C151: 1.328653685 | D151: 5.390770218 | E151: 33.66514423 | F151: 6.546323417e-09 | G151: 9.408669932e-08
A152: YJR112W-A | B152: YJR112W-A | C152: 1.539695771 | D152: 4.929240377 | E152: 33.5106444 | F152: 7.087504758e-09 | G152: 1.010513355e-07
A153: YKL165C-A | B153: YKL165C-A | C153: 1.751303891 | D153: 4.00923469 | E153: 33.46515532 | F153: 7.255222166e-09 | G153: 1.029620194e-07
A154: LSM5 | B154: YER146W | C154: 1.365573721 | D154: 7.014137743 | E154: 33.29176546 | F154: 7.931779412e-09 | G154: 1.11719113e-07
A155: YKL068W-A | B155: YKL068W-A | C155: 1.39674348 | D155: 4.899349668 | E155: 32.82833961 | F155: 1.006665162e-08 | G155: 1.400383091e-07
A156: AHC2 | B156: YCR082W | C156: 1.499603498 | D156: 7.384955577 | E156: 32.59051795 | F156: 1.137684368e-08 | G156: 1.574868238e-07
A157: RPS30A | B157: YLR287C-A | C157: 1.343862669 | D157: 10.18722026 | E157: 32.46946438 | F157: 1.210801381e-08 | G157: 1.663818287e-07
A158: STP3 | B158: YLR375W | C158: 1.213777251 | D158: 8.760360109 | E158: 32.32294768 | F158: 1.305622864e-08 | G158: 1.781084556e-07
A159: TFB5 | B159: YDR079C-A | C159: 1.573366899 | D159: 4.52323455 | E159: 32.27388169 | F159: 1.339011599e-08 | G159: 1.822220133e-07
A160: YGR161W-C | B160: YGR161W-C | C160: 1.267252975 | D160: 5.590219184 | E160: 32.12131623 | F160: 1.448393861e-08 | G160: 1.961598801e-07
A161: ISD11 | B161: YER048W-A | C161: 1.311712434 | D161: 5.622466556 | E161: 32.06383266 | F161: 1.491890279e-08 | G161: 2.010839672e-07
A162: HUA1 | B162: YGR268C | C162: 1.212133587 | D162: 5.897272515 | E162: 32.02355274 | F162: 1.523146448e-08 | G162: 2.048068517e-07
A163: MFA1 | B163: YDR461W | C163: 1.316212127 | D163: 8.042333123 | E163: 31.99009607 | F163: 1.549606047e-08 | G163: 2.078685826e-07
A164: FCY1 | B164: YPR062W | C164: 1.238202123 | D164: 5.593672661 | E164: 31.94908641 | F164: 1.582667908e-08 | G164: 2.11799311e-07
A165: CRS5 | B165: YOR031W | C165: 1.533321713 | D165: 5.182757241 | E165: 31.92454787 | F165: 1.602787725e-08 | G165: 2.139835555e-07
A166: YBL029W | B166: YBL029W | C166: 2.823749379 | D166: 3.157426425 | E166: 31.91043036 | F166: 1.614478952e-08 | G166: 2.150348562e-07
A167: YAT1 | B167: YAR035W | C167: 1.713466108 | D167: 4.286729363 | E167: 31.83741558 | F167: 1.676322493e-08 | G167: 2.223698487e-07
A168: FIS1 | B168: YIL065C | C168: 1.236602333 | D168: 6.652723557 | E168: 31.83611673 | F168: 1.677443836e-08 | G168: 2.223698487e-07
A169: YNL179C | B169: YNL179C | C169: 2.238768169 | D169: 3.162850101 | E169: 31.82641065 | F169: 1.685847268e-08 | G169: 2.229592373e-07
A170: PXR1 | B170: YGR280C | C170: 2.127690246 | D170: 3.597736949 | E170: 31.81540493 | F170: 1.695426934e-08 | G170: 2.231783959e-07
A171: YGR126W | B171: YGR126W | C171: 1.786371525 | D171: 3.98825068 | E171: 31.79564595 | F171: 1.712762702e-08 | G171: 2.2493485e-07
A172: MVB12 | B172: YGR206W | C172: 1.513933049 | D172: 4.81606371 | E172: 31.62837728 | F172: 1.866816307e-08 | G172: 2.440288417e-07
A173: YJR115W | B173: YJR115W | C173: 1.658162793 | D173: 4.236642651 | E173: 31.47112992 | F173: 2.024277224e-08 | G173: 2.633897894e-07
A174: YDL160C-A | B174: YDL160C-A | C174: 1.637146238 | D174: 4.372881924 | E174: 31.36527662 | F174: 2.137700375e-08 | G174: 2.739435903e-07
A175: ERS1 | B175: YCR075C | C175: 1.156022299 | D175: 6.820718696 | E175: 31.36371129 | F175: 2.13942456e-08 | G175: 2.739435903e-07
A176: YNL276C | B176: YNL276C | C176: 2.047342451 | D176: 3.501663303 | E176: 31.34136439 | F176: 2.164191727e-08 | G176: 2.76486535e-07
A177: PTC6 | B177: YCR079W | C177: 1.158645284 | D177: 7.346244878 | E177: 31.28321305 | F177: 2.229995623e-08 | G177: 2.842487633e-07
A178: KSH1 | B178: YNL024C-A | C178: 1.231884696 | D178: 6.555688427 | E178: 31.22405581 | F178: 2.298994833e-08 | G178: 2.923823226e-07
A179: SEC62 | B179: YPL094C | C179: 1.141438176 | D179: 6.852762839 | E179: 31.06338223 | F179: 2.497385525e-08 | G179: 3.16897974e-07
A180: YFR034W-A | B180: YFR034W-A | C180: 2.057146973 | D180: 4.227445489 | E180: 30.89613194 | F180: 2.722137883e-08 | G180: 3.438682698e-07
A181: SGF11 | B181: YPL047W | C181: 1.479662544 | D181: 4.811040652 | E181: 30.85757797 | F181: 2.77675717e-08 | G181: 3.499832192e-07
A182: ARG80 | B182: YMR042W | C182: 1.232528146 | D182: 5.683425994 | E182: 30.84536726 | F182: 2.794283924e-08 | G182: 3.508123104e-07
A183: COX23 | B183: YHR116W | C183: 1.353545804 | D183: 5.24608198 | E183: 30.84432257 | F183: 2.795788558e-08 | G183: 3.508123104e-07
A184: AGX1 | B184: YFL030W | C184: 1.184989867 | D184: 5.991886248 | E184: 30.79538871 | F184: 2.867183797e-08 | G184: 3.589714114e-07
A185: SRD1 | B185: YCR018C | C185: 1.404594045 | D185: 4.953600382 | E185: 30.3834977 | F185: 3.545314224e-08 | G185: 4.370744057e-07
A186: MET4 | B186: YNL103W | C186: 1.315501617 | D186: 5.14028521 | E186: 30.36412492 | F186: 3.580899042e-08 | G186: 4.404974935e-07
A187: YER010C | B187: YER010C | C187: 1.102440391 | D187: 6.843571269 | E187: 30.32599275 | F187: 3.651990747e-08 | G187: 4.482639623e-07
A188: YIL029C | B188: YIL029C | C188: 1.758942493 | D188: 3.925508629 | E188: 30.22549467 | F188: 3.84620229e-08 | G188: 4.680238381e-07
A189: PRM9 | B189: YAR031W | C189: 1.922366417 | D189: 3.480224338 | E189: 30.20953483 | F189: 3.877982778e-08 | G189: 4.708740295e-07
A190: QDR1 | B190: YIL120W | C190: 1.253203678 | D190: 5.338969583 | E190: 30.10759014 | F190: 4.087283634e-08 | G190: 4.95220559e-07
A191: HUT1 | B191: YPL244C | C191: 1.145093177 | D191: 6.932118627 | E191: 30.03479053 | F191: 4.243639235e-08 | G191: 5.119628148e-07
A192: YGL194C-A | B192: YGL194C-A | C192: 1.76634051 | D192: 3.737203612 | E192: 30.01898517 | F192: 4.278369224e-08 | G192: 5.150498335e-07
A193: ACA1 | B193: YER045C | C193: 1.349615307 | D193: 4.762411842 | E193: 29.98460472 | F193: 4.354901873e-08 | G193: 5.20923931e-07
A194: ICL2 | B194: YPR006C | C194: 1.368985917 | D194: 5.27729353 | E194: 29.91368198 | F194: 4.517140361e-08 | G194: 5.391857795e-07
A195: GNA1 | B195: YFL017C | C195: 1.270175527 | D195: 5.658790109 | E195: 29.72052343 | F195: 4.990368267e-08 | G195: 5.944129983e-07
A196: YBR013C | B196: YBR013C | C196: 1.868025861 | D196: 4.112512072 | E196: 29.697505 | F196: 5.049977541e-08 | G196: 5.989055753e-07
A197: SYN8 | B197: YAL014C | C197: 1.10585867 | D197: 7.071191442 | E197: 29.69367068 | F197: 5.059976106e-08 | G197: 5.989055753e-07
A198: YCL057C-A | B198: YCL057C-A | C198: 1.201579973 | D198: 6.781171904 | E198: 29.6722973 | F198: 5.116074904e-08 | G198: 6.042760169e-07
A199: PML1 | B199: YLR016C | C199: 1.143253553 | D199: 5.967213896 | E199: 29.49660337 | F199: 5.601478343e-08 | G199: 6.561066317e-07
A200: PDE1 | B200: YGL248W | C200: 1.118535997 | D200: 6.078997167 | E200: 29.47681128 | F200: 5.658973788e-08 | G200: 6.614659403e-07
... 5435 more rows

Sheet Pab1p
A1: name | B1: genes | C1: logFC | D1: logCPM | E1: LR | F1: PValue | G1: FDR
A2: RPL41A | B2: YDL184C | C2: 1.285709165 | D2: 10.50558148 | E2: 117.1501481 | F2: 2.66137456e-27 | G2: 7.418581587e-24
A3: OPI3 | B3: YJR073C | C3: 1.181186038 | D3: 10.15823609 | E3: 104.153774 | F3: 1.872077408e-24 | G3: 2.08736631e-21
A4: RPL41B | B4: YDL133C-A | C4: 1.09756709 | D4: 10.87235345 | E4: 73.49213696 | F4: 1.010378622e-17 | G4: 8.046944024e-15
A5: NHP6B | B5: YBR089C-A | C5: 1.174915715 | D5: 6.098868418 | E5: 58.25950103 | F5: 2.297248452e-14 | G5: 1.07150924e-11
A6: YHR162W | B6: YHR162W | C6: 0.8927770022 | D6: 9.218517792 | E6: 50.62927795 | F6: 1.115682176e-12 | G6: 2.144802803e-10
A7: RPS17B | B7: YDR447C | C7: 0.9178085949 | D7: 10.5504247 | E7: 48.79370905 | F7: 2.843504134e-12 | G7: 4.80379865e-10
A8: SCS3 | B8: YGL126W | C8: 0.9473442833 | D8: 6.975309268 | E8: 47.49710228 | F8: 5.508531182e-12 | G8: 8.530572594e-10
A9: RPS21A | B9: YKR057W | C9: 0.971908436 | D9: 9.284809467 | E9: 46.34084469 | F9: 9.937073658e-12 | G9: 1.457873306e-09
A10: ERG2 | B10: YMR202W | C10: 0.8629308647 | D10: 9.071477831 | E10: 45.74319485 | F10: 1.348168952e-11 | G10: 1.927190232e-09
A11: RPS26A | B11: YGL189C | C11: 0.8177506372 | D11: 11.81351546 | E11: 44.58521608 | F11: 2.435235839e-11 | G11: 3.085554501e-09
A12: PRY1 | B12: YJL079C | C12: 1.002001168 | D12: 6.158927761 | E12: 44.50934794 | F12: 2.531456156e-11 | G12: 3.090872869e-09
A13: PFY1 | B13: YOR122C | C13: 0.8686388852 | D13: 9.976162062 | E13: 43.71389869 | F13: 3.800630455e-11 | G13: 4.324186691e-09
A14: RPL39 | B14: YJL189W | C14: 0.786099102 | D14: 8.857290116 | E14: 43.16603895 | F14: 5.028598124e-11 | G14: 5.496947949e-09
A15: SKP1 | B15: YDR328C | C15: 0.787296333 | D15: 8.842773244 | E15: 43.04785813 | F15: 5.341706492e-11 | G15: 5.726925711e-09
A16: RDL1 | B16: YOR285W | C16: 0.828544192 | D16: 7.743675725 | E16: 42.90597379 | F16: 5.743500669e-11 | G16: 6.041512496e-09
A17: RSM19 | B17: YNR037C | C17: 1.163636282 | D17: 5.519603191 | E17: 42.67970363 | F17: 6.447784525e-11 | G17: 6.534713679e-09
A18: PIS1 | B18: YPR113W | C18: 0.8005222884 | D18: 8.894565961 | E18: 42.57782164 | F18: 6.792520955e-11 | G18: 6.643562162e-09
A19: YOP1 | B19: YPR028W | C19: 0.7831721057 | D19: 8.793078535 | E19: 42.27971129 | F19: 7.910899755e-11 | G19: 7.604011403e-09
A20: AIM46 | B20: YHR199C | C20: 0.9234661287 | D20: 7.634299214 | E20: 41.48873485 | F20: 1.185521138e-10 | G20: 1.066012959e-08
A21: RPL2B | B21: YIL018W | C21: 0.7268682416 | D21: 12.1053566 | E21: 40.90854449 | F21: 1.595221633e-10 | G21: 1.411644541e-08
A22: RPS17A | B22: YML024W | C22: 0.8049110852 | D22: 10.36900531 | E22: 40.72016614 | F22: 1.756649541e-10 | G22: 1.530206436e-08
A23: GIM4 | B23: YEL003W | C23: 0.9142356441 | D23: 6.683965692 | E23: 40.43994885 | F23: 2.027527997e-10 | G23: 1.738995167e-08
A24: ATG5 | B24: YPL149W | C24: 0.9429675188 | D24: 6.248002509 | E24: 40.29176218 | F24: 2.187293278e-10 | G24: 1.847600004e-08
A25: NOP10 | B25: YHR072W-A | C25: 0.7900755706 | D25: 7.46415128 | E25: 39.83681188 | F25: 2.760921264e-10 | G25: 2.263549419e-08
A26: POP5 | B26: YAL033W | C26: 1.140369857 | D26: 5.544823088 | E26: 39.29499559 | F26: 3.643740103e-10 | G26: 2.944036387e-08
A27: YER163C | B27: YER163C | C27: 0.7673759856 | D27: 8.070015893 | E27: 38.84829384 | F27: 4.580540993e-10 | G27: 3.557926195e-08
A28: RPL40A | B28: YIL148W | C28: 0.7226249407 | D28: 11.03934004 | E28: 38.00230788 | F28: 7.066099752e-10 | G28: 5.252467483e-08
A29: YGR201C | B29: YGR201C | C29: 1.322740788 | D29: 4.505168658 | E29: 37.37507649 | F29: 9.745966414e-10 | G29: 6.791720345e-08
A30: THG1 | B30: YGR024C | C30: 1.002569139 | D30: 7.107019773 | E30: 36.8710658 | F30: 1.26205062e-09 | G30: 8.686336057e-08
A31: RPL21B | B31: YPL079W | C31: 0.7632967714 | D31: 9.757960984 | E31: 36.75236831 | F31: 1.341275779e-09 | G31: 9.009171651e-08
A32: DPH2 | B32: YKL191W | C32: 0.7458336859 | D32: 8.469552368 | E32: 36.49750184 | F32: 1.52862041e-09 | G32: 1.002595151e-07
A33: RPL30 | B33: YGL030W | C33: 0.7495323308 | D33: 10.88339985 | E33: 36.41280468 | F33: 1.596509159e-09 | G33: 1.034946345e-07
A34: RPL23B | B34: YER117W | C34: 0.696843542 | D34: 10.97531852 | E34: 36.05814501 | F34: 1.91516588e-09 | G34: 1.227247102e-07
A35: FMN1 | B35: YDR236C | C35: 1.036220691 | D35: 5.656355034 | E35: 35.35342736 | F35: 2.749842422e-09 | G35: 1.722513652e-07
A36: YER152C | B36: YER152C | C36: 0.8276091851 | D36: 7.736734322 | E36: 35.1811642 | F36: 3.004151929e-09 | G36: 1.840455715e-07
A37: LDB18 | B37: YLL049W | C37: 1.033553779 | D37: 5.528628838 | E37: 35.04096074 | F37: 3.228421663e-09 | G37: 1.914728805e-07
A38: CBR1 | B38: YIL043C | C38: 0.8122635531 | D38: 9.205638337 | E38: 34.88250984 | F38: 3.502127643e-09 | G38: 2.055195959e-07
A39: HYR1 | B39: YIR037W | C39: 0.7727201282 | D39: 7.599201259 | E39: 34.31902461 | F39: 4.677865703e-09 | G39: 2.634252656e-07
A40: MRPL19 | B40: YNL185C | C40: 0.9036182605 | D40: 6.826525657 | E40: 33.87689012 | F40: 5.871196943e-09 | G40: 3.091332286e-07
A41: YDR154C | B41: YDR154C | C41: 1.034248302 | D41: 7.461010507 | E41: 33.82256376 | F41: 6.037454914e-09 | G41: 3.116556587e-07
A42: CUE4 | B42: YML101C | C42: 0.9158423433 | D42: 5.944787128 | E42: 33.47011192 | F42: 7.236755973e-09 | G42: 3.657067567e-07
A43: RPL42A | B43: YNL162W | C43: 0.7116951844 | D43: 8.103337858 | E43: 33.45816742 | F43: 7.281336321e-09 | G43: 3.657067567e-07
A44: GUT1 | B44: YHL032C | C44: 0.9022701506 | D44: 7.07608152 | E44: 33.43149329 | F44: 7.381887371e-09 | G44: 3.674466258e-07
A45: RPL42B | B45: YHR141C | C45: 0.7407475551 | D45: 8.821905657 | E45: 32.79347108 | F45: 1.02488493e-08 | G45: 4.80145671e-07
A46: ACB1 | B46: YGR037C | C46: 0.7516675222 | D46: 8.275098626 | E46: 32.57974491 | F46: 1.144008021e-08 | G46: 5.270946045e-07
A47: RPS28A | B47: YOR167C | C47: 0.6937131713 | D47: 10.21952423 | E47: 32.5151192 | F47: 1.182688519e-08 | G47: 5.404498765e-07
A48: COA3 | B48: YJL062W-A | C48: 0.972772219 | D48: 5.904139339 | E48: 31.64033107 | F48: 1.855360543e-08 | G48: 7.777169193e-07
A49: ADE8 | B49: YDR408C | C49: 0.7590356392 | D49: 7.708304095 | E49: 31.26410575 | F49: 2.252051937e-08 | G49: 9.369544439e-07
A50: BAT2 | B50: YJR148W | C50: 0.7074692189 | D50: 9.256102726 | E50: 30.94109062 | F50: 2.659802836e-08 | G50: 1.074521798e-06
A51: YMR304C-A | B51: YMR304C-A | C51: 1.000566692 | D51: 6.107766712 | E51: 30.92332886 | F51: 2.684256736e-08 | G51: 1.076599374e-06
A52: IES6 | B52: YEL044W | C52: 0.7788843898 | D52: 6.919517548 | E52: 30.60109346 | F52: 3.169150862e-08 | G52: 1.253050784e-06
A53: YIP4 | B53: YGL198W | C53: 0.8373996756 | D53: 7.311490093 | E53: 30.56080954 | F53: 3.235640642e-08 | G53: 1.270330745e-06
A54: APT1 | B54: YML022W | C54: 0.7098058205 | D54: 8.206855421 | E54: 30.48337746 | F54: 3.367394825e-08 | G54: 1.312813018e-06
A55: RPS31 | B55: YLR167W | C55: 0.717376353 | D55: 12.98849468 | E55: 30.43481455 | F55: 3.45275573e-08 | G55: 1.336743972e-06
A56: RPL43B | B56: YJR094W-A | C56: 0.6534245041 | D56: 8.910455342 | E56: 29.89549881 | F56: 4.559701484e-08 | G56: 1.683465945e-06
A57: RPL37B | B57: YDR500C | C57: 0.683770892 | D57: 9.121844623 | E57: 29.80894237 | F57: 4.767877199e-08 | G57: 1.737314731e-06
A58: PEX2 | B58: YJL210W | C58: 0.9536953998 | D58: 6.240022921 | E58: 29.78586728 | F58: 4.824964896e-08 | G58: 1.746699954e-06
A59: YOR121C | B59: YOR121C | C59: 1.275037192 | D59: 5.022907641 | E59: 29.6823972 | F59: 5.089488406e-08 | G59: 1.812222124e-06
A60: ZRC1 | B60: YMR243C | C60: 0.7140033316 | D60: 9.580149655 | E60: 29.66476852 | F60: 5.135983777e-08 | G60: 1.812222124e-06
A61: RPS20 | B61: YHL015W | C61: 0.6435015936 | D61: 11.07682625 | E61: 29.36629933 | F61: 5.991048751e-08 | G61: 2.087506049e-06
A62: RPL29 | B62: YFR032C-A | C62: 0.6655662392 | D62: 8.543081778 | E62: 29.06389296 | F62: 7.003008437e-08 | G62: 2.380595856e-06
A63: ISA2 | B63: YPR067W | C63: 0.8979432946 | D63: 5.489886617 | E63: 29.03124758 | F63: 7.122018125e-08 | G63: 2.406378851e-06
A64: YIR016W | B64: YIR016W | C64: 0.9394505282 | D64: 5.852803531 | E64: 28.63733241 | F64: 8.728310364e-08 | G64: 2.862372369e-06
A65: SBH2 | B65: YER019C-A | C65: 0.6386843718 | D65: 9.432400455 | E65: 28.35537525 | F65: 1.009660643e-07 | G65: 3.216490335e-06
A66: EMG1 | B66: YLR186W | C66: 0.6948863569 | D66: 7.528729421 | E66: 28.30335711 | F66: 1.037159581e-07 | G66: 3.285320833e-06
A67: GRX5 | B67: YPL059W | C67: 0.7489116384 | D67: 7.29511692 | E67: 28.24879115 | F67: 1.066812357e-07 | G67: 3.360157564e-06
A68: FYV5 | B68: YCL058C | C68: 1.739466173 | D68: 3.584827743 | E68: 28.20440681 | F68: 1.091557615e-07 | G68: 3.418782981e-06
A69: ILV6 | B69: YCL009C | C69: 0.6368103628 | D69: 9.413898959 | E69: 28.04175576 | F69: 1.187258208e-07 | G69: 3.697745535e-06
A70: CNB1 | B70: YKL190W | C70: 0.690481954 | D70: 7.652171594 | E70: 27.50927507 | F70: 1.563429367e-07 | G70: 4.712549815e-06
A71: RPL22B | B71: YFL034C-A | C71: 0.7867733346 | D71: 6.75551385 | E71: 27.47725318 | F71: 1.589530684e-07 | G71: 4.764319121e-06
A72: PDX3 | B72: YBR035C | C72: 0.6431608675 | D72: 7.691407883 | E72: 27.26232192 | F72: 1.776394476e-07 | G72: 5.267765535e-06
A73: MDE1 | B73: YJR024C | C73: 0.9035969844 | D73: 7.372704188 | E73: 26.4951333 | F73: 2.642028776e-07 | G73: 7.592428055e-06
A74: MLC1 | B74: YGL106W | C74: 0.6777618544 | D74: 7.333562266 | E74: 26.1414403 | F74: 3.17300562e-07 | G74: 8.866227254e-06
A75: AGX1 | B75: YFL030W | C75: 1.520294647 | D75: 4.66302252 | E75: 25.92179846 | F75: 3.555316074e-07 | G75: 9.763983798e-06
A76: DPM1 | B76: YPR183W | C76: 0.680341815 | D76: 7.688301045 | E76: 25.72126707 | F76: 3.944561601e-07 | G76: 1.062363813e-05
A77: YER186C | B77: YER186C | C77: 0.7706219344 | D77: 6.807684239 | E77: 25.68211361 | F77: 4.025407075e-07 | G77: 1.078925214e-05
A78: GRH1 | B78: YDR517W | C78: 0.6639656172 | D78: 8.330316994 | E78: 25.52100625 | F78: 4.375925825e-07 | G78: 1.145342088e-05
A79: RPS25B | B79: YLR333C | C79: 0.6017472967 | D79: 9.512950012 | E79: 25.49399589 | F79: 4.437617501e-07 | G79: 1.156061569e-05
A80: YPL225W | B80: YPL225W | C80: 0.6485656849 | D80: 7.508818733 | E80: 25.36189279 | F80: 4.752135141e-07 | G80: 1.22653488e-05
A81: HRT1 | B81: YOL133W | C81: 0.8050433765 | D81: 6.134730297 | E81: 25.22236418 | F81: 5.108635681e-07 | G81: 1.288716919e-05
A82: YDL144C | B82: YDL144C | C82: 0.8055631108 | D82: 6.4283213 | E82: 25.03395724 | F82: 5.632947854e-07 | G82: 1.401950191e-05
A83: DER1 | B83: YBR201W | C83: 0.8886278208 | D83: 5.423120576 | E83: 24.79512434 | F83: 6.375854024e-07 | G83: 1.545451573e-05
A84: LSM6 | B84: YDR378C | C84: 0.7269917514 | D84: 7.879348841 | E84: 24.57320887 | F84: 7.153947279e-07 | G84: 1.711727729e-05
A85: ALG3 | B85: YBL082C | C85: 0.8223813427 | D85: 6.414619139 | E85: 24.45331002 | F85: 7.613260063e-07 | G85: 1.798471392e-05
A86: RET3 | B86: YPL010W | C86: 0.5974638569 | D86: 7.944883066 | E86: 24.36766555 | F86: 7.959348553e-07 | G86: 1.872294016e-05
A87: RPS27B | B87: YHR021C | C87: 0.5967641186 | D87: 10.06348655 | E87: 24.28282838 | F87: 8.317727746e-07 | G87: 1.946010272e-05
A88: PML1 | B88: YLR016C | C88: 0.8003419688 | D88: 5.98633111 | E88: 24.03725298 | F88: 9.448972796e-07 | G88: 2.185810097e-05
A89: MDM35 | B89: YKL053C-A | C89: 0.7403623328 | D89: 6.120744172 | E89: 24.00241323 | F89: 9.621503172e-07 | G89: 2.216523975e-05
A90: TAD3 | B90: YLR316C | C90: 1.120735051 | D90: 4.308602867 | E90: 23.97169429 | F90: 9.776245764e-07 | G90: 2.242904121e-05
A91: COA1 | B91: YIL157C | C91: 0.776567812 | D91: 6.191279691 | E91: 23.36523885 | F91: 1.339778801e-06 | G91: 2.973415707e-05
A92: GUK1 | B92: YDR454C | C92: 0.5942015133 | D92: 8.713435597 | E92: 23.35913462 | F92: 1.344037234e-06 | G92: 2.973415707e-05
A93: DUT1 | B93: YBR252W | C93: 0.7081943482 | D93: 6.37515485 | E93: 23.27019435 | F93: 1.407646139e-06 | G93: 3.089617017e-05
A94: NAP1 | B94: YKR048C | C94: 0.5852843542 | D94: 9.47001276 | E94: 23.10551186 | F94: 1.533504723e-06 | G94: 3.290895028e-05
A95: IMG1 | B95: YCR046C | C95: 0.8154726453 | D95: 5.938927971 | E95: 23.10392957 | F95: 1.534767188e-06 | G95: 3.290895028e-05
A96: YPR063C | B96: YPR063C | C96: 0.6662134014 | D96: 6.860610968 | E96: 23.03604182 | F96: 1.589926246e-06 | G96: 3.383144589e-05
A97: SPC25 | B97: YER018C | C97: 0.8175353897 | D97: 6.065858773 | E97: 22.99189204 | F97: 1.626860826e-06 | G97: 3.445500466e-05
A98: TIM17 | B98: YJL143W | C98: 0.6734500628 | D98: 7.108532857 | E98: 22.94015439 | F98: 1.671239929e-06 | G98: 3.502692708e-05
A99: SOD1 | B99: YJR104C | C99: 0.6084447883 | D99: 10.16294799 | E99: 22.76464891 | F99: 1.831030506e-06 | G99: 3.808953385e-05
A100: ATS1 | B100: YAL020C | C100: 0.9362371709 | D100: 5.120139769 | E100: 22.67058112 | F100: 1.922894648e-06 | G100: 3.970421356e-05
A101: KTI11 | B101: YBL071W-A | C101: 0.9750110147 | D101: 4.684980432 | E101: 22.66032122 | F101: 1.933189762e-06 | G101: 3.976949417e-05
A102: CTR2 | B102: YHR175W | C102: 0.7453853614 | D102: 6.383748954 | E102: 22.56702173 | F102: 2.029384327e-06 | G102: 4.159491772e-05
A103: FRA2 | B103: YGL220W | C103: 0.7736935623 | D103: 6.271433347 | E103: 22.37063531 | F103: 2.247847482e-06 | G103: 4.540489026e-05
A104: YCR045W-A | B104: YCR045W-A | C104: 1.643533056 | D104: 3.457223431 | E104: 22.18392593 | F104: 2.47739252e-06 | G104: 4.900588339e-05
A105: RAM2 | B105: YKL019W | C105: 0.7119310664 | D105: 7.242930608 | E105: 22.13742746 | F105: 2.53812739e-06 | G105: 5.000021272e-05
A106: MED8 | B106: YBR193C | C106: 0.8176909418 | D106: 5.44570524 | E106: 22.10900828 | F106: 2.575980862e-06 | G106: 5.042917568e-05
A107: AIM43 | B107: YPL099C | C107: 0.9578178047 | D107: 4.747826045 | E107: 21.54605056 | F107: 3.454333232e-06 | G107: 6.572664767e-05
A108: RPS25A | B108: YGR027C | C108: 0.8813253024 | D108: 11.66049102 | E108: 21.40446832 | F108: 3.71903449e-06 | G108: 6.934320162e-05
A109: RPS24A | B109: YER074W | C109: 0.5863986544 | D109: 9.837107943 | E109: 21.19869579 | F109: 4.140461681e-06 | G109: 7.668795305e-05
A110: YPR011C | B110: YPR011C | C110: 0.7453706161 | D110: 5.675349402 | E110: 21.08334231 | F110: 4.397341594e-06 | G110: 8.117609068e-05
A111: TSC10 | B111: YBR265W | C111: 0.6820403948 | D111: 6.848687782 | E111: 21.0221678 | F111: 4.539999889e-06 | G111: 8.317174189e-05
A112: ARE1 | B112: YCR048W | C112: 0.6297555004 | D112: 8.295751566 | E112: 21.0099959 | F112: 4.568933929e-06 | G112: 8.324119822e-05
A113: ERP5 | B113: YHR110W | C113: 0.7142871091 | D113: 5.933713507 | E113: 20.82314584 | F113: 5.037053217e-06 | G113: 9.058571512e-05
A114: YFR018C | B114: YFR018C | C114: 0.7309053658 | D114: 6.285141187 | E114: 20.77553383 | F114: 5.163845798e-06 | G114: 9.227064206e-05
A115: UTR4 | B115: YEL038W | C115: 0.5699672014 | D115: 8.252847985 | E115: 20.71965105 | F115: 5.316756301e-06 | G115: 9.469941334e-05
A116: SDT1 | B116: YGL224C | C116: 0.815410267 | D116: 5.477517837 | E116: 20.58110834 | F116: 5.715737659e-06 | G116: 0.000100839359
A117: SGF11 | B117: YPL047W | C117: 0.8595393578 | D117: 5.005324468 | E117: 20.44597615 | F117: 6.133838177e-06 | G117: 0.000106862962
A118: YOR246C | B118: YOR246C | C118: 0.6639647085 | D118: 7.980922123 | E118: 20.21235679 | F118: 6.930381968e-06 | G118: 0.000119249628
A119: MAK31 | B119: YCR020C-A | C119: 1.1841201 | D119: 3.950824146 | E119: 20.19034619 | F119: 7.010584203e-06 | G119: 0.0001198895918
A120: HHT2 | B120: YNL031C | C120: 0.5657086282 | D120: 9.068025388 | E120: 20.12868259 | F120: 7.240270456e-06 | G120: 0.0001230625238
A121: SOL2 | B121: YCR073W-A | C121: 0.6045573185 | D121: 8.199503708 | E121: 20.08023356 | F121: 7.426022295e-06 | G121: 0.0001258360921
A122: YDR374W-A | B122: YDR374W-A | C122: 0.9169542877 | D122: 4.994187599 | E122: 20.06667677 | F122: 7.478849934e-06 | G122: 0.0001261510081
A123: ATX1 | B123: YNL259C | C123: 1.00969914 | D123: 4.348158196 | E123: 19.82681902 | F123: 8.478469615e-06 | G123: 0.0001406769884
A124: ACP1 | B124: YKL192C | C124: 0.5737394306 | D124: 7.18748116 | E124: 19.81328994 | F124: 8.53869183e-06 | G124: 0.0001408378904
A125: RSM7 | B125: YJR113C | C125: 0.7026834849 | D125: 6.671956462 | E125: 19.77451814 | F125: 8.713666875e-06 | G125: 0.0001432999788
A126: TCA17 | B126: YEL048C | C126: 0.9690804304 | D126: 4.483776449 | E126: 19.65454205 | F126: 9.278250128e-06 | G126: 0.0001521360131
A127: TRX1 | B127: YLR043C | C127: 0.549026471 | D127: 8.467097919 | E127: 19.58116798 | F127: 9.641487748e-06 | G127: 0.0001576284287
A128: AIM45 | B128: YPR004C | C128: 0.6170185091 | D128: 7.762003009 | E128: 19.50556629 | F128: 1.003069626e-05 | G128: 0.0001635120809
A129: HOT13 | B129: YKL084W | C129: 0.9190331264 | D129: 4.763427593 | E129: 19.2642656 | F129: 1.138167434e-05 | G129: 0.0001839212592
A130: PTC2 | B130: YER089C | C130: 0.5407074657 | D130: 8.673853604 | E130: 19.23350862 | F130: 1.156652157e-05 | G130: 0.000185297005
A131: YJL127C-B | B131: YJL127C-B | C131: 0.8517703511 | D131: 5.117373825 | E131: 19.20933264 | F131: 1.171393127e-05 | G131: 0.0001871208218
A132: AIM27 | B132: YKL207W | C132: 0.5450864933 | D132: 8.036291732 | E132: 19.19890009 | F132: 1.177812355e-05 | G132: 0.0001876086823
A133: YER071C | B133: YER071C | C133: 0.8373940434 | D133: 6.218162793 | E133: 19.18135306 | F133: 1.18868896e-05 | G133: 0.0001888017366
A134: DFR1 | B134: YOR236W | C134: 0.7567596914 | D134: 5.495679336 | E134: 19.06500808 | F134: 1.263402601e-05 | G134: 0.0001978502668
A135: CLC1 | B135: YGR167W | C135: 0.5443257212 | D135: 7.626750659 | E135: 18.99776076 | F135: 1.308719478e-05 | G135: 0.0002038019857
A136: SOL3 | B136: YHR163W | C136: 0.5150114394 | D136: 8.633536563 | E136: 18.88776367 | F136: 1.386391043e-05 | G136: 0.000215296102
A137: YDR476C | B137: YDR476C | C137: 0.7317044884 | D137: 5.995202436 | E137: 18.86048429 | F137: 1.406359792e-05 | G137: 0.0002176576524
A138: YDL157C | B138: YDL157C | C138: 0.8165071704 | D138: 5.825410327 | E138: 18.85635641 | F138: 1.409406502e-05 | G138: 0.0002176576524
A139: RPP0 | B139: YLR340W | C139: 0.5372330837 | D139: 12.53892532 | E139: 18.74912682 | F139: 1.490916077e-05 | G139: 0.0002286340376
A140: MTO1 | B140: YGL236C | C140: 0.7054790307 | D140: 5.781718826 | E140: 18.74673721 | F140: 1.492785465e-05 | G140: 0.0002286340376
A141: ERP1 | B141: YAR002C-A | C141: 0.5244057574 | D141: 8.189124732 | E141: 18.64533514 | F141: 1.574319946e-05 | G141: 0.0002385009157
A142: YPR127W | B142: YPR127W | C142: 0.6794891303 | D142: 6.04143211 | E142: 18.57149229 | F142: 1.63649636e-05 | G142: 0.0002441809827
A143: REX4 | B143: YOL080C | C143: 1.207083727 | D143: 3.824899409 | E143: 18.56878107 | F143: 1.638825599e-05 | G143: 0.0002441809827
A144: RPA14 | B144: YDR156W | C144: 0.6378281551 | D144: 6.665457148 | E144: 18.56825132 | F144: 1.639281098e-05 | G144: 0.0002441809827
A145: HST2 | B145: YPL015C | C145: 0.586341592 | D145: 7.214279748 | E145: 18.56762784 | F145: 1.639817359e-05 | G145: 0.0002441809827
A146: HMRA1 | B146: YCR097W | C146: 0.907743711 | D146: 4.576248328 | E146: 18.5645433 | F146: 1.642472978e-05 | G146: 0.0002441809827
A147: PTC6 | B147: YCR079W | C147: 0.7058459563 | D147: 5.641493054 | E147: 18.50529388 | F147: 1.69433031e-05 | G147: 0.0002483383923
A148: FMO1 | B148: YHR176W | C148: 0.9102766096 | D148: 4.731859 | E148: 18.34062924 | F148: 1.847253193e-05 | G148: 0.0002681884518
A149: MRPL37 | B149: YBR268W | C149: 0.9269999653 | D149: 4.680181612 | E149: 18.29553104 | F149: 1.891503773e-05 | G149: 0.0002738995723
A150: FUN26 | B150: YAL022C | C150: 0.6539079795 | D150: 7.043876448 | E150: 18.17334139 | F150: 2.016822618e-05 | G150: 0.0002912897952
A151: PUP1 | B151: YOR157C | C151: 0.5299354381 | D151: 8.511955197 | E151: 17.99939275 | F151: 2.209754496e-05 | G151: 0.000315073691
A152: LPX1 | B152: YOR084W | C152: 0.680190962 | D152: 5.864594945 | E152: 17.98384723 | F152: 2.227874187e-05 | G152: 0.0003168469029
A153: YKE4 | B153: YIL023C | C153: 0.6522318862 | D153: 6.720931702 | E153: 17.92928211 | F153: 2.292664512e-05 | G153: 0.0003252316706
A154: SFT1 | B154: YKL006C-A | C154: 0.8713569647 | D154: 4.803775146 | E154: 17.92037636 | F154: 2.303417422e-05 | G154: 0.0003252831665
A155: ERS1 | B155: YCR075C | C155: 0.7505744429 | D155: 5.520223398 | E155: 17.90970721 | F155: 2.316366226e-05 | G155: 0.0003252831665
A156: MZM1 | B156: YDR493W | C156: 0.7392195988 | D156: 5.366170886 | E156: 17.71081229 | F156: 2.571607326e-05 | G156: 0.0003593160612
A157: SCW10 | B157: YMR305C | C157: 0.4902772349 | D157: 8.909168666 | E157: 17.59116172 | F157: 2.738581747e-05 | G157: 0.000381689831
A158: RPS22B | B158: YLR367W | C158: 0.5772755837 | D158: 8.005079178 | E158: 17.57654614 | F158: 2.759711023e-05 | G158: 0.000383675535
A159: MXR2 | B159: YCL033C | C159: 0.6175588006 | D159: 6.36975255 | E159: 17.54358287 | F159: 2.807968349e-05 | G159: 0.000389413521
A160: RPC25 | B160: YKL144C | C160: 0.6880366079 | D160: 5.569194307 | E160: 17.52989843 | F160: 2.828250256e-05 | G160: 0.0003912529821
A161: RFA3 | B161: YJL173C | C161: 0.6635528114 | D161: 5.876285111 | E161: 17.45426877 | F161: 2.943026727e-05 | G161: 0.0004051203457
A162: SYG1 | B162: YIL047C | C162: 0.5272983908 | D162: 8.187664717 | E162: 17.41568976 | F162: 3.003366038e-05 | G162: 0.0004124080213
A163: TOM6 | B163: YOR045W | C163: 0.76900757 | D163: 7.135164816 | E163: 17.4080063 | F163: 3.015530976e-05 | G163: 0.0004130610612
A164: RPL14A | B164: YKL006W | C164: 0.4947185429 | D164: 9.263047216 | E164: 17.37797382 | F164: 3.063557255e-05 | G164: 0.000418611071
A165: RRP8 | B165: YDR083W | C165: 0.78040979 | D165: 4.972109804 | E165: 17.20766156 | F165: 3.350822539e-05 | G165: 0.0004545215488
A166: BUD32 | B166: YGR262C | C166: 0.6355736783 | D166: 6.377964942 | E166: 17.17808739 | F166: 3.403396117e-05 | G166: 0.0004605323629
A167: MRPL8 | B167: YJL063C | C167: 0.6696282766 | D167: 5.677040991 | E167: 16.71187118 | F167: 4.350789864e-05 | G167: 0.0005747785188
A168: RPL43A | B168: YPR043W | C168: 0.503728948 | D168: 9.764304268 | E168: 16.63836989 | F168: 4.522676356e-05 | G168: 0.0005940023909
A169: NIT2 | B169: YJL126W | C169: 0.7022579951 | D169: 5.382049502 | E169: 16.38939968 | F169: 5.157284629e-05 | G169: 0.0006733457097
A170: MRPS12 | B170: YNR036C | C170: 0.5888664467 | D170: 7.028523242 | E170: 16.35626684 | F170: 5.248233417e-05 | G170: 0.0006820256714
A171: YIL096C | B171: YIL096C | C171: 1.170843359 | D171: 3.773896573 | E171: 16.26817912 | F171: 5.497954043e-05 | G171: 0.0007095160599
A172: SHR5 | B172: YOL110W | C172: 0.8316243221 | D172: 4.751124265 | E172: 16.19137607 | F172: 5.725417228e-05 | G172: 0.000732091767
A173: STP3 | B173: YLR375W | C173: 0.5945927191 | D173: 7.191234981 | E173: 16.14851249 | F173: 5.856454528e-05 | G173: 0.0007454277168
A174: MTQ1 | B174: YNL063W | C174: 0.7066978545 | D174: 5.390777909 | E174: 16.121381 | F174: 5.940952164e-05 | G174: 0.0007511904708
A175: EMP24 | B175: YGL200C | C175: 0.5349998058 | D175: 8.742888273 | E175: 16.0552284 | F175: 6.152151896e-05 | G175: 0.0007742267906
A176: ERG28 | B176: YER044C | C176: 0.5353840583 | D176: 7.529079921 | E176: 15.96681977 | F176: 6.44624552e-05 | G176: 0.0008075914332
A177: GPM1 | B177: YKL152C | C177: 0.5201583165 | D177: 13.30227813 | E177: 15.94706934 | F177: 6.513854962e-05 | G177: 0.0008124103224
A178: TSC3 | B178: YBR058C-A | C178: 0.6171691063 | D178: 6.002205474 | E178: 15.82305298 | F178: 6.954995099e-05 | G178: 0.000861646615
A179: ERG27 | B179: YLR100W | C179: 0.5299528014 | D179: 7.523407785 | E179: 15.78150328 | F179: 7.109415917e-05 | G179: 0.0008768803924
A180: ADD37 | B180: YMR184W | C180: 0.6515288772 | D180: 6.506193436 | E180: 15.72966716 | F180: 7.306911451e-05 | G180: 0.0008956054503
A181: MRPL15 | B181: YLR312W-A | C181: 0.6326354126 | D181: 5.690423199 | E181: 15.70693746 | F181: 7.395243374e-05 | G181: 0.0009021658178
A182: RFS1 | B182: YBR052C | C182: 0.5229798912 | D182: 7.435974734 | E182: 15.70304215 | F182: 7.410488724e-05 | G182: 0.0009021658178
A183: HSP31 | B183: YDR533C | C183: 0.6168195406 | D183: 5.995636935 | E183: 15.7027803 | F183: 7.4115147e-05 | G183: 0.0009021658178
A184: RPL36B | B184: YPL249C-A | C184: 0.4618047327 | D184: 9.035135294 | E184: 15.65392736 | F184: 7.605447619e-05 | G184: 0.0009197477327
A185: DAD1 | B185: YDR016C | C185: 0.8664860997 | D185: 5.066749161 | E185: 15.63870856 | F185: 7.666898904e-05 | G185: 0.0009251723245
A186: YPR146C | B186: YPR146C | C186: 0.8498902409 | D186: 4.682857363 | E186: 15.63304605 | F186: 7.689890584e-05 | G186: 0.0009259425487
A187: SMX3 | B187: YPR182W | C187: 0.8845880961 | D187: 4.538977937 | E187: 15.5929096 | F187: 7.854858429e-05 | G187: 0.000941738403
A188: YER088C-A | B188: YER088C-A | C188: 0.76215946 | D188: 5.330538253 | E188: 15.57203429 | F188: 7.942062418e-05 | G188: 0.0009501501712
A189: RPL23A | B189: YBL087C | C189: 0.5079141977 | D189: 9.299985899 | E189: 15.52416934 | F189: 8.145707255e-05 | G189: 0.0009662195308
A190: TRS33 | B190: YOR115C | C190: 0.6138653765 | D190: 6.012236703 | E190: 15.49970088 | F190: 8.25183109e-05 | G190: 0.0009746601341
A191: YMR262W | B191: YMR262W | C191: 0.6861236915 | D191: 6.207514818 | E191: 15.39753184 | F191: 8.71019889e-05 | G191: 0.001026624922
A192: SWP1 | B192: YMR149W | C192: 0.4736091224 | D192: 7.87570388 | E192: 15.37613818 | F192: 8.809376612e-05 | G192: 0.001036123937
A193: PHO85 | B193: YPL031C | C193: 0.577046543 | D193: 6.401670948 | E193: 15.37123706 | F193: 8.832256947e-05 | G193: 0.001036628052
A194: SMF2 | B194: YHR050W | C194: 0.4992784669 | D194: 7.411625843 | E194: 15.28047666 | F194: 9.266936446e-05 | G194: 0.001078563062
A195: TOK1 | B195: YJL093C | C195: 0.5364499801 | D195: 6.975242708 | E195: 15.27017097 | F195: 9.317635285e-05 | G195: 0.001082204515
A196: CYC2 | B196: YOR037W | C196: 0.8372917294 | D196: 4.568692506 | E196: 15.25153087 | F196: 9.410045312e-05 | G196: 0.001088402544
A197: SWD3 | B197: YBR175W | C197: 0.6734786541 | D197: 6.331971278 | E197: 15.2387546 | F197: 9.473917024e-05 | G197: 0.001093521478
A198: VMA9 | B198: YCL005W-A | C198: 0.6334669678 | D198: 5.670616076 | E198: 15.17798932 | F198: 9.783721242e-05 | G198: 0.001124623627
A199: YKL066W | B199: YKL066W | C199: 0.9827799676 | D199: 4.30193251 | E199: 15.09809155 | F199: 0.000102066422 | G199: 0.001168419513
A200: RRD1 | B200: YIL153W | C200: 0.6614750586 | D200: 6.160522974 | E200: 15.03969236 | F200: 0.000105273619 | G200: 0.00120020537
... 5376 more rows

Sheet RPFM distributions
B1: Total normalised counts for various gene cluster groups
B3: Figure below shows RPFM distributions (plotted on a log10 scale) for all transcripts, and in each of the cluster groups for each of the individual immunoprecipatations
B4: RPKM values were calculated by inference from EdgeR logCPM values, based on known gene lengths
